Workbook

Sheet Admin
B4: Process Year
B5: 2023 | C5: I1
B7: First True Up Month
B8: =B5*100+1 -> 202301 | C8: I2 | D8: I3
B10: Second True Up Month
B11: =B8+1 -> 202302 | C11: I4 | D11: I5
B13: Third True Up Month
B14: =B11+1 -> 202303 | C14: I6 | D14: I7
B16: Fourth True Up Month
B17: =B14+1 -> 202304 | C17: I8 | D17: I9
B19: Fifth True Up Month
B20: =B17+1 -> 202305 | C20: I10 | D20: I11
B22: Sixth True Up Month
B23: =B20+1 -> 202306 | C23: I12 | D23: I13
B25: Seventh True Up Month
B26: =B23+1 -> 202307 | C26: I14 | D26: I15
B28: Eighth True Up Month
B29: =B26+1 -> 202308 | C29: I16 | D29: I17
B31: Ninth True Up Month
B32: =B29+1 -> 202309 | C32: I18 | D32: I19
B34: Tenth True Up Month
B35: =B32+1 -> 202310 | C35: I20 | D35: I21
B37: Eleventh True Up Month
B38: =B35+1 -> 202311 | C38: I22 | D38: I23
B40: Twelveth True Up Month
B41: =B38+1 -> 202312 | C41: I24 | D41: I25

Sheet I1 Reconciliation
C2: =Admin!$B$8 -> 202301 | D2: =Admin!$B$8 -> 202301 | E2: =C2+1 -> 202302 | F2: =D2+1 -> 202302 | G2: =E2+1 -> 202303 | H2: 202303 | I2: 202304 | J2: 202304 | K2: 202305 | L2: 202305 | M2: 202306 | N2: 202306 | O2: 202307 | P2: 202307 | Q2: 202308 | R2: 202308 | S2: 202309 | T2: 202309 | U2: 202310 | V2: 202310 | W2: 202311 | X2: 202311 | Y2: 202312 | Z2: 202312 | AA2: =Admin!B5 -> 2023
C3: =A4 & "Input "& C2 & " Trueup Sett" -> Input 202301 Trueup Sett | D3: =D4 & " Input Rev " & D2 & " Init" -> I3 Input Rev 202301 Init | E3: =C4 & "Input "& E2 & " Trueup Sett" -> I2Input 202302 Trueup Sett | F3: =F4 & " Input Rev " & F2 & " Init" -> I5 Input Rev 202302 Init | G3: =E4 & "Input "& G2 & " Trueup Sett" -> I4Input 202303 Trueup Sett | H3: =H4 & " Input Rev " & H2 & " Init" -> I7 Input Rev 202303 Init | I3: =G4 & "Input "& I2 & " Trueup Sett" -> I6Input 202304 Trueup Sett | J3: =J4 & " Input Rev " & J2 & " Init" -> I9 Input Rev 202304 Init | K3: =I4 & "Input "& K2 & " Trueup Sett" -> I8Input 202305 Trueup Sett | L3: =L4 & " Input Rev " & L2 & " Init" -> I11 Input Rev 202305 Init | M3: =K4 & "Input "& M2 & " Trueup Sett" -> I10Input 202306 Trueup Sett | N3: =N4 & " Input Rev " & N2 & " Init" -> I13 Input Rev 202306 Init | O3: =M4 & "Input "& O2 & " Trueup Sett" -> I12Input 202307 Trueup Sett | P3: =P4 & " Input Rev " & P2 & " Init" -> I15 Input Rev 202307 Init | Q3: =O4 & "Input "& Q2 & " Trueup Sett" -> I14Input 202308 Trueup Sett | R3: =R4 & " Input Rev " & R2 & " Init" -> I17 Input Rev 202308 Init | S3: =Q4 & "Input "& S2 & " Trueup Sett" -> I16Input 202309 Trueup Sett | T3: =T4 & " Input Rev " & T2 & " Init" -> I19 Input Rev 202309 Init | U3: =S4 & "Input "& U2 & " Trueup Sett" -> I18Input 202310 Trueup Sett | V3: =V4 & " Input Rev " & V2 & " Init" -> I21 Input Rev 202310 Init | W3: =U4 & "Input "& W2 & " Trueup Sett" -> I20Input 202311 Trueup Sett | X3: =X4 & " Input Rev " & X2 & " Init" -> I23 Input Rev 202311 Init | Y3: =W4 & "Input "& Y2 & " Trueup Sett" -> I22Input 202312 Trueup Sett | Z3: =Z4 & " Input Rev " & Z2 & " Init" -> I25 Input Rev 202312 Init | AA3: Total IESO Settlement
C4: I2 | D4: I3 | E4: I4 | F4: I5 | G4: I6 | H4: I7 | I4: I8 | J4: I9 | K4: I10 | L4: I11 | M4: I12 | N4: I13 | O4: I14 | P4: I15 | Q4: I16 | R4: I17 | S4: I18 | T4: I19 | U4: I20 | V4: I21 | W4: I22 | X4: I23 | Y4: I24 | Z4: I25
B5: RPP Revenue Prices
B6: RPPT1 | C6: ='I2 Input 01 Trueup Sett '!Z6 -> -1633.955019 | D6: ='I3 Input Rev 01 Init'!C7 -> 4732.82 | E6: ='I4 Input 02 Trueup Sett'!Z6 -> -17951.82128 | F6: ='I5 Input Rev 02 Init'!C7 -> 1820.69 | G6: ='I6 Input 03 Trueup Sett'!Z6 -> -17290.16243 | H6: ='I7 Input Rev 03 Init'!C7 -> 16126.42 | I6: ='I8 Input 04 Trueup Sett'!Z6 -> -26813.64397 | J6: ='I9 Input Rev 04 Init'!C7 -> 17360.1 | K6: ='I10 Input 05 Trueup Sett'!Z6 -> -22650.71125 | L6: ='I11 Input Rev 05 Init'!C7 -> 27148.92 | M6: ='I12 Input 06 Trueup Sett'!Z6 -> -18849.72171 | N6: ='I13 Input Rev 06 Init'!C7 -> 21245.58 | O6: ='I14 Input 07 Trueup Sett'!Z6 -> -3127.669411 | P6: ='I15 Input Rev 07 Init'!C7 -> 18535.64 | Q6: ='I16 Input 08 Trueup Sett'!Z6 -> -13805.52413 | R6: ='I17 Input Rev 08 Init'!C7 -> 4182.5 | S6: ='I18 Input 09 Trueup Sett'!Z6 -> -7105.695219 | T6: ='I19 Input Rev 09 Init'!C7 -> 13933.55 | U6: ='I20 Input 10 Trueup Sett'!Z6 -> -19147.93641 | V6: ='I21 Input Rev 10 Init'!C7 -> 4781.1 | W6: ='I22 Input 11 Trueup Sett'!Z6 -> 1403.148931 | X6: ='I23 Input Rev 11 Init'!C7 -> 19696.92 | Y6: ='I24 Input 12 Trueup Sett'!Z6 -> 5570.06604 | Z6: ='I25 Input Rev 12 Init'!C7 -> 934.46 | AA6: =SUM(C6:Z6) -> 9095.074143
B7: RPPT2 | C7: ='I2 Input 01 Trueup Sett '!Z7 -> 4783.641711 | D7: ='I3 Input Rev 01 Init'!C8 -> -3327.93 | E7: ='I4 Input 02 Trueup Sett'!Z7 -> -1242.455833 | F7: ='I5 Input Rev 02 Init'!C8 -> -4517.1 | G7: ='I6 Input 03 Trueup Sett'!Z7 -> -675.0010068 | H7: ='I7 Input Rev 03 Init'!C8 -> 280.83 | I7: ='I8 Input 04 Trueup Sett'!Z7 -> -2302.76911 | J7: ='I9 Input Rev 04 Init'!C8 -> 776.62 | K7: ='I10 Input 05 Trueup Sett'!Z7 -> -2686.055069 | L7: ='I11 Input Rev 05 Init'!C8 -> 2366.14 | M7: ='I12 Input 06 Trueup Sett'!Z7 -> -2121.845155 | N7: ='I13 Input Rev 06 Init'!C8 -> 2525.31 | O7: ='I14 Input 07 Trueup Sett'!Z7 -> 3700.241172 | P7: ='I15 Input Rev 07 Init'!C8 -> 2078.4 | Q7: ='I16 Input 08 Trueup Sett'!Z7 -> -529.0021359 | R7: ='I17 Input Rev 08 Init'!C8 -> -3031.94 | S7: ='I18 Input 09 Trueup Sett'!Z7 -> 1092.35212 | T7: ='I19 Input Rev 09 Init'!C8 -> 613.67 | U7: ='I20 Input 10 Trueup Sett'!Z7 -> -2344.590111 | V7: ='I21 Input Rev 10 Init'!C8 -> -1693.9 | W7: ='I22 Input 11 Trueup Sett'!Z7 -> 5489.245591 | X7: ='I23 Input Rev 11 Init'!C8 -> 2631.83 | Y7: ='I24 Input 12 Trueup Sett'!Z7 -> 7813.314856 | Z7: ='I25 Input Rev 12 Init'!C8 -> -4856.82 | AA7: =SUM(C7:Z7) -> 4822.187028
B8: RPPTOUMID | C8: ='I2 Input 01 Trueup Sett '!Z8 -> 23068.65592 | D8: ='I3 Input Rev 01 Init'!C9 -> -13838.93 | E8: ='I4 Input 02 Trueup Sett'!Z8 -> -8428.758287 | F8: ='I5 Input Rev 02 Init'!C9 -> -21652.63 | G8: ='I6 Input 03 Trueup Sett'!Z8 -> -6129.798506 | H8: ='I7 Input Rev 03 Init'!C9 -> -323.58 | I8: ='I8 Input 04 Trueup Sett'!Z8 -> -24079.71054 | J8: ='I9 Input Rev 04 Init'!C9 -> 7039.7 | K8: ='I10 Input 05 Trueup Sett'!Z8 -> -22610.01574 | L8: ='I11 Input Rev 05 Init'!C9 -> 21803 | M8: ='I12 Input 06 Trueup Sett'!Z8 -> -18432.99097 | N8: ='I13 Input Rev 06 Init'!C9 -> 21651.37 | O8: ='I14 Input 07 Trueup Sett'!Z8 -> 19312.18163 | P8: ='I15 Input Rev 07 Init'!C9 -> 18231.56 | Q8: ='I16 Input 08 Trueup Sett'!Z8 -> -6104.909829 | R8: ='I17 Input Rev 08 Init'!C9 -> -13751.63 | S8: ='I18 Input 09 Trueup Sett'!Z8 -> 6457.950203 | T8: ='I19 Input Rev 09 Init'!C9 -> 4992.81 | U8: ='I20 Input 10 Trueup Sett'!Z8 -> -16395.84241 | V8: ='I21 Input Rev 10 Init'!C9 -> -9772.52 | W8: ='I22 Input 11 Trueup Sett'!Z8 -> 34666.44672 | X8: ='I23 Input Rev 11 Init'!C9 -> 14773.93 | Y8: ='I24 Input 12 Trueup Sett'!Z8 -> 39917.41846 | Z8: ='I25 Input Rev 12 Init'!C9 -> -24692.4 | AA8: 25701.30664
B9: RPPTOUOFF | C9: ='I2 Input 01 Trueup Sett '!Z9 -> -101183.5548 | D9: ='I3 Input Rev 01 Init'!C10 -> 117105.43 | E9: ='I4 Input 02 Trueup Sett'!Z9 -> -195408.1031 | F9: ='I5 Input Rev 02 Init'!C10 -> 104754.1 | G9: ='I6 Input 03 Trueup Sett'!Z9 -> -181875.0079 | H9: ='I7 Input Rev 03 Init'!C10 -> 176053.2 | I9: ='I8 Input 04 Trueup Sett'!Z9 -> -234462.029 | J9: ='I9 Input Rev 04 Init'!C10 -> 182693.05 | K9: ='I10 Input 05 Trueup Sett'!Z9 -> -195913.6187 | L9: ='I11 Input Rev 05 Init'!C10 -> 228867.38 | M9: ='I12 Input 06 Trueup Sett'!Z9 -> -189417.6529 | N9: ='I13 Input Rev 06 Init'!C10 -> 188721.04 | O9: ='I14 Input 07 Trueup Sett'!Z9 -> -104952.8195 | P9: ='I15 Input Rev 07 Init'!C10 -> 181948.37 | Q9: ='I16 Input 08 Trueup Sett'!Z9 -> -167274.0157 | R9: ='I17 Input Rev 08 Init'!C10 -> 117275.24 | S9: ='I18 Input 09 Trueup Sett'!Z9 -> -116500.2038 | T9: ='I19 Input Rev 09 Init'!C10 -> 160398.43 | U9: ='I20 Input 10 Trueup Sett'!Z9 -> -187081.7459 | V9: ='I21 Input Rev 10 Init'!C10 -> 105432.22 | W9: ='I22 Input 11 Trueup Sett'!Z9 -> -74691.25322 | X9: ='I23 Input Rev 11 Init'!C10 -> 180756.95 | Y9: ='I24 Input 12 Trueup Sett'!Z9 -> -66576.02817 | Z9: ='I25 Input Rev 12 Init'!C10 -> 95806.27 | AA9: 24475.64729
B10: RPPTOUON | C10: ='I2 Input 01 Trueup Sett '!Z10 -> 116271.5927 | D10: ='I3 Input Rev 01 Init'!C11 -> -99540.33 | E10: ='I4 Input 02 Trueup Sett'!Z10 -> 76259.74898 | F10: ='I5 Input Rev 02 Init'!C11 -> -111653.44 | G10: ='I6 Input 03 Trueup Sett'!Z10 -> 86460.68959 | H10: ='I7 Input Rev 03 Init'!C11 -> -92333.77 | I10: ='I8 Input 04 Trueup Sett'!Z10 -> 42411.47692 | J10: ='I9 Input Rev 04 Init'!C11 -> -84553.35 | K10: ='I10 Input 05 Trueup Sett'!Z10 -> 46438.28298 | L10: ='I11 Input Rev 05 Init'!C11 -> -45985.07 | M10: ='I12 Input 06 Trueup Sett'!Z10 -> 62697.42966 | N10: ='I13 Input Rev 06 Init'!C11 -> -46792.91 | O10: ='I14 Input 07 Trueup Sett'!Z10 -> 120251.5283 | P10: ='I15 Input Rev 07 Init'!C11 -> -58280.17 | Q10: ='I16 Input 08 Trueup Sett'!Z10 -> 85633.83798 | R10: ='I17 Input Rev 08 Init'!C11 -> -108343.29 | S10: ='I18 Input 09 Trueup Sett'!Z10 -> 82329.70916 | T10: ='I19 Input Rev 09 Init'!C11 -> -85690.49 | U10: ='I20 Input 10 Trueup Sett'!Z10 -> 53902.88443 | V10: ='I21 Input Rev 10 Init'!C11 -> -87735.01 | W10: ='I22 Input 11 Trueup Sett'!Z10 -> 141062.5173 | X10: ='I23 Input Rev 11 Init'!C11 -> -54953.65 | Y10: ='I24 Input 12 Trueup Sett'!Z10 -> 139249.3487 | Z10: ='I25 Input Rev 12 Init'!C11 -> -122133.21 | AA10: 54974.35676
B11: RPPULOMID | W11: ='I22 Input 11 Trueup Sett'!Z11 -> 10.54674811 | Y11: ='I24 Input 12 Trueup Sett'!Z11 -> 42.29421439 | AA11: 52.8409625
B12: RPPULOOFF | W12: ='I22 Input 11 Trueup Sett'!Z12 -> -4.803878861 | Y12: ='I24 Input 12 Trueup Sett'!Z12 -> -38.06053755 | AA12: -42.86441642
B13: RPPULOON | W13: ='I22 Input 11 Trueup Sett'!Z13 -> 52.42402429 | Y13: ='I24 Input 12 Trueup Sett'!Z13 -> 260.6797858 | AA13: 313.1038101
B14: RPPULOOVN | W14: =-'I22 Input 11 Trueup Sett'!Z14 -> 45.43565749 | Y14: =-'I24 Input 12 Trueup Sett'!Z14 -> 56.30869847 | AA14: 101.744356
B15: Total RPP For Settlement | C15: =SUM(C6:C14) -> 41306.38058 | D15: =SUM(D6:D14) -> 5131.06 | E15: -146771.3895 | F15: -31248.38 | G15: -119509.2803 | H15: 99803.1 | I15: -245246.6757 | J15: 123316.12 | K15: -197422.1178 | L15: 234200.37 | M15: -166124.781 | N15: 187350.39 | O15: 35183.46215 | P15: 162513.8 | Q15: -102079.6138 | R15: -3669.12 | S15: -33725.88758 | T15: 94247.97 | U15: -171067.2304 | V15: 11011.89 | W15: 108033.7079 | X15: 162905.98 | Y15: 126295.3421 | Z15: -54941.7 | AA15: 119493.3966
D16: =C15+D15 -> 46437.44058 | F16: =E15+F15 -> -178019.7695 | H16: =G15+H15 -> -19706.18029 | J16: =I15+J15 -> -121930.5557 | L16: =K15+L15 -> 36778.25224 | N16: =M15+N15 -> 21225.60896 | P16: =O15+P15 -> 197697.2621 | R16: =Q15+R15 -> -105748.7338 | T16: =S15+T15 -> 60522.08242 | V16: =U15+V15 -> -160055.3404 | X16: =W15+X15 -> 270939.6879 | Z16: =Y15+Z15 -> 71353.64209
B18: Total RPP kWh For Settlement Reported
B19: Tier 1 | C19: ='I2 Input 01 Trueup Sett '!V6 -> 1016180.959 | D19: =-'I3 Input Rev 01 Init'!B7 -> -977017.48 | E19: ='I4 Input 02 Trueup Sett'!V6 -> 908287.1 | F19: =-'I5 Input Rev 02 Init'!B7 -> -1006526.98 | G19: ='I6 Input 03 Trueup Sett'!V6 -> 945383.7952 | H19: =-'I7 Input Rev 03 Init'!B7 -> -956949.9 | I19: ='I8 Input 04 Trueup Sett'!V6 -> 816187.087 | J19: =-'I9 Input Rev 04 Init'!B7 -> -936580.82 | K19: ='I10 Input 05 Trueup Sett'!V6 -> 741995.9542 | L19: =-'I11 Input Rev 05 Init'!B7 -> -847946.98 | M19: ='I12 Input 06 Trueup Sett'!V6 -> 712815.0344 | N19: =-'I13 Input Rev 06 Init'!B7 -> -705141.28 | O19: ='I14 Input 07 Trueup Sett'!V6 -> 802462.8875 | P19: =-'I15 Input Rev 07 Init'!B7 -> -689479.08 | Q19: ='I16 Input 08 Trueup Sett'!V6 -> 749915.8192 | R19: =-'I17 Input Rev 08 Init'!B7 -> -784759.13 | S19: ='I18 Input 09 Trueup Sett'!V6 -> 703425.9653 | T19: =-'I19 Input Rev 09 Init'!B7 -> -740938.81 | U19: ='I20 Input 10 Trueup Sett'!V6 -> 730597.5892 | V19: =-'I21 Input Rev 10 Init'!B7 -> -703730.44 | W19: ='I22 Input 11 Trueup Sett'!V6 -> 906614.3563 | X19: =-'I23 Input Rev 11 Init'!B7 -> -722860.55 | Y19: ='I24 Input 12 Trueup Sett'!V6 -> 977888.5709 | Z19: =-'I25 Input Rev 12 Init'!B7 -> -885891.74 | AA19: =SUM(C19:Z19) -> 53931.92817
B20: Tier 2 | C20: ='I2 Input 01 Trueup Sett '!V7 -> 332385.9811 | D20: =-'I3 Input Rev 01 Init'!B8 -> -298377.86 | E20: ='I4 Input 02 Trueup Sett'!V7 -> 330101.0243 | F20: =-'I5 Input Rev 02 Init'!B8 -> -318299.44 | G20: ='I6 Input 03 Trueup Sett'!V7 -> 294872.7192 | H20: =-'I7 Input Rev 03 Init'!B8 -> -329868.37 | I20: ='I8 Input 04 Trueup Sett'!V7 -> 136657.8168 | J20: =-'I9 Input Rev 04 Init'!B8 -> -306275.99 | K20: ='I10 Input 05 Trueup Sett'!V7 -> 184893.3254 | L20: =-'I11 Input Rev 05 Init'!B8 -> -147768.75 | M20: ='I12 Input 06 Trueup Sett'!V7 -> 203180.6385 | N20: =-'I13 Input Rev 06 Init'!B8 -> -178715.42 | O20: ='I14 Input 07 Trueup Sett'!V7 -> 305745.7501 | P20: =-'I15 Input Rev 07 Init'!B8 -> -190983.03 | Q20: ='I16 Input 08 Trueup Sett'!V7 -> 219481.5286 | R20: =-'I17 Input Rev 08 Init'!B8 -> -284152.27 | S20: ='I18 Input 09 Trueup Sett'!V7 -> 185146.7392 | T20: =-'I19 Input Rev 09 Init'!B8 -> -218681.73 | U20: ='I20 Input 10 Trueup Sett'!V7 -> 252268.0038 | V20: =-'I21 Input Rev 10 Init'!B8 -> -183973.45 | W20: ='I22 Input 11 Trueup Sett'!V7 -> 233078.3605 | X20: =-'I23 Input Rev 11 Init'!B8 -> -233965.32 | Y20: ='I24 Input 12 Trueup Sett'!V7 -> 282113.0705 | Z20: =-'I25 Input Rev 12 Init'!B8 -> -238515.77 | AA20: =SUM(C20:Z20) -> 30347.55808
B21: TOU Off-peak | C21: ='I2 Input 01 Trueup Sett '!V8 -> 1829083.039 | D21: =-'I3 Input Rev 01 Init'!B9 -> -1653542.88 | E21: ='I4 Input 02 Trueup Sett'!V8 -> 1668975.339 | F21: =-'I5 Input Rev 02 Init'!B9 -> -1769390.18 | G21: ='I6 Input 03 Trueup Sett'!V8 -> 1837999.454 | H21: =-'I7 Input Rev 03 Init'!B9 -> -1817996.2 | I21: ='I8 Input 04 Trueup Sett'!V8 -> 1340368.843 | J21: =-'I9 Input Rev 04 Init'!B9 -> -1819262.11 | K21: ='I10 Input 05 Trueup Sett'!V8 -> 1417053.397 | L21: =-'I11 Input Rev 05 Init'!B9 -> -1354869.67 | M21: ='I12 Input 06 Trueup Sett'!V8 -> 1571674.695 | N21: =-'I13 Input Rev 06 Init'!B9 -> -1396921.81 | O21: ='I14 Input 07 Trueup Sett'!V8 -> 1790289.838 | P21: =-'I15 Input Rev 07 Init'!B9 -> -1484907.75 | Q21: ='I16 Input 08 Trueup Sett'!V8 -> 1718999.804 | R21: =-'I17 Input Rev 08 Init'!B9 -> -1704511.01 | S21: ='I18 Input 09 Trueup Sett'!V8 -> 1454625.619 | T21: =-'I19 Input Rev 09 Init'!B9 -> -1688552.63 | U21: ='I20 Input 10 Trueup Sett'!V8 -> 1438671.785 | V21: =-'I21 Input Rev 10 Init'!B9 -> -1476119.17 | W21: ='I22 Input 11 Trueup Sett'!V8 -> 1692925.182 | X21: =-'I23 Input Rev 11 Init'!B9 -> -1413513.21 | Y21: ='I24 Input 12 Trueup Sett'!V8 -> 1622741.03 | Z21: =-'I25 Input Rev 12 Init'!B9 -> -1639045.04 | AA21: 164776.3639
B22: TOU Mid-peak | C22: ='I2 Input 01 Trueup Sett '!V9 -> 6576470.12 | D22: =-'I3 Input Rev 01 Init'!B10 -> -5964539.41 | E22: ='I4 Input 02 Trueup Sett'!V9 -> 5912763.408 | F22: =-'I5 Input Rev 02 Init'!B10 -> -6646244.17 | G22: ='I6 Input 03 Trueup Sett'!V9 -> 5804260.6 | H22: =-'I7 Input Rev 03 Init'!B10 -> -6327729.68 | I22: ='I8 Input 04 Trueup Sett'!V9 -> 5101160.122 | J22: =-'I9 Input Rev 04 Init'!B10 -> -5732473.51 | K22: ='I10 Input 05 Trueup Sett'!V9 -> 4457672.845 | L22: =-'I11 Input Rev 05 Init'!B10 -> -5190583.26 | M22: ='I12 Input 06 Trueup Sett'!V9 -> 4767849.492 | N22: =-'I13 Input Rev 06 Init'!B10 -> -4338453.27 | O22: ='I14 Input 07 Trueup Sett'!V9 -> 6098314.157 | P22: =-'I15 Input Rev 07 Init'!B10 -> -4517335.78 | Q22: ='I16 Input 08 Trueup Sett'!V9 -> 5301707.809 | R22: =-'I17 Input Rev 08 Init'!B10 -> -5883687.93 | S22: ='I18 Input 09 Trueup Sett'!V9 -> 4944420.024 | T22: =-'I19 Input Rev 09 Init'!B10 -> -5181065.23 | U22: ='I20 Input 10 Trueup Sett'!V9 -> 4747501.053 | V22: =-'I21 Input Rev 10 Init'!B10 -> -4931190.21 | W22: ='I22 Input 11 Trueup Sett'!V9 -> 5144253.092 | X22: =-'I23 Input Rev 11 Init'!B10 -> -4700841.07 | Y22: ='I24 Input 12 Trueup Sett'!V9 -> 6401150.278 | Z22: =-'I25 Input Rev 12 Init'!B10 -> -4992811.11 | AA22: 850568.3705
B23: TOU On-peak | C23: ='I2 Input 01 Trueup Sett '!V10 -> 1887271.068 | D23: =-'I3 Input Rev 01 Init'!B11 -> -1735082.54 | E23: ='I4 Input 02 Trueup Sett'!V10 -> 1735642.022 | F23: =-'I5 Input Rev 02 Init'!B11 -> -1823318.22 | G23: ='I6 Input 03 Trueup Sett'!V10 -> 1894409.759 | H23: =-'I7 Input Rev 03 Init'!B11 -> -1877575.38 | I23: ='I8 Input 04 Trueup Sett'!V10 -> 1368502.758 | J23: =-'I9 Input Rev 04 Init'!B11 -> -1873530.66 | K23: ='I10 Input 05 Trueup Sett'!V10 -> 1408256.031 | L23: =-'I11 Input Rev 05 Init'!B11 -> -1397416.4 | M23: ='I12 Input 06 Trueup Sett'!V10 -> 1684077.924 | N23: =-'I13 Input Rev 06 Init'!B11 -> -1396815.42 | O23: ='I14 Input 07 Trueup Sett'!V10 -> 2012515.943 | P23: =-'I15 Input Rev 07 Init'!B11 -> -1587040.34 | Q23: ='I16 Input 08 Trueup Sett'!V10 -> 1885268.625 | R23: =-'I17 Input Rev 08 Init'!B11 -> -1898516.04 | S23: ='I18 Input 09 Trueup Sett'!V10 -> 1541889.981 | T23: =-'I19 Input Rev 09 Init'!B11 -> -1861109.95 | U23: ='I20 Input 10 Trueup Sett'!V10 -> 1435422.927 | V23: =-'I21 Input Rev 10 Init'!B11 -> -1577384.03 | W23: ='I22 Input 11 Trueup Sett'!V10 -> 1753036.888 | X23: =-'I23 Input Rev 11 Init'!B11 -> -1425579.8 | Y23: ='I24 Input 12 Trueup Sett'!V10 -> 1646015.714 | Z23: =-'I25 Input Rev 12 Init'!B11 -> -1656873.6 | AA23: 142067.2605
W24: ='I22 Input 11 Trueup Sett'!V11 -> 514.4368605 | Y24: ='I24 Input 12 Trueup Sett'!V11 -> 1718.270359 | AA24: 2232.707219
W25: ='I22 Input 11 Trueup Sett'!V12 -> 331.4960269 | Y25: ='I24 Input 12 Trueup Sett'!V12 -> 3662.811053 | AA25: 3994.30708
W26: ='I22 Input 11 Trueup Sett'!V13 -> 284.1220786 | Y26: ='I24 Input 12 Trueup Sett'!V13 -> 1382.169118 | AA26: 1666.291196
W27: ='I22 Input 11 Trueup Sett'!V14 -> 618.2117038 | Y27: ='I24 Input 12 Trueup Sett'!V14 -> 811.4832911 | AA27: 1429.694995
B28: Total RPP For Settlement | C28: =SUM(C19:C27) -> 11641391.17 | D28: -10628560.17 | E28: 10555768.89 | F28: -11563778.99 | G28: 10776926.33 | H28: -11310119.53 | I28: 8762876.627 | J28: -10668123.09 | K28: 8209871.553 | L28: -8938585.06 | M28: 8939597.783 | N28: -8016047.2 | O28: 11009328.58 | P28: -8469745.98 | Q28: 9875373.585 | R28: -10555626.38 | S28: 8829508.328 | T28: -9690348.35 | U28: 8604461.358 | V28: -8872397.3 | W28: =SUM(W19:W27) -> 9731656.145 | X28: =SUM(X19:X27) -> -8496759.95 | Y28: =SUM(Y19:Y27) -> 10937483.4 | Z28: =SUM(Z19:Z27) -> -9413137.26 | AA28: =SUM(AA19:AA27) -> 1251014.482
D29: =C28+D28 -> 1012830.998 | F29: =E28+F28 -> -1008010.097 | H29: =G28+H28 -> -533193.2027 | J29: =I28+J28 -> -1905246.463 | L29: =K28+L28 -> -728713.5065 | N29: =M28+N28 -> 923550.5834 | P29: =O28+P28 -> 2539582.595 | R29: =Q28+R28 -> -680252.7945 | T29: =S28+T28 -> -860840.0217 | V29: =U28+V28 -> -267935.9424 | X29: =W28+X28 -> 1234896.195 | Z29: =Y28+Z28 -> 1524346.138

Sheet I1a ER Summary
AR3: MAB
B4: kWh Volumes | C4: $ RPP Revenue | D4: $ RPP Energy | E4: $ GA | F4: $ RPP Settlement | G4: Rev RPP Settlement | H4: Net RPP Sett | J4: IESO Energy kWh | K4: IESO Energy Cost | L4: FIT/mFIT kWh | M4: FIT/mFIT kWh | N4: Total Energy kWh | O4: Total Energy Cost | Q4: CT 148 | S4: Wholesale kWh | T4: Retail kWh | U4: Diff kWh | V4: Diff % | X4: RPP kWh | Y4: COP kWh | Z4: Diff kWh | AA4: Diff % | AC4: RPP/WHSL | AE4: Energy Purchases | AF4: Energy Revenue | AG4: RPP Revenue | AH4: Non RPP Revenue | AJ4: RPP kWh | AK4: Non RPP kWh | AL4: Total kWh | AN4: Class A kWh | AP4: Non RPP Class B | AR4: Class B | AS4: Diff | AZ4: IESO Billed GA | BA4: IESO Posted GA | BB4: Diff
A5: =Admin!B8 -> 202301 | B5: ='I2 Input 01 Trueup Sett '!V15 -> 11641391.17 | C5: ='I2 Input 01 Trueup Sett '!W15 -> 1080819.534 | D5: ='I2 Input 01 Trueup Sett '!X15 -> 413566.3966 | E5: ='I2 Input 01 Trueup Sett '!Y15 -> 625946.7569 | F5: ='I2 Input 01 Trueup Sett '!Z15 -> 41306.38058 | G5: ='I3 Input Rev 01 Init'!C12 -> 5131.06 | H5: =F5+G5 -> 46437.44058 | J5: ='I2 Input 01 Trueup Sett '!C10 -> 23466312.81 | K5: ='I2 Input 01 Trueup Sett '!D10 -> 801678.9 | L5: =N5-J5 -> 109117.8 | M5: =O5-K5 -> 4162.03 | N5: ='I2 Input 01 Trueup Sett '!C11 -> 23575430.61 | O5: ='I2 Input 01 Trueup Sett '!D11 -> 805840.93 | Q5: ='I2 Input 01 Trueup Sett '!B65 -> 985623.84 | S5: ='I2 Input 01 Trueup Sett '!$C$11 -> 23575430.61 | T5: ='I2 Input 01 Trueup Sett '!$C$30 -> 23119725.75 | U5: =S5-T5 -> 455704.8639 | V5: =T5/S5-1 -> -0.01932965177 | X5: =SUM('I2 Input 01 Trueup Sett '!C20:C25) -> 11351983.62 | Y5: ='I2 Input 01 Trueup Sett '!C41 -> 11360242.44 | Z5: =X5-Y5 -> -8258.827791 | AA5: =Y5/X5-1 -> 0.0007275228779 | AC5: =X5/S5 -> 0.4815175512 | AE5: ='I2 Input 01 Trueup Sett '!D11 -> 805840.93 | AF5: ='I2 Input 01 Trueup Sett '!D30 -> 1455123.096 | AG5: =C5 -> 1080819.534 | AH5: =AF5-AG5 -> 374303.5616 | AJ5: =X5 -> 11351983.62 | AK5: =T5-X5 -> 11767742.13 | AL5: =SUM(AJ5:AK5) -> 23119725.75 | AN5: ='I2 Input 01 Trueup Sett '!B57 -> 5244745.87 | AP5: =AK5-AN5 -> 6522996.259 | AR5: 6767375.58 | AS5: =AP5-AR5 -> -244379.3205 | AU5: =X5 -> 11351983.62 | AV5: ='I2 Input 01 Trueup Sett '!V15 -> 11641391.17 | AW5: =AV5/AU5-1 -> 0.0254940071 | AZ5: ='I2 Input 01 Trueup Sett '!$L$33 -> 0.05376906831 | BA5: ='Rev3 GA Analysis '!AU16 -> 0 | BB5: =BA5-AZ5 -> -0.05376906831
A6: =A5+1 -> 202302 | B6: ='I4 Input 02 Trueup Sett'!V15 -> 10555768.89 | C6: ='I4 Input 02 Trueup Sett'!W15 -> 982847.3912 | D6: ='I4 Input 02 Trueup Sett'!X15 -> 258892.3147 | E6: ='I4 Input 02 Trueup Sett'!Y15 -> 870726.466 | F6: ='I4 Input 02 Trueup Sett'!Z15 -> -146771.3895 | G6: ='I5 Input Rev 02 Init'!C12 -> -31248.38 | H6: =F6+G6 -> -178019.7695 | J6: ='I4 Input 02 Trueup Sett'!C10 -> 21427804.6 | K6: ='I4 Input 02 Trueup Sett'!D10 -> 504134.75 | L6: =N6-J6 -> 261979.01 | M6: =O6-K6 -> 5033.81 | N6: ='I4 Input 02 Trueup Sett'!C11 -> 21689783.61 | O6: ='I4 Input 02 Trueup Sett'!D11 -> 509168.56 | Q6: ='I4 Input 02 Trueup Sett'!B77 -> 1387229.02 | S6: ='I4 Input 02 Trueup Sett'!C11 -> 21689783.61 | T6: ='I4 Input 02 Trueup Sett'!C30 -> 21508237.74 | U6: =S6-T6 -> 181545.8737 | V6: =T6/S6-1 -> -0.008370109956 | X6: =SUM('I4 Input 02 Trueup Sett'!C20:C25) -> 10441817.42 | Y6: ='I4 Input 02 Trueup Sett'!C44 -> 10497944.86 | Z6: =X6-Y6 -> -56127.44127 | AA6: =Y6/X6-1 -> 0.005375255958 | AC6: =X6/S6 -> 0.4814163941 | AE6: ='I4 Input 02 Trueup Sett'!D11 -> 509168.56 | AF6: ='I4 Input 02 Trueup Sett'!D30 -> 1227563.078 | AG6: 982847.3912 | AH6: =AF6-AG6 -> 244715.6867 | AJ6: =X6 -> 10441817.42 | AK6: =T6-X6 -> 11066420.32 | AL6: =SUM(AJ6:AK6) -> 21508237.74 | AN6: ='I4 Input 02 Trueup Sett'!B64 -> 4872482.76 | AP6: =AK6-AN6 -> 6193937.561 | AR6: 6189526.004 | AS6: 4411.556854 | AU6: =X6 -> 10441817.42 | AV6: ='I4 Input 02 Trueup Sett'!V15 -> 10555768.89 | AW6: =AV6/AU6-1 -> 0.01091299277 | AZ6: ='I4 Input 02 Trueup Sett'!L33 -> 0.08248820856 | BA6: ='Rev3 GA Analysis '!AU17 -> 0 | BB6: =BA6-AZ6 -> -0.08248820856
A7: =A6+1 -> 202303 | B7: ='I6 Input 03 Trueup Sett'!V15 -> 10776926.33 | C7: ='I6 Input 03 Trueup Sett'!W15 -> 1015583.606 | D7: ='I6 Input 03 Trueup Sett'!X15 -> 269702.0202 | E7: ='I6 Input 03 Trueup Sett'!Y15 -> 865390.8663 | F7: ='I6 Input 03 Trueup Sett'!Z15 -> -119509.2803 | G7: ='I7 Input Rev 03 Init'!C12 -> 99803.1 | H7: =F7+G7 -> -19706.18029 | J7: ='I6 Input 03 Trueup Sett'!C10 -> 22623431.12 | K7: ='I6 Input 03 Trueup Sett'!D10 -> 569802.92 | L7: 448568.38 | M7: 9659.7 | N7: ='I6 Input 03 Trueup Sett'!C11 -> 23071999.5 | O7: ='I6 Input 03 Trueup Sett'!D11 -> 579462.62 | Q7: ='I6 Input 03 Trueup Sett'!B76 -> 1418540.9 | S7: ='I6 Input 03 Trueup Sett'!C11 -> 23071999.5 | T7: ='I6 Input 03 Trueup Sett'!C30 -> 22855660.62 | U7: 216338.8849 | V7: -0.009376685577 | X7: =SUM('I6 Input 03 Trueup Sett'!C20:C25) -> 10644947.27 | Y7: ='I6 Input 03 Trueup Sett'!C44 -> 10822267.45 | Z7: -177320.1849 | AA7: 0.01665768561 | AC7: 0.4613794859 | AE7: ='I6 Input 03 Trueup Sett'!D11 -> 579462.62 | AF7: ='I6 Input 03 Trueup Sett'!D30 -> 1308449.498 | AG7: 1015583.606 | AH7: 292865.892 | AJ7: 10644947.27 | AK7: 12210713.35 | AL7: 22855660.62 | AN7: ='I6 Input 03 Trueup Sett'!B64 -> 5406559.1 | AP7: 6804154.248 | AR7: 6799764.833 | AS7: 4389.415172 | AU7: 10644947.27 | AV7: ='I6 Input 03 Trueup Sett'!V15 -> 10776926.33 | AW7: =AV7/AU7-1 -> 0.01239828221 | AZ7: ='I6 Input 03 Trueup Sett'!L33 -> 0.08030034168 | BA7: ='Rev3 GA Analysis '!AU18 -> 0 | BB7: -0.08030034168
A8: 202304 | B8: ='I8 Input 04 Trueup Sett'!V15 -> 8762876.627 | C8: ='I8 Input 04 Trueup Sett'!W15 -> 805829.8806 | D8: ='I8 Input 04 Trueup Sett'!X15 -> 187959.2692 | E8: ='I8 Input 04 Trueup Sett'!Y15 -> 863117.2871 | F8: ='I8 Input 04 Trueup Sett'!Z15 -> -245246.6757 | G8: ='I9 Input Rev 04 Init'!C12 -> 123316.12 | H8: -121930.5557 | J8: ='I8 Input 04 Trueup Sett'!C10 -> 18860183.95 | K8: ='I8 Input 04 Trueup Sett'!D10 -> 396944.77 | L8: 752413.02 | M8: 15965.66 | N8: ='I8 Input 04 Trueup Sett'!C11 -> 19612596.97 | O8: ='I8 Input 04 Trueup Sett'!D11 -> 412910.43 | Q8: ='I8 Input 04 Trueup Sett'!B76 -> 1447252.99 | S8: ='I8 Input 04 Trueup Sett'!C11 -> 19612596.97 | T8: ='I8 Input 04 Trueup Sett'!C30 -> 19445476.32 | U8: 167120.6525 | V8: -0.00852108738 | X8: =SUM('I8 Input 04 Trueup Sett'!C20:C25) -> 8663208.687 | Y8: ='I8 Input 04 Trueup Sett'!C44 -> 8797530.86 | Z8: -134322.1732 | AA8: 0.01550489871 | AC8: 0.4417165509 | AE8: ='I8 Input 04 Trueup Sett'!D11 -> 412910.43 | AF8: ='I8 Input 04 Trueup Sett'!D30 -> 1020864.467 | AG8: 805829.8806 | AH8: 215034.5863 | AJ8: 8663208.687 | AK8: 10782267.63 | AL8: 19445476.32 | AN8: ='I8 Input 04 Trueup Sett'!B64 -> 4919229.58 | AP8: 5863038.051 | AR8: 5858197.405 | AS8: 4840.645333 | AU8: 8663208.687 | AV8: ='I8 Input 04 Trueup Sett'!V15 -> 8762876.627 | AW8: =AV8/AU8-1 -> 0.01150473729 | AZ8: ='I8 Input 04 Trueup Sett'!L33 -> 0.09849702601 | BA8: ='Rev3 GA Analysis '!AU19 -> 0 | BB8: -0.09849702601
A9: 202305 | B9: ='I10 Input 05 Trueup Sett'!V15 -> 8209871.553 | C9: ='I10 Input 05 Trueup Sett'!W15 -> 770490.8634 | D9: ='I10 Input 05 Trueup Sett'!X15 -> 147352.2541 | E9: ='I10 Input 05 Trueup Sett'!Y15 -> 820560.7271 | F9: ='I10 Input 05 Trueup Sett'!Z15 -> -197422.1178 | G9: ='I11 Input Rev 05 Init'!C12 -> 234200.37 | H9: 36778.25224 | J9: ='I10 Input 05 Trueup Sett'!C10 -> 18443214.08 | K9: ='I10 Input 05 Trueup Sett'!D10 -> 322522.32 | L9: 986794.69 | M9: 18286.43 | N9: ='I10 Input 05 Trueup Sett'!C11 -> 19430008.77 | O9: ='I10 Input 05 Trueup Sett'!D11 -> 340808.75 | Q9: ='I10 Input 05 Trueup Sett'!B76 -> 1424300.1 | S9: ='I10 Input 05 Trueup Sett'!C11 -> 19430008.77 | T9: ='I10 Input 05 Trueup Sett'!C30 -> 19363944.73 | U9: 66064.03756 | V9: -0.003400103332 | X9: =SUM('I10 Input 05 Trueup Sett'!C20:C25) -> 8171811.067 | Y9: ='I10 Input 05 Trueup Sett'!C44 -> 8175995.618 | Z9: -4184.550509 | AA9: 0.0005120713725 | AC9: 0.420576808 | AE9: ='I10 Input 05 Trueup Sett'!D11 -> 340808.75 | AF9: ='I10 Input 05 Trueup Sett'!D30 -> 963014.632 | AG9: 770490.8634 | AH9: 192523.7686 | AJ9: 8171811.067 | AK9: 11192133.67 | AL9: 19363944.73 | AN9: ='I10 Input 05 Trueup Sett'!B64 -> 5179605.98 | AP9: 6012527.685 | AR9: 6011806.288 | AS9: 721.3977896 | AU9: 8171811.067 | AV9: ='I10 Input 05 Trueup Sett'!V15 -> 8209871.553 | AW9: 0.004657533828 | AZ9: ='I10 Input 05 Trueup Sett'!L33 -> 0.09994805908 | BA9: ='Rev3 GA Analysis '!AU20 -> 0 | BB9: -0.09994805908
A10: 202306 | B10: ='I12 Input 06 Trueup Sett'!V15 -> 8939597.783 | C10: ='I12 Input 06 Trueup Sett'!W15 -> 850258.7956 | D10: ='I12 Input 06 Trueup Sett'!X15 -> 277817.0712 | E10: ='I12 Input 06 Trueup Sett'!Y15 -> 738566.5055 | F10: ='I12 Input 06 Trueup Sett'!Z15 -> -166124.781 | G10: ='I13 Input Rev 06 Init'!C12 -> 187350.39 | H10: 21225.60896 | J10: ='I12 Input 06 Trueup Sett'!C10 -> 19093937.1 | K10: ='I12 Input 06 Trueup Sett'!D10 -> 580068.36 | L10: 784522.09 | M10: 26149.32 | N10: ='I12 Input 06 Trueup Sett'!C11 -> 19878459.19 | O10: ='I12 Input 06 Trueup Sett'!D11 -> 606217.68 | Q10: ='I12 Input 06 Trueup Sett'!B76 -> 1252078.52 | S10: ='I12 Input 06 Trueup Sett'!C11 -> 19878459.19 | T10: ='I12 Input 06 Trueup Sett'!C30 -> 19703817.2 | U10: 174641.9918 | V10: -0.008785489364 | X10: =SUM('I12 Input 06 Trueup Sett'!C20:C25) -> 8836581.3 | Y10: ='I12 Input 06 Trueup Sett'!C44 -> 8856425.793 | Z10: -19844.49221 | AA10: 0.002245720549 | AC10: 0.4445304948 | AE10: ='I12 Input 06 Trueup Sett'!D11 -> 606217.68 | AF10: ='I12 Input 06 Trueup Sett'!D30 -> 1166550.957 | AG10: 850258.7956 | AH10: 316292.1618 | AJ10: 8836581.3 | AK10: 10867235.9 | AL10: 19703817.2 | AN10: ='I12 Input 06 Trueup Sett'!B64 -> 4723319.77 | AP10: 6143916.128 | AR10: 6143319.873 | AS10: 596.2548537 | AU10: 8836581.3 | AV10: ='I12 Input 06 Trueup Sett'!V15 -> 8939597.783 | AW10: 0.0116579568 | AZ10: ='I12 Input 06 Trueup Sett'!L33 -> 0.08261742009 | BA10: ='Rev3 GA Analysis '!AU21 -> 0 | BB10: -0.08261742009
A11: 202307 | B11: ='I14 Input 07 Trueup Sett'!V15 -> 11009328.58 | C11: ='I14 Input 07 Trueup Sett'!W15 -> 1038979.919 | D11: ='I14 Input 07 Trueup Sett'!X15 -> 452314.0748 | E11: ='I14 Input 07 Trueup Sett'!Y15 -> 551482.3822 | F11: ='I14 Input 07 Trueup Sett'!Z15 -> 35183.46215 | G11: ='I15 Input Rev 07 Init'!C12 -> 162513.8 | H11: 197697.2621 | J11: ='I14 Input 07 Trueup Sett'!C10 -> 20874316.19 | K11: ='I14 Input 07 Trueup Sett'!D10 -> 850093.66 | L11: 863913.49 | M11: 37464.83 | N11: ='I14 Input 07 Trueup Sett'!C11 -> 21738229.68 | O11: ='I14 Input 07 Trueup Sett'!D11 -> 887558.49 | Q11: ='I14 Input 07 Trueup Sett'!B76 -> 889244.76 | S11: ='I14 Input 07 Trueup Sett'!C11 -> 21738229.68 | T11: ='I14 Input 07 Trueup Sett'!C30 -> 21432508.47 | U11: 305721.205 | V11: -0.01406375816 | X11: =SUM('I14 Input 07 Trueup Sett'!C20:C25) -> 10819729.64 | Y11: ='I14 Input 07 Trueup Sett'!C44 -> 10828810.21 | Z11: -9080.572124 | AA11: 0.0008392605384 | AC11: 0.4977281867 | AE11: ='I14 Input 07 Trueup Sett'!D11 -> 887558.49 | AF11: ='I14 Input 07 Trueup Sett'!D30 -> 1447190.644 | AG11: 1038979.919 | AH11: 408210.7252 | AJ11: 10819729.64 | AK11: 10612778.83 | AL11: 21432508.47 | AN11: ='I14 Input 07 Trueup Sett'!B64 -> 3986098.22 | AP11: 6626680.613 | AR11: 6626084.527 | AS11: 596.0860362 | AU11: 10819729.64 | AV11: ='I14 Input 07 Trueup Sett'!V15 -> 11009328.58 | AW11: 0.01752344468 | AZ11: ='I14 Input 07 Trueup Sett'!L33 -> 0.05009228114 | BA11: ='Rev3 GA Analysis '!AU22 -> 0 | BB11: -0.05009228114
A12: 202308 | B12: ='I16 Input 08 Trueup Sett'!V15 -> 9875373.585 | C12: ='I16 Input 08 Trueup Sett'!W15 -> 940128.3367 | D12: ='I16 Input 08 Trueup Sett'!X15 -> 314150.559 | E12: ='I16 Input 08 Trueup Sett'!Y15 -> 728057.3915 | F12: ='I16 Input 08 Trueup Sett'!Z15 -> -102079.6138 | G12: ='I17 Input Rev 08 Init'!C12 -> -3669.12 | H12: -105748.7338 | J12: ='I16 Input 08 Trueup Sett'!C10 -> 19944761.83 | K12: ='I16 Input 08 Trueup Sett'!D10 -> 625707.61 | L12: 770241.5 | M12: 26177.97 | N12: ='I16 Input 08 Trueup Sett'!C11 -> 20715003.33 | O12: ='I16 Input 08 Trueup Sett'!D11 -> 651885.58 | Q12: ='I16 Input 08 Trueup Sett'!B76 -> 1212483.09 | S12: ='I16 Input 08 Trueup Sett'!C11 -> 20715003.33 | T12: ='I16 Input 08 Trueup Sett'!C30 -> 20478368.42 | U12: 236634.9053 | V12: -0.0114233583 | X12: =SUM('I16 Input 08 Trueup Sett'!C20:C25) -> 9733281.879 | Y12: ='I16 Input 08 Trueup Sett'!C44 -> 12905684.85 | Z12: -3172402.971 | AA12: 0.3259335351 | AC12: 0.4698662956 | AE12: ='I16 Input 08 Trueup Sett'!D11 -> 651885.58 | AF12: ='I16 Input 08 Trueup Sett'!D30 -> 1260518.111 | AG12: 940128.3367 | AH12: 320389.7745 | AJ12: 9733281.879 | AK12: 10745086.55 | AL12: 20478368.42 | AN12: ='I16 Input 08 Trueup Sett'!B64 -> 4268877.49 | AP12: 6476209.056 | AR12: 6475612.98 | AS12: 596.0761966 | AU12: 9733281.879 | AV12: ='I16 Input 08 Trueup Sett'!V15 -> 9875373.585 | AW12: 0.01459854022 | AZ12: ='I16 Input 08 Trueup Sett'!L33 -> 0.07372454168 | BA12: ='Rev3 GA Analysis '!AU23 -> 0 | BB12: -0.07372454168
A13: 202309 | B13: ='I18 Input 09 Trueup Sett'!V15 -> 8829508.328 | C13: ='I18 Input 09 Trueup Sett'!W15 -> 827291.7666 | D13: ='I18 Input 09 Trueup Sett'!X15 -> 366710.2273 | E13: ='I18 Input 09 Trueup Sett'!Y15 -> 494307.4268 | F13: ='I18 Input 09 Trueup Sett'!Z15 -> -33725.88758 | G13: ='I19 Input Rev 09 Init'!C12 -> 94247.97 | H13: 60522.08242 | J13: ='I18 Input 09 Trueup Sett'!C10 -> 18297579.24 | K13: ='I18 Input 09 Trueup Sett'!D10 -> 733006.83 | L13: 741934.17 | M13: 31189.95 | N13: ='I18 Input 09 Trueup Sett'!C11 -> 19039513.41 | O13: ='I18 Input 09 Trueup Sett'!D11 -> 764196.78 | Q13: ='I18 Input 09 Trueup Sett'!B76 -> 846173.17 | S13: ='I18 Input 09 Trueup Sett'!C11 -> 19039513.41 | T13: ='I18 Input 09 Trueup Sett'!C30 -> 18842351.66 | U13: 197161.7522 | V13: -0.01035539869 | X13: =SUM('I18 Input 09 Trueup Sett'!C20:C25) -> 8714332.71 | Y13: ='I18 Input 09 Trueup Sett'!C44 -> 8714436.59 | Z13: -103.8807891 | AA13: 1.1920682e-05 | AC13: 0.4576972385 | AE13: ='I18 Input 09 Trueup Sett'!D11 -> 764196.78 | AF13: ='I18 Input 09 Trueup Sett'!D30 -> 1206711.915 | AG13: 827291.7666 | AH13: 379420.1482 | AJ13: 8714332.71 | AK13: 10128018.95 | AL13: 18842351.66 | AN13: ='I18 Input 09 Trueup Sett'!B64 -> 3924844.59 | AP13: 6203174.358 | AR13: 6202538.092 | AS13: 636.2659309 | AU13: 8714332.71 | AV13: ='I18 Input 09 Trueup Sett'!V15 -> 8829508.328 | AW13: 0.013216803 | AZ13: ='I18 Input 09 Trueup Sett'!L33 -> 0.05598357331 | BA13: ='Rev3 GA Analysis '!AU24 -> 0 | BB13: -0.05598357331
A14: 202310 | B14: ='I20 Input 10 Trueup Sett'!V15 -> 8604461.358 | C14: ='I20 Input 10 Trueup Sett'!W15 -> 804625.1896 | D14: ='I20 Input 10 Trueup Sett'!X15 -> 273168.3417 | E14: ='I20 Input 10 Trueup Sett'!Y15 -> 702524.0783 | F14: ='I20 Input 10 Trueup Sett'!Z15 -> -171067.2304 | G14: ='I21 Input Rev 10 Init'!C12 -> 11011.89 | H14: -160055.3404 | J14: ='I20 Input 10 Trueup Sett'!C10 -> 18253066.7 | K14: ='I20 Input 10 Trueup Sett'!D10 -> 576644.25 | L14: 455092.03 | M14: 15146.22 | N14: ='I20 Input 10 Trueup Sett'!C11 -> 18708158.73 | O14: ='I20 Input 10 Trueup Sett'!D11 -> 591790.47 | Q14: ='I20 Input 10 Trueup Sett'!B76 -> 1210447.91 | S14: ='I20 Input 10 Trueup Sett'!C11 -> 18708158.73 | T14: ='I20 Input 10 Trueup Sett'!C30 -> 18535678.74 | U14: 172479.9853 | V14: -0.009219506197 | X14: =SUM('I20 Input 10 Trueup Sett'!C20:C25) -> 8504356.808 | Y14: ='I20 Input 10 Trueup Sett'!C44 -> 8497050.503 | Z14: 7306.305135 | AA14: -0.0008591249521 | AC14: 0.4545801076 | AE14: ='I20 Input 10 Trueup Sett'!D11 -> 591790.47 | AF14: ='I20 Input 10 Trueup Sett'!D30 -> 1112042.196 | AG14: 804625.1896 | AH14: 307417.0064 | AJ14: 8504356.808 | AK14: 10031321.94 | AL14: 18535678.74 | AN14: ='I20 Input 10 Trueup Sett'!B64 -> 3882685 | AP14: 6148636.937 | AR14: 6145582.93 | AS14: 3054.006575 | AU14: 8504356.808 | AV14: ='I20 Input 10 Trueup Sett'!V15 -> 8604461.358 | AW14: 0.01177097243 | AZ14: ='I20 Input 10 Trueup Sett'!L33 -> 0.08164649117 | BA14: ='Rev3 GA Analysis '!AU25 -> 0 | BB14: -0.08164649117
A15: 202311 | B15: ='I22 Input 11 Trueup Sett'!V15 -> 9731656.145 | C15: ='I22 Input 11 Trueup Sett'!W15 -> 1095734.888 | D15: ='I22 Input 11 Trueup Sett'!X15 -> 298497.4229 | E15: ='I22 Input 11 Trueup Sett'!Y15 -> 689294.6284 | F15: ='I22 Input 11 Trueup Sett'!Z15 -> 107942.8366 | G15: ='I23 Input Rev 11 Init'!C12 -> 162905.98 | H15: 270848.8166 | J15: ='I22 Input 11 Trueup Sett'!C10 -> 19495196.68 | K15: ='I22 Input 11 Trueup Sett'!D10 -> 593503.34 | L15: 294078.53 | M15: 9126.15 | N15: ='I22 Input 11 Trueup Sett'!C11 -> 19789275.21 | O15: ='I22 Input 11 Trueup Sett'!D11 -> 602629.49 | Q15: ='I22 Input 11 Trueup Sett'!B76 -> 1135689.11 | S15: ='I22 Input 11 Trueup Sett'!C11 -> 19789275.21 | T15: ='I22 Input 11 Trueup Sett'!C36 -> 19581482.46 | U15: 207792.7508 | V15: -0.01050027091 | X15: =SUM('I22 Input 11 Trueup Sett'!C20:C31) -> 9605538.508 | Y15: ='I22 Input 11 Trueup Sett'!C46 -> 9619678.027 | Z15: -14139.5182 | AA15: 0.001472017231 | AC15: 0.4853911225 | AE15: ='I22 Input 11 Trueup Sett'!D11 -> 602629.49 | AF15: ='I22 Input 11 Trueup Sett'!D36 -> 1382466.284 | AG15: 1095734.888 | AH15: 286731.3965 | AJ15: 9605538.508 | AK15: 9975943.951 | AL15: 19581482.46 | AN15: ='I22 Input 11 Trueup Sett'!B64 -> 3755295.76 | AP15: 6220648.191 | AR15: 6209835.71 | AS15: 10812.4808 | AU15: 9605538.508 | AV15: ='I22 Input 11 Trueup Sett'!V15 -> 9731656.145 | AW15: 0.01312967897 | AZ15: ='I22 Input 11 Trueup Sett'!L33 -> 0.07083014629 | BA15: ='Rev3 GA Analysis '!AU26 -> 0 | BB15: -0.07083014629
A16: 202312 | B16: ='I24 Input 12 Trueup Sett'!V15 -> 10937483.4 | C16: ='I24 Input 12 Trueup Sett'!W15 -> 1191369.899 | D16: ='I24 Input 12 Trueup Sett'!X15 -> 340610.4307 | E16: ='I24 Input 12 Trueup Sett'!Y15 -> 724576.7436 | F16: ='I24 Input 12 Trueup Sett'!Z15 -> 126182.7247 | G16: ='I25 Input Rev 12 Init'!C12 -> -54941.7 | H16: 71241.02469 | J16: ='I24 Input 12 Trueup Sett'!C10 -> 19766502.12 | K16: ='I24 Input 12 Trueup Sett'!D10 -> 617049.42 | L16: 145030.07 | M16: 4616.89 | N16: ='I24 Input 12 Trueup Sett'!C11 -> 19911532.19 | O16: ='I24 Input 12 Trueup Sett'!D11 -> 621666.31 | Q16: ='I24 Input 12 Trueup Sett'!B76 -> 1130245.18 | S16: ='I24 Input 12 Trueup Sett'!C11 -> 19911532.19 | T16: ='I24 Input 12 Trueup Sett'!C36 -> 19656646.32 | U16: 254885.8669 | V16: -0.0128009168 | X16: =SUM('I24 Input 12 Trueup Sett'!C20:C31) -> 10774081.35 | Y16: ='I24 Input 12 Trueup Sett'!C46 -> 10798327.26 | Z16: -24245.90216 | AA16: 0.002250391599 | AC16: 0.5410975535 | AE16: ='I24 Input 12 Trueup Sett'!D11 -> 621666.31 | AF16: ='I24 Input 12 Trueup Sett'!D36 -> 1451735.697 | AG16: 1191369.899 | AH16: 260365.7983 | AJ16: 10774081.35 | AK16: 8882564.968 | AL16: 19656646.32 | AN16: ='I24 Input 12 Trueup Sett'!B64 -> 2850485.17 | AP16: 6032079.798 | AR16: 6005504.95 | AS16: 26574.84835 | AU16: 10774081.35 | AV16: ='I24 Input 12 Trueup Sett'!V15 -> 10937483.4 | AW16: 0.0151662158 | AZ16: ='I24 Input 12 Trueup Sett'!L33 -> 0.06624711711 | BA16: ='Rev3 GA Analysis '!AU27 -> 0 | BB16: -0.06624711711
B17: =SUM(B5:B16) -> 117874243.7 | C17: 11403960.07 | D17: 3600740.382 | E17: 8674551.26 | F17: =SUM(F5:F16) -> -871331.5721 | G17: =SUM(G5:G16) -> 990621.48 | H17: =SUM(H5:H16) -> 119289.9079 | J17: 240546306.4 | K17: 7171157.13 | L17: 6613684.78 | M17: 202978.96 | N17: 247159991.2 | O17: 7374136.09 | Q17: 14339308.59 | S17: =SUM(S5:S16) -> 247159991.2 | T17: 244523898.4 | U17: 2636092.77 | V17: =T17/S17-1 -> -0.0106655319 | X17: =SUM(X5:X16) -> 116261670.3 | Y17: 119874394.5 | Z17: -3612724.209 | AA17: =Y17/X17-1 -> 0.03107407799 | AC17: 0.4703903317 | AE17: =SUM(AE5:AE16) -> 7374136.09 | AF17: 15002230.58 | AG17: 11403960.07 | AH17: 3598270.506 | AJ17: =SUM(AJ5:AJ16) -> 116261670.3 | AK17: 128262228.2 | AL17: 244523898.4 | AN17: 53014229.29 | AP17: =SUM(AP5:AP16) -> 75247998.89 | AR17: =SUM(AR5:AR16) -> 75435149.17 | AS17: =SUM(AS5:AS16) -> -187150.2866 | AU17: =SUM(AU5:AU16) -> 116261670.3 | AV17: =SUM(AV5:AV16) -> 117874243.7 | AW17: 0.01387020747
A20: 4705 GA | B20: ='Rec1 1588 Commodity'!F24 -> -589487.0603
A22: 4707 GA | B22: ='Rec2 1589 Class B'!J24 -> 589487.0603
A24: Should Be $0 | B24: =SUM(B20:B22) -> -1.28056854e-09
A26: (Owed To)/Owed From IESO | B26: =-H17 -> -119289.9079
A28: (Owed To)/Owed From Power Consumer | B28: ='Rec1 1588 Commodity'!L20 -> 175125.2014
A30: (Owed To)/Owed From Class B | B30: ='Rec2 1589 Class B'!K20 -> 242453.7106
A32: (Owed To)/Owed From | B32: =SUM(B26:B30) -> 298289.0042
A35: Unresolved Difference as % of Expected GA Payments to IESO | B35: ='Rev3 GA Analysis '!D67 -> -0.001384025834
A37: Account 1588 as % of Account 4705 | B37: ='Rev3 GA Analysis '!G99 -> 0.01153858446

Sheet I1b RPP Rates
B4: =Admin!B8 -> 202301 | C4: =B4+1 -> 202302 | D4: =C4+1 -> 202303 | E4: 202304 | F4: 202305 | G4: 202306 | H4: 202307 | I4: 202308 | J4: 202309 | K4: 202310 | L4: 202311 | M4: 202312
A5: RPPT1 | B5: ='I2 Input 01 Trueup Sett '!Q6 -> 0.08700034793 | C5: ='I4 Input 02 Trueup Sett'!Q6 -> 0.0869999922 | D5: ='I6 Input 03 Trueup Sett'!Q6 -> 0.08700020612 | E5: ='I8 Input 04 Trueup Sett'!Q6 -> 0.08700014176 | F5: ='I10 Input 05 Trueup Sett'!Q6 -> 0.08700035284 | G5: ='I12 Input 06 Trueup Sett'!Q6 -> 0.08700007152 | H5: ='I14 Input 07 Trueup Sett'!Q6 -> 0.087000317 | I5: ='I16 Input 08 Trueup Sett'!Q6 -> 0.08700054023 | J5: ='I18 Input 09 Trueup Sett'!Q6 -> 0.08699989983 | K5: ='I20 Input 10 Trueup Sett'!Q6 -> 0.08702943147 | L5: ='I22 Input 11 Trueup Sett'!Q6 -> 0.1029971029 | M5: ='I24 Input 12 Trueup Sett'!Q6 -> 0.1030001606
A6: RPPT2 | B6: ='I2 Input 01 Trueup Sett '!Q7 -> 0.1030001125 | C6: ='I4 Input 02 Trueup Sett'!Q7 -> 0.1030006057 | D6: ='I6 Input 03 Trueup Sett'!Q7 -> 0.1030001198 | E6: ='I8 Input 04 Trueup Sett'!Q7 -> 0.1030018462 | F6: ='I10 Input 05 Trueup Sett'!Q7 -> 0.1029994908 | G6: ='I12 Input 06 Trueup Sett'!Q7 -> 0.1030009826 | H6: ='I14 Input 07 Trueup Sett'!Q7 -> 0.1030002516 | I6: ='I16 Input 08 Trueup Sett'!Q7 -> 0.1029997367 | J6: ='I18 Input 09 Trueup Sett'!Q7 -> 0.1030013799 | K6: ='I20 Input 10 Trueup Sett'!Q7 -> 0.1039439819 | L6: ='I22 Input 11 Trueup Sett'!Q7 -> 0.1250004963 | M6: ='I24 Input 12 Trueup Sett'!Q7 -> 0.124999833
A7: RPPTOUMID | B7: ='I2 Input 01 Trueup Sett '!Q8 -> 0.1019966427 | C7: ='I4 Input 02 Trueup Sett'!Q8 -> 0.1019973061 | D7: ='I6 Input 03 Trueup Sett'!Q8 -> 0.1019959874 | E7: ='I8 Input 04 Trueup Sett'!Q8 -> 0.1019930064 | F7: ='I10 Input 05 Trueup Sett'!Q8 -> 0.1019875654 | G7: ='I12 Input 06 Trueup Sett'!Q8 -> 0.1019948942 | H7: ='I14 Input 07 Trueup Sett'!Q8 -> 0.1019953096 | I7: ='I16 Input 08 Trueup Sett'!Q8 -> 0.1019983453 | J7: ='I18 Input 09 Trueup Sett'!Q8 -> 0.1020018973 | K7: ='I20 Input 10 Trueup Sett'!Q8 -> 0.102017355 | L7: ='I22 Input 11 Trueup Sett'!Q8 -> 0.1219873269 | M7: ='I24 Input 12 Trueup Sett'!Q8 -> 0.1219984673
A8: RPPTOUOFF | B8: ='I2 Input 01 Trueup Sett '!Q9 -> 0.07399880657 | C8: ='I4 Input 02 Trueup Sett'!Q9 -> 0.07399904148 | D8: ='I6 Input 03 Trueup Sett'!Q9 -> 0.07399628373 | E8: ='I8 Input 04 Trueup Sett'!Q9 -> 0.07399550308 | F8: ='I10 Input 05 Trueup Sett'!Q9 -> 0.07399346824 | G8: ='I12 Input 06 Trueup Sett'!Q9 -> 0.07399503161 | H8: ='I14 Input 07 Trueup Sett'!Q9 -> 0.07399799136 | I8: ='I16 Input 08 Trueup Sett'!Q9 -> 0.07399880828 | J8: ='I18 Input 09 Trueup Sett'!Q9 -> 0.07400034582 | K8: ='I20 Input 10 Trueup Sett'!Q9 -> 0.07400750633 | L8: ='I22 Input 11 Trueup Sett'!Q9 -> 0.08699072196 | M8: ='I24 Input 12 Trueup Sett'!Q9 -> 0.08699907145
A9: RPPTOUON | B9: ='I2 Input 01 Trueup Sett '!Q10 -> 0.1509928165 | C9: ='I4 Input 02 Trueup Sett'!Q10 -> 0.1509850526 | D9: ='I6 Input 03 Trueup Sett'!Q10 -> 0.1509709349 | E9: ='I8 Input 04 Trueup Sett'!Q10 -> 0.1509491466 | F9: ='I10 Input 05 Trueup Sett'!Q10 -> 0.1509189596 | G9: ='I12 Input 06 Trueup Sett'!Q10 -> 0.1509526724 | H9: ='I14 Input 07 Trueup Sett'!Q10 -> 0.1509599668 | I9: ='I16 Input 08 Trueup Sett'!Q10 -> 0.1509723954 | J9: ='I18 Input 09 Trueup Sett'!Q10 -> 0.1509576213 | K9: ='I20 Input 10 Trueup Sett'!Q10 -> 0.1509657868 | L9: ='I22 Input 11 Trueup Sett'!Q10 -> 0.1819775924 | M9: ='I24 Input 12 Trueup Sett'!Q10 -> 0.1819975312
A10: RPPULOMID | B10: ='I2 Input 01 Trueup Sett '!Q11 -> 0 | C10: ='I4 Input 02 Trueup Sett'!Q11 -> 0 | D10: ='I6 Input 03 Trueup Sett'!Q11 -> 0 | E10: ='I8 Input 04 Trueup Sett'!Q11 -> 0 | F10: ='I10 Input 05 Trueup Sett'!Q11 -> 0 | G10: ='I12 Input 06 Trueup Sett'!Q11 -> 0 | H10: ='I14 Input 07 Trueup Sett'!Q11 -> 0 | I10: ='I16 Input 08 Trueup Sett'!Q11 -> 0 | J10: ='I18 Input 09 Trueup Sett'!Q11 -> 0 | K10: ='I20 Input 10 Trueup Sett'!Q11 -> 0 | L10: ='I22 Input 11 Trueup Sett'!Q11 -> 0.1220040582 | M10: ='I24 Input 12 Trueup Sett'!Q11 -> 0.1220016532
A11: RPPULOOFF | B11: ='I2 Input 01 Trueup Sett '!Q12 -> 0 | C11: ='I4 Input 02 Trueup Sett'!Q12 -> 0 | D11: ='I6 Input 03 Trueup Sett'!Q12 -> 0 | E11: ='I8 Input 04 Trueup Sett'!Q12 -> 0 | F11: ='I10 Input 05 Trueup Sett'!Q12 -> 0 | G11: ='I12 Input 06 Trueup Sett'!Q12 -> 0 | H11: ='I14 Input 07 Trueup Sett'!Q12 -> 0 | I11: ='I16 Input 08 Trueup Sett'!Q12 -> 0 | J11: ='I18 Input 09 Trueup Sett'!Q12 -> 0 | K11: ='I20 Input 10 Trueup Sett'!Q12 -> 0 | L11: ='I22 Input 11 Trueup Sett'!Q12 -> 0.08701100515 | M11: ='I24 Input 12 Trueup Sett'!Q12 -> 0.08699616815
A12: RPPULOON | B12: ='I2 Input 01 Trueup Sett '!Q13 -> 0 | C12: ='I4 Input 02 Trueup Sett'!Q13 -> 0 | D12: ='I6 Input 03 Trueup Sett'!Q13 -> 0 | E12: ='I8 Input 04 Trueup Sett'!Q13 -> 0 | F12: ='I10 Input 05 Trueup Sett'!Q13 -> 0 | G12: ='I12 Input 06 Trueup Sett'!Q13 -> 0 | H12: ='I14 Input 07 Trueup Sett'!Q13 -> 0 | I12: ='I16 Input 08 Trueup Sett'!Q13 -> 0 | J12: ='I18 Input 09 Trueup Sett'!Q13 -> 0 | K12: ='I20 Input 10 Trueup Sett'!Q13 -> 0 | L12: ='I22 Input 11 Trueup Sett'!Q13 -> 0.2860148392 | M12: ='I24 Input 12 Trueup Sett'!Q13 -> 0.2859891877
A13: RPPULOOVN | B13: ='I2 Input 01 Trueup Sett '!Q14 -> 0 | C13: ='I4 Input 02 Trueup Sett'!Q14 -> 0 | D13: ='I6 Input 03 Trueup Sett'!Q14 -> 0 | E13: ='I8 Input 04 Trueup Sett'!Q14 -> 0 | F13: ='I10 Input 05 Trueup Sett'!Q14 -> 0 | G13: ='I12 Input 06 Trueup Sett'!Q14 -> 0 | H13: ='I14 Input 07 Trueup Sett'!Q14 -> 0 | I13: ='I16 Input 08 Trueup Sett'!Q14 -> 0 | J13: ='I18 Input 09 Trueup Sett'!Q14 -> 0 | K13: ='I20 Input 10 Trueup Sett'!Q14 -> 0 | L13: ='I22 Input 11 Trueup Sett'!Q14 -> 0.02800721317 | M13: ='I24 Input 12 Trueup Sett'!Q14 -> 0.02799739792

Sheet I2 Input 01 Trueup Sett (hidden)
A1: Date: | B1: =Admin!B8 -> 202301 | C1: Trueup | K1: ="Data for 1st True up of RPP Settlement based on Actual IESO Invoice" -> Data for 1st True up of RPP Settlement based on Actual IESO Invoice | P1: For Reconciliation
A3: Wholesale Electricty | B3: Year | C3: 2023 | E3: Rate | P3: Actual RPP Revenue and GA
B4: dateref | C4: 202301 | K4: Wholesale Volume data per IESO Power Bill: | L4: GA RPP/non-RPP Ratios | M4: GA Volumes | N4: Energy Volumes | P4: =B1 -> 202301
K5: AQEW | M5: =C10 -> 23466312.81 | N5: =+M5 -> 23466312.81 | P5: RPP Revenue Prices | Q5: RPP Rate | R5: Estimated RPP Energy Price | S5: GA actual IESO billed | T5: Total Commodity | U5: Difference | V5: kWh Volumes | W5: $ Estimated RPP Revenue | X5: $ Estimated RPP Energy | Y5: $ Estimated GA | Z5: $ Estimated RPP Settlement
B6: Wholesale | K6: Embedded Generation | M6: =SUM(C8:C9) -> 109117.8 | N6: =+M6 -> 109117.8 | P6: RPPT1 | Q6: =E20 -> 0.08700034793 | R6: =E39 -> 0.03483921668 | S6: =L33 -> 0.05376906831 | T6: =R6+S6 -> 0.08860828499 | U6: =+Q6-T6 -> -0.001607937055 | V6: =M18 -> 1016180.959 | W6: =Q6*V6 -> 88408.09699 | X6: =R6*V6 -> 35402.94861 | Y6: =+V6*S6 -> 54639.1034 | Z6: =W6-X6-Y6 -> -1633.955019
B7: Source | C7: kWh | D7: Total Cost | K7: Class A customer Volumes for GA (TLF included) | M7: =-B57 -> -5244745.87 | P7: RPPT2 | Q7: =E21 -> 0.1030001125 | R7: =R6 -> 0.03483921668 | S7: =S6 -> 0.05376906831 | T7: =R7+S7 -> 0.08860828499 | U7: =+Q7-T7 -> 0.01439182752 | V7: =M19 -> 332385.9811 | W7: =Q7*V7 -> 34235.79345 | X7: =R7*V7 -> 11580.06722 | Y7: =+V7*S7 -> 17872.08453 | Z7: =W7-X7-Y7 -> 4783.641711
B8: FIT | C8: 102547.99 | D8: 3915.91 | E8: =D8/C8 -> 0.03818612144 | M8: =+M5+M6+M7 -> 18330684.74 | N8: =+N5+N6+N7 -> 23575430.61 | P8: RPPTOUMID | Q8: =E23 -> 0.1019966427 | R8: =E40 -> 0.03561543194 | S8: =S7 -> 0.05376906831 | T8: 0.08938450025 | U8: 0.01261214249 | V8: 1829083.039 | W8: 186560.3293 | X8: 65143.5825 | Y8: 98348.09089 | Z8: 23068.65592
B9: microFIT | C9: 6569.81 | D9: 246.12 | E9: =D9/C9 -> 0.0374622706 | P9: RPPTOUOFF | Q9: =E24 -> 0.07399880657 | R9: =R8 -> 0.03561543194 | S9: 0.05376906831 | T9: 0.08938450025 | U9: -0.01538569368 | V9: 6576470.12 | W9: 486650.9404 | X9: 234223.824 | Y9: 353610.6711 | Z9: -101183.5548
B10: WHOLESALE | C10: 23466312.81 | D10: 801678.9 | E10: =D10/C10 -> 0.03416296827 | K10: Estimated Retail Volume Revenue Data (TLF Included) | L10: RPP/non-RPP Ratios | M10: GA Volumes | N10: Energy Volumes | P10: RPPTOUON | Q10: 0.1509928165 | R10: =R9 -> 0.03561543194 | S10: 0.05376906831 | T10: 0.08938450025 | U10: 0.06160831621 | V10: 1887271.068 | W10: 284964.374 | X10: 67215.97428 | Y10: 101476.807 | Z10: 116271.5927
B11: Grand Total | C11: 23575430.61 | D11: 805840.93 | K11: Estimated Retail Revenue Data (Net of Retail Billed/Unbilled) | M11: =+M15 -> 18330684.74 | N11: =+N15 -> 23575430.61 | P11: RPPULOMID | Q11: 0 | R11: 0 | S11: 0 | T11: 0 | U11: 0 | V11: 0 | W11: 0 | X11: 0 | Y11: 0 | Z11: 0
P12: RPPULOOFF | Q12: 0 | R12: 0 | S12: 0 | T12: 0 | U12: 0 | V12: 0 | W12: 0 | X12: 0 | Y12: 0 | Z12: 0
K13: Estimated RPP Sales Quantities | L13: =SUM(C20:C25)/(C30-B57) -> 0.6350767215 | M13: =M8*L13 -> 11641391.17 | N13: =M13 -> 11641391.17 | P13: RPPULOON | Q13: 0 | R13: 0 | S13: 0 | T13: 0 | U13: 0 | V13: 0 | W13: 0 | X13: 0 | Y13: 0 | Z13: 0
A14: RPP Revenue Volume and Price Data | K14: Estimated non-RPP Sales Quantities | L14: =1-L13 -> 0.3649232785 | M14: =M8*L14 -> 6689293.572 | N14: =N8-N13 -> 11934039.44 | P14: RPPULOOVN | Q14: 0 | R14: 0 | S14: 0 | T14: 0 | U14: 0 | V14: 0 | W14: 0 | X14: 0 | Y14: 0 | Z14: 0
B15: bill_year | C15: 2023 | K15: Estimated Retail Revenue kWh Volumes | L15: =+L13+L14 -> 1 | M15: =+M13+M14 -> 18330684.74 | N15: =+N13+N14 -> 23575430.61 | V15: =SUM(V6:V14) -> 11641391.17 | W15: =SUM(W6:W14) -> 1080819.534 | X15: =SUM(X6:X14) -> 413566.3966 | Y15: =SUM(Y6:Y14) -> 625946.7569 | Z15: =SUM(Z6:Z14) -> 41306.38058
B16: bill_month | C16: 1 | Z16: =W15-X15-Y15-Z15 -> -1.746229827e-10
K17: Estimated RPP Revenue Volume and Price Data | L17: Actual % | M17: kWh Volumes
B18: Row Labels | C18: usagebilled | D18: amountbilled | E18: Rate | K18: RPPT1 | L18: =C20/SUM($C$20:$C$25) -> 0.08729033706 | M18: =$M$13*L18 -> 1016180.959
B19: RPPTIER | K19: RPPT2 | L19: =C21/SUM($C$20:$C$25) -> 0.02855208423 | M19: =$M$13*L19 -> 332385.9811
B20: RPPT1 | C20: 990918.4762 | D20: 86210.2522 | E20: =D20/C20 -> 0.08700034793 | K20: RPPTOUMID | L20: =C23/SUM($C$20:$C$25) -> 0.1571189399 | M20: 1829083.039
B21: RPPT2 | C21: 324122.7924 | D21: 33384.68408 | E21: =D21/C21 -> 0.1030001125 | K21: RPPTOUOFF | L21: =C24/SUM($C$20:$C$25) -> 0.5649213247 | M21: 6576470.12
B22: RPPTOU | K22: RPPTOUON | L22: 0.1621173141 | M22: 1887271.068
B23: RPPTOUMID | C23: 1783611.632 | D23: 181922.3984 | E23: 0.1019966427 | K23: RPPULOMID | L23: 0 | M23: 0
B24: RPPTOUOFF | C24: 6412977.623 | D24: 474552.6907 | E24: 0.07399880657 | K24: RPPULOOFF | L24: 0 | M24: 0
B25: RPPTOUON | C25: 1840353.093 | D25: 277880.0968 | E25: 0.1509928165 | K25: RPPULOON | L25: 0 | M25: 0
B26: RETAIL | K26: RPPULOOVN | L26: 0 | M26: 0
B27: NSLS | C27: 3692424.376 | D27: 127540.0355 | E27: 0.0345410014 | L27: =SUM(L18:L26) -> 1 | M27: =SUM(M18:M26) -> 11641391.17
B28: INTERVAL
B29: HOEP | C29: 8075317.754 | D29: 273632.9379 | E29: 0.03388509855
B30: Grand Total | C30: 23119725.75 | D30: 1455123.096
K31: Global Adjustment | L31: per kWh
C32: =C30/C11-1 -> -0.01932965177 | K32: Class B - GA actual8 | L32: =B49/100 -> 0.05380000114 | N32: GA Posted Price
K33: Class B - GA actual IESO billed | L33: =+M33/M8 -> 0.05376906831 | M33: =B65 -> 985623.84 | N33: GA Billed by IESO CT 148
A34: RPP COP Volume and Price Data
B35: bill_year | C35: 2023
B36: bill_month | C36: 1
B38: Row Labels | C38: usagebilled | D38: amountbilled | E38: Rate
B39: RPPTIERED | C39: 1316491.121 | D39: 45865.51941 | E39: =D39/C39 -> 0.03483921668
B40: RPPTOU | C40: 10043751.32 | D40: 357712.5417 | E40: 0.03561543194
B41: Grand Total | C41: 11360242.44 | D41: 403578.0611
C43: =SUM(C20:C25)-C41 -> -8258.827791
C44: =C43/C41 -> -0.0007269939732
A46: Global Adjustment - Actual
A47: ga_actual | B47: year
A48: month | B48: 2023
A49: 202301 | B49: 5.380000114
A52: Class A kWh
A53: Year | B53: 2023
A55: Class A
A56: Source | B56: kWh
A57: 202301 | B57: 5244745.87
A60: IESO Class B
A61: chargetype | B61: 148
A63: Sum of chargeamount | B63: year
A64: month | B64: 2023
A65: 202301 | B65: 985623.84

Sheet I3 Input Rev 01 Init (hidden)
A1: Reverse IESO Posted
A5: =Admin!B8 -> 202301
A6: RPP Revenue Prices | B6: kWh Volumes | C6: $ RPP Settlement
A7: RPPTiered_1 | B7: 977017.48 | C7: 4732.82
A8: RPPTiered_2 | B8: 298377.86 | C8: -3327.93
A9: RPPTOU_MID | B9: 1653542.88 | C9: -13838.93
A10: RPPTOU_OFF | B10: 5964539.41 | C10: 117105.43
A11: RPPTOU_ON | B11: 1735082.54 | C11: -99540.33
A12: Grand Total | B12: 10628560.17 | C12: 5131.06

Sheet I4 Input 02 Trueup Sett (hidden)
A1: Date: | B1: =Admin!B8+1 -> 202302 | C1: Trueup | K1: ="Data for 1st True up of RPP Settlement based on Actual IESO Invoice" -> Data for 1st True up of RPP Settlement based on Actual IESO Invoice | P1: For Reconciliation
A3: Wholesale Electricty | B3: Year | C3: 2023 | E3: Rate | P3: Actual RPP Revenue and GA
B4: dateref | C4: 202302 | K4: Wholesale Volume data per IESO Power Bill: | L4: GA RPP/non-RPP Ratios | M4: GA Volumes | N4: Energy Volumes | P4: =B1 -> 202302
K5: AQEW | M5: =C10 -> 21427804.6 | N5: =+M5 -> 21427804.6 | P5: RPP Revenue Prices | Q5: RPP Rate | R5: Estimated RPP Energy Price | S5: GA actual IESO billed | T5: Total Commodity | U5: Difference | V5: kWh Volumes | W5: $ Estimated RPP Revenue | X5: $ Estimated RPP Energy | Y5: $ Estimated GA | Z5: $ Estimated RPP Settlement
B6: Wholesale | K6: Embedded Generation | M6: =SUM(C8:C9) -> 261979.01 | N6: =+M6 -> 261979.01 | P6: RPPT1 | Q6: =E20 -> 0.0869999922 | R6: =E42 -> 0.02427626259 | S6: =L33 -> 0.08248820856 | T6: =R6+S6 -> 0.1067644712 | U6: =+Q6-T6 -> -0.01976447896 | V6: =M18 -> 908287.1 | W6: =Q6*V6 -> 79020.97061 | X6: =R6*V6 -> 22049.81615 | Y6: =+V6*S6 -> 74922.97574 | Z6: =W6-X6-Y6 -> -17951.82128
A7: FIT/mFIT | B7: Source | C7: kWh | D7: Total Cost | K7: Class A customer Volumes for GA (TLF included) | M7: =-B64 -> -4872482.76 | P7: RPPT2 | Q7: =E21 -> 0.1030006057 | R7: =R6 -> 0.02427626259 | S7: =S6 -> 0.08248820856 | T7: =R7+S7 -> 0.1067644712 | U7: =+Q7-T7 -> -0.003763865427 | V7: =M19 -> 330101.0243 | W7: =Q7*V7 -> 34000.60545 | X7: =R7*V7 -> 8013.619146 | Y7: =+V7*S7 -> 27229.44214 | Z7: =W7-X7-Y7 -> -1242.455833
B8: FIT | C8: 246458.66 | D8: 4730.18 | E8: =D8/C8 -> 0.01919258995 | M8: =+M5+M6+M7 -> 16817300.85 | N8: =+N5+N6+N7 -> 21689783.61 | P8: RPPTOUMID | Q8: =E23 -> 0.1019973061 | R8: =E43 -> 0.02455935687 | S8: =S7 -> 0.08248820856 | T8: 0.1070475654 | U8: -0.005050259336 | V8: 1668975.339 | W8: 170230.9885 | X8: 40988.96096 | Y8: 137670.7859 | Z8: -8428.758287
B9: microFIT | C9: 15520.35 | D9: 303.63 | E9: =D9/C9 -> 0.01956334748 | P9: RPPTOUOFF | Q9: =E24 -> 0.07399904148 | R9: =R8 -> 0.02455935687 | S9: 0.08248820856 | T9: 0.1070475654 | U9: -0.03304852396 | V9: 5912763.408 | W9: 437538.8247 | X9: 145213.6666 | Y9: 487733.2612 | Z9: -195408.1031
B10: WHOLESALE | C10: 21427804.6 | D10: 504134.75 | E10: =D10/C10 -> 0.02352713026 | K10: Estimated Retail Volume Revenue Data (TLF Included) | L10: RPP/non-RPP Ratios | M10: GA Volumes | N10: Energy Volumes | P10: RPPTOUON | Q10: 0.1509850526 | R10: =R9 -> 0.02455935687 | S10: 0.08248820856 | T10: 0.1070475654 | U10: 0.04393748711 | V10: 1735642.022 | W10: 262056.0019 | X10: 42626.25182 | Y10: 143170.0011 | Z10: 76259.74898
A11: Total Wholesale Electricity | B11: Grand Total | C11: 21689783.61 | D11: 509168.56 | K11: Estimated Retail Revenue Data (Net of Retail Billed/Unbilled) | M11: =+M15 -> 16817300.85 | N11: =+N15 -> 21689783.61 | P11: RPPULOMID | Q11: 0 | R11: 0 | S11: 0 | T11: 0 | U11: 0 | V11: 0 | W11: 0 | X11: 0 | Y11: 0 | Z11: 0
P12: RPPULOOFF | Q12: 0 | R12: 0 | S12: 0 | T12: 0 | U12: 0 | V12: 0 | W12: 0 | X12: 0 | Y12: 0 | Z12: 0
K13: Estimated RPP Sales Quantities | L13: =SUM(C20:C25)/(C30-B64) -> 0.6276731913 | M13: =M8*L13 -> 10555768.89 | N13: =M13 -> 10555768.89 | P13: RPPULOON | Q13: 0 | R13: 0 | S13: 0 | T13: 0 | U13: 0 | V13: 0 | W13: 0 | X13: 0 | Y13: 0 | Z13: 0
A14: RPP Revenue Volume and Price Data | K14: Estimated non-RPP Sales Quantities | L14: =1-L13 -> 0.3723268087 | M14: =M8*L14 -> 6261531.957 | N14: =N8-N13 -> 11134014.72 | P14: RPPULOOVN | Q14: 0 | R14: 0 | S14: 0 | T14: 0 | U14: 0 | V14: 0 | W14: 0 | X14: 0 | Y14: 0 | Z14: 0
B15: bill_year | C15: 2023 | K15: Estimated Retail Revenue kWh Volumes | L15: =+L13+L14 -> 1 | M15: =+M13+M14 -> 16817300.85 | N15: =+N13+N14 -> 21689783.61 | V15: =SUM(V6:V14) -> 10555768.89 | W15: =SUM(W6:W14) -> 982847.3912 | X15: =SUM(X6:X14) -> 258892.3147 | Y15: =SUM(Y6:Y14) -> 870726.466 | Z15: =SUM(Z6:Z14) -> -146771.3895
B16: bill_month | C16: 2 | Z16: =W15-X15-Y15-Z15 -> 0
K17: Estimated RPP Revenue Volume and Price Data | L17: Actual % | M17: kWh Volumes
B18: Row Labels | C18: usagebilled | D18: amountbilled | E18: Rate | K18: RPPT1 | L18: =C20/SUM($C$20:$C$25) -> 0.0860465125 | M18: =$M$13*L18 -> 908287.1
B19: RPPTIER | K19: RPPT2 | L19: =C21/SUM($C$20:$C$25) -> 0.03127209658 | M19: =$M$13*L19 -> 330101.0243
B20: RPPT1 | C20: 898481.9727 | D20: 78167.92461 | E20: =D20/C20 -> 0.0869999922 | K20: RPPTOUMID | L20: =C23/SUM($C$20:$C$25) -> 0.1581102576 | M20: 1668975.339
B21: RPPT2 | C21: 326537.5226 | D21: 33633.56262 | E21: =D21/C21 -> 0.1030006057 | K21: RPPTOUOFF | L21: =C24/SUM($C$20:$C$25) -> 0.5601452123 | M21: 5912763.408
B22: RPPTOU | K22: RPPTOUON | L22: 0.164425921 | M22: 1735642.022
B23: RPPTOUMID | C23: 1650958.442 | D23: 168393.3135 | E23: 0.1019973061 | K23: RPPULOMID | L23: 0 | M23: 0
B24: RPPTOUOFF | C24: 5848934.033 | D24: 432815.5121 | E24: 0.07399904148 | K24: RPPULOOFF | L24: 0 | M24: 0
B25: RPPTOUON | C25: 1716905.445 | D25: 259227.0589 | E25: 0.1509850526 | K25: RPPULOON | L25: 0 | M25: 0
B26: RETAIL | K26: RPPULOOVN | L26: 0 | M26: 0
B27: NSLS | C27: 3390452.464 | D27: 79680.76868 | E27: 0.02350151478 | L27: =SUM(L18:L26) -> 1 | M27: =SUM(M18:M26) -> 10555768.89
B28: INTERVAL
B29: HOEP | C29: 7675967.857 | D29: 175644.9374 | E29: 0.02288244827
B30: Grand Total | C30: 21508237.74 | D30: 1227563.078
K31: Global Adjustment | L31: per kWh
C32: =C30/C11-1 -> -0.008370109956 | K32: Class B - GA actual8 | L32: =B69/100 -> 0.0825 | N32: GA Posted Price
K33: Class B - GA actual IESO billed | L33: =+M33/M8 -> 0.08248820856 | M33: =B77 -> 1387229.02 | N33: GA Billed by IESO CT 148
A37: RPP COP Volume and Price Data
B38: bill_year | C38: 2023
B39: bill_month | C39: 2
B41: Row Labels | C41: usagebilled | D41: amountbilled | E41: Rate
B42: RPPTIERED | C42: 1209160.524 | D42: 29353.89839 | E42: =D42/C42 -> 0.02427626259
B43: RPPTOU | C43: 9288784.333 | D43: 228126.5693 | E43: 0.02455935687
B44: Grand Total | C44: 10497944.86 | D44: 257480.4677
C46: =SUM(C20:C25)-C44 -> -56127.44127
C47: =C46/C44 -> -0.00534651706
A60: Year | B60: 2023
A62: Class A
A63: Source | B63: kWh
A64: 202302 | B64: 4872482.76
A67: ga_actual | B67: year
A68: month | B68: 2023
A69: 202302 | B69: 8.25
A73: chargetype | B73: 148
A75: Sum of chargeamount | B75: year
A76: month | B76: 2023
A77: 202302 | B77: 1387229.02

Sheet I5 Input Rev 02 Init (hidden)
A1: Reverse IESO Posted
A5: =Admin!B11 -> 202302
A6: RPP Revenue Prices | B6: kWh Volumes | C6: $ RPP Settlement
A7: RPPTiered_1 | B7: 1006526.98 | C7: 1820.69
A8: RPPTiered_2 | B8: 318299.44 | C8: -4517.1
A9: RPPTOU_MID | B9: 1769390.18 | C9: -21652.63
A10: RPPTOU_OFF | B10: 6646244.17 | C10: 104754.1
A11: RPPTOU_ON | B11: 1823318.22 | C11: -111653.44
A12: Grand Total | B12: 11563778.99 | C12: -31248.38

Sheet I6 Input 03 Trueup Sett (hidden)
A1: Date: | B1: =Admin!B8+2 -> 202303 | C1: Trueup | K1: ="Data for 1st True up of RPP Settlement based on Actual IESO Invoice" -> Data for 1st True up of RPP Settlement based on Actual IESO Invoice | P1: For Reconciliation
A3: Wholesale Electricty | B3: Year | C3: 2023 | E3: Rate | P3: Actual RPP Revenue and GA
B4: dateref | C4: 202303 | K4: Wholesale Volume data per IESO Power Bill: | L4: GA RPP/non-RPP Ratios | M4: GA Volumes | N4: Energy Volumes | P4: =B1 -> 202303
K5: AQEW | M5: =C10 -> 22623431.12 | N5: =+M5 -> 22623431.12 | P5: RPP Revenue Prices | Q5: RPP Rate | R5: Estimated RPP Energy Price | S5: GA actual IESO billed | T5: Total Commodity | U5: Difference | V5: kWh Volumes | W5: $ Estimated RPP Revenue | X5: $ Estimated RPP Energy | Y5: $ Estimated GA | Z5: $ Estimated RPP Settlement
B6: Wholesale | K6: Embedded Generation | M6: =SUM(C8:C9) -> 448568.38 | N6: =+M6 -> 448568.38 | P6: RPPT1 | Q6: =E20 -> 0.08700020612 | R6: =E42 -> 0.02498890485 | S6: =L33 -> 0.08030034168 | T6: =R6+S6 -> 0.1052892465 | U6: =+Q6-T6 -> -0.01828904041 | V6: =M18 -> 945383.7952 | W6: =Q6*V6 -> 82248.58505 | X6: =R6*V6 -> 23624.1057 | Y6: =+V6*S6 -> 75914.64177 | Z6: =W6-X6-Y6 -> -17290.16243
A7: FIT/mFIT | B7: Source | C7: kWh | D7: Total Cost | K7: Class A customer Volumes for GA (TLF included) | M7: =-B64 -> -5406559.1 | P7: RPPT2 | Q7: =E21 -> 0.1030001198 | R7: =R6 -> 0.02498890485 | S7: =S6 -> 0.08030034168 | T7: =R7+S7 -> 0.1052892465 | U7: =+Q7-T7 -> -0.002289126674 | V7: =M19 -> 294872.7192 | W7: =Q7*V7 -> 30371.92541 | X7: =R7*V7 -> 7368.546321 | Y7: =+V7*S7 -> 23678.3801 | Z7: =W7-X7-Y7 -> -675.0010068
B8: FIT | C8: 421544.81 | D8: 9085.53 | E8: =D8/C8 -> 0.02155294001 | M8: =+M5+M6+M7 -> 17665440.4 | N8: =+N5+N6+N7 -> 23071999.5 | P8: RPPTOUMID | Q8: =E23 -> 0.1019959874 | R8: =E43 -> 0.02503068397 | S8: =S7 -> 0.08030034168 | T8: 0.1053310256 | U8: -0.003335038263 | V8: 1837999.454 | W8: 187468.5691 | X8: 46006.38346 | Y8: 147591.9841 | Z8: -6129.798506
B9: microFIT | C9: 27023.57 | D9: 574.17 | E9: =D9/C9 -> 0.0212470077 | P9: RPPTOUOFF | Q9: =E24 -> 0.07399628373 | R9: =R8 -> 0.02503068397 | S9: 0.08030034168 | T9: 0.1053310256 | U9: -0.03133474192 | V9: 5804260.6 | W9: 429493.7142 | X9: 145284.6127 | Y9: 466084.1094 | Z9: -181875.0079
B10: WHOLESALE | C10: 22623431.12 | D10: 569802.92 | E10: =D10/C10 -> 0.02518640594 | K10: Estimated Retail Volume Revenue Data (TLF Included) | L10: RPP/non-RPP Ratios | M10: GA Volumes | N10: Energy Volumes | P10: RPPTOUON | Q10: 0.1509709349 | R10: =R9 -> 0.02503068397 | S10: 0.08030034168 | T10: 0.1053310256 | U10: 0.0456399093 | V10: 1894409.759 | W10: 286000.8125 | X10: 47418.37199 | Y10: 152121.7509 | Z10: 86460.68959
A11: Total Wholesale Electricity | B11: Grand Total | C11: 23071999.5 | D11: 579462.62 | K11: Estimated Retail Revenue Data (Net of Retail Billed/Unbilled) | M11: =+M15 -> 17665440.4 | N11: =+N15 -> 23071999.5 | P11: RPPULOMID | Q11: 0 | R11: 0 | S11: 0 | T11: 0 | U11: 0 | V11: 0 | W11: 0 | X11: 0 | Y11: 0 | Z11: 0
P12: RPPULOOFF | Q12: 0 | R12: 0 | S12: 0 | T12: 0 | U12: 0 | V12: 0 | W12: 0 | X12: 0 | Y12: 0 | Z12: 0
K13: Estimated RPP Sales Quantities | L13: =SUM(C20:C25)/(C30-B64) -> 0.6100570426 | M13: =M8*L13 -> 10776926.33 | N13: =M13 -> 10776926.33 | P13: RPPULOON | Q13: 0 | R13: 0 | S13: 0 | T13: 0 | U13: 0 | V13: 0 | W13: 0 | X13: 0 | Y13: 0 | Z13: 0
A14: RPP Revenue Volume and Price Data | K14: Estimated non-RPP Sales Quantities | L14: =1-L13 -> 0.3899429574 | M14: =M8*L14 -> 6888514.073 | N14: =N8-N13 -> 12295073.17 | P14: RPPULOOVN | Q14: 0 | R14: 0 | S14: 0 | T14: 0 | U14: 0 | V14: 0 | W14: 0 | X14: 0 | Y14: 0 | Z14: 0
B15: bill_year | C15: 2023 | K15: Estimated Retail Revenue kWh Volumes | L15: =+L13+L14 -> 1 | M15: =+M13+M14 -> 17665440.4 | N15: =+N13+N14 -> 23071999.5 | V15: =SUM(V6:V14) -> 10776926.33 | W15: =SUM(W6:W14) -> 1015583.606 | X15: =SUM(X6:X14) -> 269702.0202 | Y15: =SUM(Y6:Y14) -> 865390.8663 | Z15: =SUM(Z6:Z14) -> -119509.2803
B16: bill_month | C16: 3 | Z16: =W15-X15-Y15-Z15 -> 1.164153218e-10
K17: Estimated RPP Revenue Volume and Price Data | L17: Actual % | M17: kWh Volumes
B18: Row Labels | C18: usagebilled | D18: amountbilled | E18: Rate | K18: RPPT1 | L18: =C20/SUM($C$20:$C$25) -> 0.0877229524 | M18: =$M$13*L18 -> 945383.7952
B19: RPPTIER | K19: RPPT2 | L19: =C21/SUM($C$20:$C$25) -> 0.02736148603 | M19: =$M$13*L19 -> 294872.7192
B20: RPPT1 | C20: 933806.2024 | D20: 81241.33209 | E20: =D20/C20 -> 0.08700020612 | K20: RPPTOUMID | L20: =C23/SUM($C$20:$C$25) -> 0.1705495053 | M20: 1837999.454
B21: RPPT2 | C21: 291261.5759 | D21: 29999.97723 | E21: =D21/C21 -> 0.1030001198 | K21: RPPTOUOFF | L21: =C24/SUM($C$20:$C$25) -> 0.5385821916 | M21: 5804260.6
B22: RPPTOU | K22: RPPTOUON | L22: 0.1757838647 | M22: 1894409.759
B23: RPPTOUMID | C23: 1815490.49 | D23: 185172.7451 | E23: 0.1019959874 | K23: RPPULOMID | L23: 0 | M23: 0
B24: RPPTOUOFF | C24: 5733179.028 | D24: 424233.942 | E24: 0.07399628373 | K24: RPPULOOFF | L24: 0 | M24: 0
B25: RPPTOUON | C25: 1871209.97 | D25: 282498.3186 | E25: 0.1509709349 | K25: RPPULOON | L25: 0 | M25: 0
B26: RETAIL | K26: RPPULOOVN | L26: 0 | M26: 0
B27: NSLS | C27: 3816673.984 | D27: 95610.54951 | E27: 0.02505075097 | L27: =SUM(L18:L26) -> 1 | M27: =SUM(M18:M26) -> 10776926.33
B28: INTERVAL
B29: HOEP | C29: 8394039.364 | D29: 209692.6337 | E29: 0.02498113537
B30: Grand Total | C30: 22855660.62 | D30: 1308449.498
K31: Global Adjustment | L31: per kWh
C32: =C30/C11-1 -> -0.009376685577 | K32: Class B - GA actual8 | L32: =B69/100 -> 0.08029999733 | N32: GA Posted Price
K33: Class B - GA actual IESO billed | L33: =+M33/M8 -> 0.08030034168 | M33: =B76 -> 1418540.9 | N33: GA Billed by IESO CT 148
A37: RPP COP Volume and Price Data
B38: bill_year | C38: 2023
B39: bill_month | C39: 3
B41: Row Labels | C41: usagebilled | D41: amountbilled | E41: Rate
B42: RPPTIERED | C42: 1226587.259 | D42: 30651.07231 | E42: =D42/C42 -> 0.02498890485
B43: RPPTOU | C43: 9595680.192 | D43: 240186.4384 | E43: 0.02503068397
B44: Grand Total | C44: 10822267.45 | D44: 270837.5107
C46: =SUM(C20:C25)-C44 -> -177320.1849
C47: =C46/C44 -> -0.01638475354
A60: Year | B60: 2023
A62: Class A
A63: Source | B63: kWh
A64: 202303 | B64: 5406559.1
A67: ga_actual | B67: year
A68: month | B68: 2023
A69: 202303 | B69: 8.029999733
A72: chargetype | B72: 148
A74: Sum of chargeamount | B74: year
A75: month | B75: 2023
A76: 202303 | B76: 1418540.9

Sheet I7 Input Rev 03 Init (hidden)
A1: Reverse IESO Posted
A5: =Admin!B14 -> 202303
A6: RPP Revenue Prices | B6: kWh Volumes | C6: $ RPP Settlement
A7: RPPTiered_1 | B7: 956949.9 | C7: 16126.42
A8: RPPTiered_2 | B8: 329868.37 | C8: 280.83
A9: RPPTOU_MID | B9: 1817996.2 | C9: -323.58
A10: RPPTOU_OFF | B10: 6327729.68 | C10: 176053.2
A11: RPPTOU_ON | B11: 1877575.38 | C11: -92333.77
A12: Grand Total | B12: 11310119.53 | C12: 99803.1

Sheet I8 Input 04 Trueup Sett (hidden)
A1: Date: | B1: =Admin!B8+3 -> 202304 | C1: Trueup | K1: ="Data for 1st True up of RPP Settlement based on Actual IESO Invoice" -> Data for 1st True up of RPP Settlement based on Actual IESO Invoice | P1: For Reconciliation
A3: Wholesale Electricty | B3: Year | C3: 2023 | E3: Rate | P3: Actual RPP Revenue and GA
B4: dateref | C4: 202304 | K4: Wholesale Volume data per IESO Power Bill: | L4: GA RPP/non-RPP Ratios | M4: GA Volumes | N4: Energy Volumes | P4: =B1 -> 202304
K5: AQEW | M5: =C10 -> 18860183.95 | N5: =+M5 -> 18860183.95 | P5: RPP Revenue Prices | Q5: RPP Rate | R5: Estimated RPP Energy Price | S5: GA actual IESO billed | T5: Total Commodity | U5: Difference | V5: kWh Volumes | W5: $ Estimated RPP Revenue | X5: $ Estimated RPP Energy | Y5: $ Estimated GA | Z5: $ Estimated RPP Settlement
B6: Wholesale | K6: Embedded Generation | M6: =SUM(C8:C9) -> 752413.02 | N6: =+M6 -> 752413.02 | P6: RPPT1 | Q6: =E20 -> 0.08700014176 | R6: =E42 -> 0.02135544139 | S6: =L33 -> 0.09849702601 | T6: =R6+S6 -> 0.1198524674 | U6: =+Q6-T6 -> -0.03285232565 | V6: =M18 -> 816187.087 | W6: =Q6*V6 -> 71008.39227 | X6: =R6*V6 -> 17430.0355 | Y6: =+V6*S6 -> 80392.00074 | Z6: =W6-X6-Y6 -> -26813.64397
A7: FIT/mFIT | B7: Source | C7: kWh | D7: Total Cost | K7: Class A customer Volumes for GA (TLF included) | M7: =-B64 -> -4919229.58 | P7: RPPT2 | Q7: =E21 -> 0.1030018462 | R7: =R6 -> 0.02135544139 | S7: =S6 -> 0.09849702601 | T7: =R7+S7 -> 0.1198524674 | U7: =+Q7-T7 -> -0.01685062123 | V7: =M19 -> 136657.8168 | W7: =Q7*V7 -> 14076.00743 | X7: =R7*V7 -> 2918.387998 | Y7: =+V7*S7 -> 13460.38854 | Z7: =W7-X7-Y7 -> -2302.76911
B8: FIT | C8: 713697.51 | D8: 15146.04 | E8: =D8/C8 -> 0.02122193196 | M8: =+M5+M6+M7 -> 14693367.39 | N8: =+N5+N6+N7 -> 19612596.97 | P8: RPPTOUMID | Q8: =E23 -> 0.1019930064 | R8: =E43 -> 0.02146096862 | S8: =S7 -> 0.09849702601 | T8: 0.1199579946 | U8: -0.01796498826 | V8: 1340368.843 | W8: 136708.248 | X8: 28765.61368 | Y8: 132022.3448 | Z8: -24079.71054
B9: microFIT | C9: 38715.51 | D9: 819.62 | E9: =D9/C9 -> 0.02117032683 | P9: RPPTOUOFF | Q9: =E24 -> 0.07399550308 | R9: =R8 -> 0.02146096862 | S9: 0.09849702601 | T9: 0.1199579946 | U9: -0.04596249155 | V9: 5101160.122 | W9: 377462.9095 | X9: 109475.8373 | Y9: 502449.1012 | Z9: -234462.029
B10: WHOLESALE | C10: 18860183.95 | D10: 396944.77 | E10: =D10/C10 -> 0.02104670724 | K10: Estimated Retail Volume Revenue Data (TLF Included) | L10: RPP/non-RPP Ratios | M10: GA Volumes | N10: Energy Volumes | P10: RPPTOUON | Q10: 0.1509491466 | R10: =R9 -> 0.02146096862 | S10: 0.09849702601 | T10: 0.1199579946 | U10: 0.03099115196 | V10: 1368502.758 | W10: 206574.3234 | X10: 29369.39474 | Y10: 134793.4517 | Z10: 42411.47692
A11: Total Wholesale Electricity | B11: Grand Total | C11: 19612596.97 | D11: 412910.43 | K11: Estimated Retail Revenue Data (Net of Retail Billed/Unbilled) | M11: =+M15 -> 14693367.39 | N11: =+N15 -> 19612596.97 | P11: RPPULOMID | Q11: 0 | R11: 0 | S11: 0 | T11: 0 | U11: 0 | V11: 0 | W11: 0 | X11: 0 | Y11: 0 | Z11: 0
P12: RPPULOOFF | Q12: 0 | R12: 0 | S12: 0 | T12: 0 | U12: 0 | V12: 0 | W12: 0 | X12: 0 | Y12: 0 | Z12: 0
K13: Estimated RPP Sales Quantities | L13: =SUM(C20:C25)/(C30-B64) -> 0.5963831431 | M13: =M8*L13 -> 8762876.627 | N13: =M13 -> 8762876.627 | P13: RPPULOON | Q13: 0 | R13: 0 | S13: 0 | T13: 0 | U13: 0 | V13: 0 | W13: 0 | X13: 0 | Y13: 0 | Z13: 0
A14: RPP Revenue Volume and Price Data | K14: Estimated non-RPP Sales Quantities | L14: =1-L13 -> 0.4036168569 | M14: =M8*L14 -> 5930490.763 | N14: =N8-N13 -> 10849720.34 | P14: RPPULOOVN | Q14: 0 | R14: 0 | S14: 0 | T14: 0 | U14: 0 | V14: 0 | W14: 0 | X14: 0 | Y14: 0 | Z14: 0
B15: bill_year | C15: 2023 | K15: Estimated Retail Revenue kWh Volumes | L15: =+L13+L14 -> 1 | M15: =+M13+M14 -> 14693367.39 | N15: =+N13+N14 -> 19612596.97 | V15: =SUM(V6:V14) -> 8762876.627 | W15: =SUM(W6:W14) -> 805829.8806 | X15: =SUM(X6:X14) -> 187959.2692 | Y15: =SUM(Y6:Y14) -> 863117.2871 | Z15: =SUM(Z6:Z14) -> -245246.6757
B16: bill_month | C16: 4 | Z16: =W15-X15-Y15-Z15 -> 0
K17: Estimated RPP Revenue Volume and Price Data | L17: Actual % | M17: kWh Volumes
B18: Row Labels | C18: usagebilled | D18: amountbilled | E18: Rate | K18: RPPT1 | L18: =C20/SUM($C$20:$C$25) -> 0.09314145591 | M18: =$M$13*L18 -> 816187.087
B19: RPPTIER | K19: RPPT2 | L19: =C21/SUM($C$20:$C$25) -> 0.01559508625 | M19: =$M$13*L19 -> 136657.8168
B20: RPPT1 | C20: 806903.8699 | D20: 70200.75107 | E20: =D20/C20 -> 0.08700014176 | K20: RPPTOUMID | L20: =C23/SUM($C$20:$C$25) -> 0.1529599126 | M20: 1340368.843
B21: RPPT2 | C21: 135103.4867 | D21: 13915.90855 | E21: =D21/C21 -> 0.1030018462 | K21: RPPTOUOFF | L21: =C24/SUM($C$20:$C$25) -> 0.5821330528 | M21: 5101160.122
B22: RPPTOU | K22: RPPTOUON | L22: 0.1561704924 | M22: 1368502.758
B23: RPPTOUMID | C23: 1325123.644 | D23: 135153.3443 | E23: 0.1019930064 | K23: RPPULOMID | L23: 0 | M23: 0
B24: RPPTOUOFF | C24: 5043140.12 | D24: 373169.6903 | E24: 0.07399550308 | K24: RPPULOOFF | L24: 0 | M24: 0
B25: RPPTOUON | C25: 1352937.566 | D25: 204224.771 | E25: 0.1509491466 | K25: RPPULOON | L25: 0 | M25: 0
B26: RETAIL | K26: RPPULOOVN | L26: 0 | M26: 0
B27: NSLS | C27: 3240961.401 | D27: 68633.73083 | E27: 0.02117696645 | L27: =SUM(L18:L26) -> 1 | M27: =SUM(M18:M26) -> 8762876.627
B28: INTERVAL
B29: HOEP | C29: 7541306.23 | D29: 155566.2708 | E29: 0.02062855772
B30: Grand Total | C30: 19445476.32 | D30: 1020864.467
K31: Global Adjustment | L31: per kWh
C32: =C30/C11-1 -> -0.00852108738 | K32: Class B - GA actual8 | L32: =B69/100 -> 0.09850000381 | N32: GA Posted Price
K33: Class B - GA actual IESO billed | L33: =+M33/M8 -> 0.09849702601 | M33: =B76 -> 1447252.99 | N33: GA Billed by IESO CT 148
A37: RPP COP Volume and Price Data
B38: bill_year | C38: 2023
B39: bill_month | C39: 4
B41: Row Labels | C41: usagebilled | D41: amountbilled | E41: Rate
B42: RPPTIERED | C42: 986521.6952 | D42: 21067.60625 | E42: =D42/C42 -> 0.02135544139
B43: RPPTOU | C43: 7811009.165 | D43: 167631.8226 | E43: 0.02146096862
B44: Grand Total | C44: 8797530.86 | D44: 188699.4288
C46: =SUM(C20:C25)-C44 -> -134322.1732
C47: =C46/C44 -> -0.01526816732
A60: Year | B60: 2023
A62: Class A
A63: Source | B63: kWh
A64: 202304 | B64: 4919229.58
A67: ga_actual | B67: year
A68: month | B68: 2023
A69: 202304 | B69: 9.850000381
A72: chargetype | B72: 148
A74: Sum of chargeamount | B74: year
A75: month | B75: 2023
A76: 202304 | B76: 1447252.99

Sheet I9 Input Rev 04 Init (hidden)
A1: Reverse IESO Posted
A5: =Admin!B17 -> 202304
A6: RPP Revenue Prices | B6: kWh Volumes | C6: $ RPP Settlement
A7: RPPTiered_1 | B7: 936580.82 | C7: 17360.1
A8: RPPTiered_2 | B8: 306275.99 | C8: 776.62
A9: RPPTOU_MID | B9: 1819262.11 | C9: 7039.7
A10: RPPTOU_OFF | B10: 5732473.51 | C10: 182693.05
A11: RPPTOU_ON | B11: 1873530.66 | C11: -84553.35
A12: Grand Total | B12: 10668123.09 | C12: 123316.12

Sheet I10 Input 05 Trueup Sett (hidden)
A1: Date: | B1: =Admin!B8+4 -> 202305 | C1: Trueup | K1: ="Data for 1st True up of RPP Settlement based on Actual IESO Invoice" -> Data for 1st True up of RPP Settlement based on Actual IESO Invoice | P1: For Reconciliation
A3: Wholesale Electricty | B3: Year | C3: 2023 | E3: Rate | P3: Actual RPP Revenue and GA
B4: dateref | C4: 202305 | K4: Wholesale Volume data per IESO Power Bill: | L4: GA RPP/non-RPP Ratios | M4: GA Volumes | N4: Energy Volumes | P4: =B1 -> 202305
K5: AQEW | M5: =C10 -> 18443214.08 | N5: =+M5 -> 18443214.08 | P5: RPP Revenue Prices | Q5: RPP Rate | R5: Estimated RPP Energy Price | S5: GA actual IESO billed | T5: Total Commodity | U5: Difference | V5: kWh Volumes | W5: $ Estimated RPP Revenue | X5: $ Estimated RPP Energy | Y5: $ Estimated GA | Z5: $ Estimated RPP Settlement
B6: Wholesale | K6: Embedded Generation | M6: =SUM(C8:C9) -> 986794.69 | N6: =+M6 -> 986794.69 | P6: RPPT1 | Q6: =E20 -> 0.08700035284 | R6: =E42 -> 0.01757902524 | S6: =L33 -> 0.09994805908 | T6: =R6+S6 -> 0.1175270843 | U6: =+Q6-T6 -> -0.03052673148 | V6: =M18 -> 741995.9542 | W6: =Q6*V6 -> 64553.90982 | X6: =R6*V6 -> 13043.56561 | Y6: =+V6*S6 -> 74161.05547 | Z6: =W6-X6-Y6 -> -22650.71125
A7: FIT/mFIT | B7: Source | C7: kWh | D7: Total Cost | K7: Class A customer Volumes for GA (TLF included) | M7: =-B64 -> -5179605.98 | P7: RPPT2 | Q7: =E21 -> 0.1029994908 | R7: =R6 -> 0.01757902524 | S7: =S6 -> 0.09994805908 | T7: =R7+S7 -> 0.1175270843 | U7: =+Q7-T7 -> -0.01452759349 | V7: =M19 -> 184893.3254 | W7: =Q7*V7 -> 19043.91837 | X7: =R7*V7 -> 3250.244433 | Y7: =+V7*S7 -> 18479.72901 | Z7: =W7-X7-Y7 -> -2686.055069
B8: FIT | C8: 937597.73 | D8: 17378.49 | E8: =D8/C8 -> 0.0185351238 | M8: =+M5+M6+M7 -> 14250402.79 | N8: =+N5+N6+N7 -> 19430008.77 | P8: RPPTOUMID | Q8: =E23 -> 0.1019875654 | R8: =E43 -> 0.01799516175 | S8: =S7 -> 0.09994805908 | T8: 0.1179432208 | U8: -0.01595565544 | V8: 1417053.397 | W8: 144521.826 | X8: 25500.10509 | Y8: 141631.7367 | Z8: -22610.01574
B9: microFIT | C9: 49196.96 | D9: 907.94 | E9: =D9/C9 -> 0.01845520536 | P9: RPPTOUOFF | Q9: =E24 -> 0.07399346824 | R9: =R8 -> 0.01799516175 | S9: 0.09994805908 | T9: 0.1179432208 | U9: -0.04394975259 | V9: 4457672.845 | W9: 329838.6741 | X9: 80216.54388 | Y9: 445535.7489 | Z9: -195913.6187
B10: WHOLESALE | C10: 18443214.08 | D10: 322522.32 | E10: =D10/C10 -> 0.0174873164 | K10: Estimated Retail Volume Revenue Data (TLF Included) | L10: RPP/non-RPP Ratios | M10: GA Volumes | N10: Energy Volumes | P10: RPPTOUON | Q10: 0.1509189596 | R10: =R9 -> 0.01799516175 | S10: 0.09994805908 | T10: 0.1179432208 | U10: 0.03297573874 | V10: 1408256.031 | W10: 212532.5351 | X10: 25341.79507 | Y10: 140752.457 | Z10: 46438.28298
A11: Total Wholesale Electricity | B11: Grand Total | C11: 19430008.77 | D11: 340808.75 | K11: Estimated Retail Revenue Data (Net of Retail Billed/Unbilled) | M11: =+M15 -> 14250402.79 | N11: =+N15 -> 19430008.77 | P11: RPPULOMID | Q11: 0 | R11: 0 | S11: 0 | T11: 0 | U11: 0 | V11: 0 | W11: 0 | X11: 0 | Y11: 0 | Z11: 0
P12: RPPULOOFF | Q12: 0 | R12: 0 | S12: 0 | T12: 0 | U12: 0 | V12: 0 | W12: 0 | X12: 0 | Y12: 0 | Z12: 0
K13: Estimated RPP Sales Quantities | L13: =SUM(C20:C25)/(C30-B64) -> 0.5761150526 | M13: =M8*L13 -> 8209871.553 | N13: =M13 -> 8209871.553 | P13: RPPULOON | Q13: 0 | R13: 0 | S13: 0 | T13: 0 | U13: 0 | V13: 0 | W13: 0 | X13: 0 | Y13: 0 | Z13: 0
A14: RPP Revenue Volume and Price Data | K14: Estimated non-RPP Sales Quantities | L14: =1-L13 -> 0.4238849474 | M14: =M8*L14 -> 6040531.237 | N14: =N8-N13 -> 11220137.22 | P14: RPPULOOVN | Q14: 0 | R14: 0 | S14: 0 | T14: 0 | U14: 0 | V14: 0 | W14: 0 | X14: 0 | Y14: 0 | Z14: 0
B15: bill_year | C15: 2023 | K15: Estimated Retail Revenue kWh Volumes | L15: =+L13+L14 -> 1 | M15: =+M13+M14 -> 14250402.79 | N15: =+N13+N14 -> 19430008.77 | V15: =SUM(V6:V14) -> 8209871.553 | W15: =SUM(W6:W14) -> 770490.8634 | X15: =SUM(X6:X14) -> 147352.2541 | Y15: =SUM(Y6:Y14) -> 820560.7271 | Z15: =SUM(Z6:Z14) -> -197422.1178
B16: bill_month | C16: 5 | Z16: =W15-X15-Y15-Z15 -> 0
K17: Estimated RPP Revenue Volume and Price Data | L17: Actual % | M17: kWh Volumes
B18: Row Labels | C18: usagebilled | D18: amountbilled | E18: Rate | K18: RPPT1 | L18: =C20/SUM($C$20:$C$25) -> 0.0903785095 | M18: =$M$13*L18 -> 741995.9542
B19: RPPTIER | K19: RPPT2 | L19: =C21/SUM($C$20:$C$25) -> 0.02252085482 | M19: =$M$13*L19 -> 184893.3254
B20: RPPT1 | C20: 738556.1042 | D20: 64254.64166 | E20: =D20/C20 -> 0.08700035284 | K20: RPPTOUMID | L20: =C23/SUM($C$20:$C$25) -> 0.1726036014 | M20: 1417053.397
B21: RPPT2 | C21: 184036.1707 | D21: 18955.63188 | E21: =D21/C21 -> 0.1029994908 | K21: RPPTOUOFF | L21: =C24/SUM($C$20:$C$25) -> 0.5429649924 | M21: 4457672.845
B22: RPPTOU | K22: RPPTOUON | L22: 0.1715320419 | M22: 1408256.031
B23: RPPTOUMID | C23: 1410484.02 | D23: 143851.8312 | E23: 0.1019875654 | K23: RPPULOMID | L23: 0 | M23: 0
B24: RPPTOUOFF | C24: 4437007.334 | D24: 328309.5612 | E24: 0.07399346824 | K24: RPPULOOFF | L24: 0 | M24: 0
B25: RPPTOUON | C25: 1401727.439 | D25: 211547.2466 | E25: 0.1509189596 | K25: RPPULOON | L25: 0 | M25: 0
B26: RETAIL | K26: RPPULOOVN | L26: 0 | M26: 0
B27: NSLS | C27: 3336479.165 | D27: 60319.76182 | E27: 0.01807886663 | L27: =SUM(L18:L26) -> 1 | M27: =SUM(M18:M26) -> 8209871.553
B28: INTERVAL
B29: HOEP | C29: 7855654.501 | D29: 135775.9576 | E29: 0.01728385045
B30: Grand Total | C30: 19363944.73 | D30: 963014.632
K31: Global Adjustment | L31: per kWh
C32: =C30/C11-1 -> -0.003400103332 | K32: Class B - GA actual8 | L32: =B69/100 -> 0.09960000038 | N32: GA Posted Price
K33: Class B - GA actual IESO billed | L33: =+M33/M8 -> 0.09994805908 | M33: =B76 -> 1424300.1 | N33: GA Billed by IESO CT 148
A37: RPP COP Volume and Price Data
B38: bill_year | C38: 2023
B39: bill_month | C39: 5
B41: Row Labels | C41: usagebilled | D41: amountbilled | E41: Rate
B42: RPPTIERED | C42: 891524.4736 | D42: 15672.13122 | E42: =D42/C42 -> 0.01757902524
B43: RPPTOU | C43: 7284471.144 | D43: 131085.2365 | E43: 0.01799516175
B44: Grand Total | C44: 8175995.618 | D44: 146757.3677
C46: =SUM(C20:C25)-C44 -> -4184.550509
C47: =C46/C44 -> -0.0005118092896
A60: Year | B60: 2023
A62: Class A
A63: Source | B63: kWh
A64: 202305 | B64: 5179605.98
A67: ga_actual | B67: year
A68: month | B68: 2023
A69: 202305 | B69: 9.960000038
A72: chargetype | B72: 148
A74: Sum of chargeamount | B74: year
A75: month | B75: 2023
A76: 202305 | B76: 1424300.1

Sheet I11 Input Rev 05 Init (hidden)
A1: Reverse IESO Posted
A5: =Admin!B20 -> 202305
A6: RPP Revenue Prices | B6: kWh Volumes | C6: $ RPP Settlement
A7: RPPTiered_1 | B7: 847946.98 | C7: 27148.92
A8: RPPTiered_2 | B8: 147768.75 | C8: 2366.14
A9: RPPTOU_MID | B9: 1354869.67 | C9: 21803
A10: RPPTOU_OFF | B10: 5190583.26 | C10: 228867.38
A11: RPPTOU_ON | B11: 1397416.4 | C11: -45985.07
A12: Grand Total | B12: 8938585.06 | C12: 234200.37

Sheet I12 Input 06 Trueup Sett (hidden)
A1: Date: | B1: =Admin!B8+5 -> 202306 | C1: Trueup | K1: ="Data for 1st True up of RPP Settlement based on Actual IESO Invoice" -> Data for 1st True up of RPP Settlement based on Actual IESO Invoice | P1: For Reconciliation
A3: Wholesale Electricty | B3: Year | C3: 2023 | E3: Rate | P3: Actual RPP Revenue and GA
B4: dateref | C4: 202306 | K4: Wholesale Volume data per IESO Power Bill: | L4: GA RPP/non-RPP Ratios | M4: GA Volumes | N4: Energy Volumes | P4: =B1 -> 202306
K5: AQEW | M5: =C10 -> 19093937.1 | N5: =+M5 -> 19093937.1 | P5: RPP Revenue Prices | Q5: RPP Rate | R5: Estimated RPP Energy Price | S5: GA actual IESO billed | T5: Total Commodity | U5: Difference | V5: kWh Volumes | W5: $ Estimated RPP Revenue | X5: $ Estimated RPP Energy | Y5: $ Estimated GA | Z5: $ Estimated RPP Settlement
B6: Wholesale | K6: Embedded Generation | M6: =SUM(C8:C9) -> 784522.09 | N6: =+M6 -> 784522.09 | P6: RPPT1 | Q6: =E20 -> 0.08700007152 | R6: =E42 -> 0.03082670887 | S6: =L33 -> 0.08261742009 | T6: =R6+S6 -> 0.113444129 | U6: =+Q6-T6 -> -0.02644405744 | V6: =M18 -> 712815.0344 | W6: =Q6*V6 -> 62014.95898 | X6: =R6*V6 -> 21973.74154 | Y6: =+V6*S6 -> 58890.93915 | Z6: =W6-X6-Y6 -> -18849.72171
A7: FIT/mFIT | B7: Source | C7: kWh | D7: Total Cost | K7: Class A customer Volumes for GA (TLF included) | M7: =-B64 -> -4723319.77 | P7: RPPT2 | Q7: =E21 -> 0.1030009826 | R7: =R6 -> 0.03082670887 | S7: =S6 -> 0.08261742009 | T7: =R7+S7 -> 0.113444129 | U7: =+Q7-T7 -> -0.01044314641 | V7: =M19 -> 203180.6385 | W7: =Q7*V7 -> 20927.8054 | X7: =R7*V7 -> 6263.39039 | Y7: =+V7*S7 -> 16786.26016 | Z7: =W7-X7-Y7 -> -2121.845155
B8: FIT | C8: 746236.02 | D8: 24873.08 | E8: =D8/C8 -> 0.03333138489 | M8: =+M5+M6+M7 -> 15155139.42 | N8: =+N5+N6+N7 -> 19878459.19 | P8: RPPTOUMID | Q8: =E23 -> 0.1019948942 | R8: =E43 -> 0.03110572232 | S8: =S7 -> 0.08261742009 | T8: 0.1137231424 | U8: -0.01172824824 | V8: 1571674.695 | W8: 160302.7941 | X8: 48888.07662 | Y8: 129847.7085 | Z8: -18432.99097
B9: microFIT | C9: 38286.07 | D9: 1276.24 | E9: =D9/C9 -> 0.03333431716 | P9: RPPTOUOFF | Q9: =E24 -> 0.07399503161 | R9: =R8 -> 0.03110572232 | S9: 0.08261742009 | T9: 0.1137231424 | U9: -0.03972811079 | V9: 4767849.492 | W9: 352797.1739 | X9: 148307.4023 | Y9: 393907.4244 | Z9: -189417.6529
B10: WHOLESALE | C10: 19093937.1 | D10: 580068.36 | E10: =D10/C10 -> 0.03037971462 | K10: Estimated Retail Volume Revenue Data (TLF Included) | L10: RPP/non-RPP Ratios | M10: GA Volumes | N10: Energy Volumes | P10: RPPTOUON | Q10: 0.1509526724 | R10: =R9 -> 0.03110572232 | S10: 0.08261742009 | T10: 0.1137231424 | U10: 0.03722953004 | V10: 1684077.924 | W10: 254216.0632 | X10: 52384.46026 | Y10: 139134.1733 | Z10: 62697.42966
A11: Total Wholesale Electricity | B11: Grand Total | C11: 19878459.19 | D11: 606217.68 | K11: Estimated Retail Revenue Data (Net of Retail Billed/Unbilled) | M11: =+M15 -> 15155139.42 | N11: =+N15 -> 19878459.19 | P11: RPPULOMID | Q11: 0 | R11: 0 | S11: 0 | T11: 0 | U11: 0 | V11: 0 | W11: 0 | X11: 0 | Y11: 0 | Z11: 0
P12: RPPULOOFF | Q12: 0 | R12: 0 | S12: 0 | T12: 0 | U12: 0 | V12: 0 | W12: 0 | X12: 0 | Y12: 0 | Z12: 0
K13: Estimated RPP Sales Quantities | L13: =SUM(C20:C25)/(C30-B64) -> 0.5898723552 | M13: =M8*L13 -> 8939597.783 | N13: =M13 -> 8939597.783 | P13: RPPULOON | Q13: 0 | R13: 0 | S13: 0 | T13: 0 | U13: 0 | V13: 0 | W13: 0 | X13: 0 | Y13: 0 | Z13: 0
A14: RPP Revenue Volume and Price Data | K14: Estimated non-RPP Sales Quantities | L14: =1-L13 -> 0.4101276448 | M14: =M8*L14 -> 6215541.637 | N14: =N8-N13 -> 10938861.41 | P14: RPPULOOVN | Q14: 0 | R14: 0 | S14: 0 | T14: 0 | U14: 0 | V14: 0 | W14: 0 | X14: 0 | Y14: 0 | Z14: 0
B15: bill_year | C15: 2023 | K15: Estimated Retail Revenue kWh Volumes | L15: =+L13+L14 -> 1 | M15: =+M13+M14 -> 15155139.42 | N15: =+N13+N14 -> 19878459.19 | V15: =SUM(V6:V14) -> 8939597.783 | W15: =SUM(W6:W14) -> 850258.7956 | X15: =SUM(X6:X14) -> 277817.0712 | Y15: =SUM(Y6:Y14) -> 738566.5055 | Z15: =SUM(Z6:Z14) -> -166124.781
B16: bill_month | C16: 6 | Z16: =W15-X15-Y15-Z15 -> 0
K17: Estimated RPP Revenue Volume and Price Data | L17: Actual % | M17: kWh Volumes
B18: Row Labels | C18: usagebilled | D18: amountbilled | E18: Rate | K18: RPPT1 | L18: =C20/SUM($C$20:$C$25) -> 0.07973681274 | M18: =$M$13*L18 -> 712815.0344
B19: RPPTIER | K19: RPPT2 | L19: =C21/SUM($C$20:$C$25) -> 0.02272816333 | M19: =$M$13*L19 -> 203180.6385
B20: RPPT1 | C20: 704600.8284 | D20: 61300.32247 | E20: =D20/C20 -> 0.08700007152 | K20: RPPTOUMID | L20: =C23/SUM($C$20:$C$25) -> 0.1758104484 | M20: 1571674.695
B21: RPPT2 | C21: 200839.263 | D21: 20686.64143 | E21: =D21/C21 -> 0.1030009826 | K21: RPPTOUOFF | L21: =C24/SUM($C$20:$C$25) -> 0.5333404933 | M21: 4767849.492
B22: RPPTOU | K22: RPPTOUON | L22: 0.1883840822 | M22: 1684077.924
B23: RPPTOUMID | C23: 1553563.321 | D23: 158455.5265 | E23: 0.1019948942 | K23: RPPULOMID | L23: 0 | M23: 0
B24: RPPTOUOFF | C24: 4712906.63 | D24: 348731.6751 | E24: 0.07399503161 | K24: RPPULOOFF | L24: 0 | M24: 0
B25: RPPTOUON | C25: 1664671.258 | D25: 251286.5752 | E25: 0.1509526724 | K25: RPPULOON | L25: 0 | M25: 0
B26: RETAIL | K26: RPPULOOVN | L26: 0 | M26: 0
B27: NSLS | C27: 3647045.442 | D27: 111103.8493 | E27: 0.03046407045 | L27: =SUM(L18:L26) -> 1 | M27: =SUM(M18:M26) -> 8939597.783
B28: INTERVAL
B29: HOEP | C29: 7220190.456 | D29: 214986.3675 | E29: 0.02977571974
B30: Grand Total | C30: 19703817.2 | D30: 1166550.957
K31: Global Adjustment | L31: per kWh
C32: =C30/C11-1 -> -0.008785489364 | K32: Class B - GA actual8 | L32: =B69/100 -> 0.08289999962 | N32: GA Posted Price
K33: Class B - GA actual IESO billed | L33: =+M33/M8 -> 0.08261742009 | M33: =B76 -> 1252078.52 | N33: GA Billed by IESO CT 148
A37: RPP COP Volume and Price Data
B38: bill_year | C38: 2023
B39: bill_month | C39: 6
B41: Row Labels | C41: usagebilled | D41: amountbilled | E41: Rate
B42: RPPTIERED | C42: 905795.9934 | D42: 27922.70938 | E42: =D42/C42 -> 0.03082670887
B43: RPPTOU | C43: 7950629.799 | D43: 247310.0828 | E43: 0.03110572232
B44: Grand Total | C44: 8856425.793 | D44: 275232.7922
C46: =SUM(C20:C25)-C44 -> -19844.49221
C47: =C46/C44 -> -0.002240688588
A60: Year | B60: 2023
A62: Class A
A63: Source | B63: kWh
A64: 202306 | B64: 4723319.77
A67: ga_actual | B67: year
A68: month | B68: 2023
A69: 202306 | B69: 8.289999962
A72: chargetype | B72: 148
A74: Sum of chargeamount | B74: year
A75: month | B75: 2023
A76: 202306 | B76: 1252078.52

Sheet I13 Input Rev 06 Init (hidden)
A1: Reverse IESO Posted
A5: =Admin!B23 -> 202306
A6: RPP Revenue Prices | B6: kWh Volumes | C6: $ RPP Settlement
A7: RPPTiered_1 | B7: 705141.28 | C7: 21245.58
A8: RPPTiered_2 | B8: 178715.42 | C8: 2525.31
A9: RPPTOU_MID | B9: 1396921.81 | C9: 21651.37
A10: RPPTOU_OFF | B10: 4338453.27 | C10: 188721.04
A11: RPPTOU_ON | B11: 1396815.42 | C11: -46792.91
A12: Grand Total | B12: 8016047.2 | C12: 187350.39

Sheet I14 Input 07 Trueup Sett (hidden)
A1: Date: | B1: =Admin!B8+6 -> 202307 | C1: Trueup | K1: ="Data for 1st True up of RPP Settlement based on Actual IESO Invoice" -> Data for 1st True up of RPP Settlement based on Actual IESO Invoice | P1: For Reconciliation
A3: Wholesale Electricty | B3: Year | C3: 2023 | E3: Rate | P3: Actual RPP Revenue and GA
B4: dateref | C4: 202307 | K4: Wholesale Volume data per IESO Power Bill: | L4: GA RPP/non-RPP Ratios | M4: GA Volumes | N4: Energy Volumes | P4: =B1 -> 202307
K5: AQEW | M5: =C10 -> 20874316.19 | N5: =+M5 -> 20874316.19 | P5: RPP Revenue Prices | Q5: RPP Rate | R5: Estimated RPP Energy Price | S5: GA actual IESO billed | T5: Total Commodity | U5: Difference | V5: kWh Volumes | W5: $ Estimated RPP Revenue | X5: $ Estimated RPP Energy | Y5: $ Estimated GA | Z5: $ Estimated RPP Settlement
B6: Wholesale | K6: Embedded Generation | M6: =SUM(C8:C9) -> 863913.49 | N6: =+M6 -> 863913.49 | P6: RPPT1 | Q6: =E20 -> 0.087000317 | R6: =E42 -> 0.04080562347 | S6: =L33 -> 0.05009228114 | T6: =R6+S6 -> 0.09089790461 | U6: =+Q6-T6 -> -0.003897587614 | V6: =M18 -> 802462.8875 | W6: =Q6*V6 -> 69814.5256 | X6: =R6*V6 -> 32744.99844 | Y6: =+V6*S6 -> 40197.19657 | Z6: =W6-X6-Y6 -> -3127.669411
A7: FIT/mFIT | B7: Source | C7: kWh | D7: Total Cost | K7: Class A customer Volumes for GA (TLF included) | M7: =-B64 -> -3986098.22 | P7: RPPT2 | Q7: =E21 -> 0.1030002516 | R7: =R6 -> 0.04080562347 | S7: =S6 -> 0.05009228114 | T7: =R7+S7 -> 0.09089790461 | U7: =+Q7-T7 -> 0.01210234703 | V7: =M19 -> 305745.7501 | W7: =Q7*V7 -> 31491.8892 | X7: =R7*V7 -> 12476.14596 | Y7: =+V7*S7 -> 15315.50207 | Z7: =W7-X7-Y7 -> 3700.241172
B8: FIT | C8: 822354.47 | D8: 35649.28 | E8: =D8/C8 -> 0.04335025989 | M8: =+M5+M6+M7 -> 17752131.46 | N8: =+N5+N6+N7 -> 21738229.68 | P8: RPPTOUMID | Q8: =E23 -> 0.1019953096 | R8: =E43 -> 0.04111584679 | S8: =S7 -> 0.05009228114 | T8: 0.09120812793 | U8: 0.01078718162 | V8: 1790289.838 | W8: 182601.1662 | X8: 73609.28268 | Y8: 89679.70188 | Z8: 19312.18163
B9: microFIT | C9: 41559.02 | D9: 1815.55 | E9: =D9/C9 -> 0.04368606382 | P9: RPPTOUOFF | Q9: =E24 -> 0.07399799136 | R9: =R8 -> 0.04111584679 | S9: 0.05009228114 | T9: 0.09120812793 | U9: -0.01721013657 | V9: 6098314.157 | W9: 451262.9983 | X9: 250737.3506 | Y9: 305478.4673 | Z9: -104952.8195
B10: WHOLESALE | C10: 20874316.19 | D10: 850093.66 | E10: =D10/C10 -> 0.0407243836 | K10: Estimated Retail Volume Revenue Data (TLF Included) | L10: RPP/non-RPP Ratios | M10: GA Volumes | N10: Energy Volumes | P10: RPPTOUON | Q10: 0.1509599668 | R10: =R9 -> 0.04111584679 | S10: 0.05009228114 | T10: 0.09120812793 | U10: 0.05975183882 | V10: 2012515.943 | W10: 303809.3399 | X10: 82746.29719 | Y10: 100811.5144 | Z10: 120251.5283
A11: Total Wholesale Electricity | B11: Grand Total | C11: 21738229.68 | D11: 887558.49 | K11: Estimated Retail Revenue Data (Net of Retail Billed/Unbilled) | M11: =+M15 -> 17752131.46 | N11: =+N15 -> 21738229.68 | P11: RPPULOMID | Q11: 0 | R11: 0 | S11: 0 | T11: 0 | U11: 0 | V11: 0 | W11: 0 | X11: 0 | Y11: 0 | Z11: 0
P12: RPPULOOFF | Q12: 0 | R12: 0 | S12: 0 | T12: 0 | U12: 0 | V12: 0 | W12: 0 | X12: 0 | Y12: 0 | Z12: 0
K13: Estimated RPP Sales Quantities | L13: =SUM(C20:C25)/(C30-B64) -> 0.6201693921 | M13: =M8*L13 -> 11009328.58 | N13: =M13 -> 11009328.58 | P13: RPPULOON | Q13: 0 | R13: 0 | S13: 0 | T13: 0 | U13: 0 | V13: 0 | W13: 0 | X13: 0 | Y13: 0 | Z13: 0
A14: RPP Revenue Volume and Price Data | K14: Estimated non-RPP Sales Quantities | L14: =1-L13 -> 0.3798306079 | M14: =M8*L14 -> 6742802.885 | N14: =N8-N13 -> 10728901.1 | P14: RPPULOOVN | Q14: 0 | R14: 0 | S14: 0 | T14: 0 | U14: 0 | V14: 0 | W14: 0 | X14: 0 | Y14: 0 | Z14: 0
B15: bill_year | C15: 2023 | K15: Estimated Retail Revenue kWh Volumes | L15: =+L13+L14 -> 1 | M15: =+M13+M14 -> 17752131.46 | N15: =+N13+N14 -> 21738229.68 | V15: =SUM(V6:V14) -> 11009328.58 | W15: =SUM(W6:W14) -> 1038979.919 | X15: =SUM(X6:X14) -> 452314.0748 | Y15: =SUM(Y6:Y14) -> 551482.3822 | Z15: =SUM(Z6:Z14) -> 35183.46215
B16: bill_month | C16: 7 | Z16: =W15-X15-Y15-Z15 -> 0
K17: Estimated RPP Revenue Volume and Price Data | L17: Actual % | M17: kWh Volumes
B18: Row Labels | C18: usagebilled | D18: amountbilled | E18: Rate | K18: RPPT1 | L18: =C20/SUM($C$20:$C$25) -> 0.07288935761 | M18: =$M$13*L18 -> 802462.8875
B19: RPPTIER | K19: RPPT2 | L19: =C21/SUM($C$20:$C$25) -> 0.02777151649 | M19: =$M$13*L19 -> 305745.7501
B20: RPPT1 | C20: 788643.1431 | D20: 68612.20344 | E20: =D20/C20 -> 0.087000317 | K20: RPPTOUMID | L20: =C23/SUM($C$20:$C$25) -> 0.162615715 | M20: 1790289.838
B21: RPPT2 | C21: 300480.3002 | D21: 30949.54653 | E21: =D21/C21 -> 0.1030002516 | K21: RPPTOUOFF | L21: =C24/SUM($C$20:$C$25) -> 0.5539224409 | M21: 6098314.157
B22: RPPTOU | K22: RPPTOUON | L22: 0.1828009701 | M22: 2012515.943
B23: RPPTOUMID | C23: 1759458.071 | D23: 179456.4706 | E23: 0.1019953096 | K23: RPPULOMID | L23: 0 | M23: 0
B24: RPPTOUOFF | C24: 5993291.053 | D24: 443491.4995 | E24: 0.07399799136 | K24: RPPULOOFF | L24: 0 | M24: 0
B25: RPPTOUON | C25: 1977857.074 | D25: 298577.2382 | E25: 0.1509599668 | K25: RPPULOON | L25: 0 | M25: 0
B26: RETAIL | K26: RPPULOOVN | L26: 0 | M26: 0
B27: NSLS | C27: 3892043.279 | D27: 157594.8671 | E27: 0.04049155052 | L27: =SUM(L18:L26) -> 1 | M27: =SUM(M18:M26) -> 11009328.58
B28: INTERVAL
B29: HOEP | C29: 6720735.554 | D29: 268508.8189 | E29: 0.03995229641
B30: Grand Total | C30: 21432508.47 | D30: 1447190.644
K31: Global Adjustment | L31: per kWh
C32: =C30/C11-1 -> -0.01406375816 | K32: Class B - GA actual8 | L32: =B69/100 -> 0.04949999809 | N32: GA Posted Price
K33: Class B - GA actual IESO billed | L33: =+M33/M8 -> 0.05009228114 | M33: =B76 -> 889244.76 | N33: GA Billed by IESO CT 148
A37: RPP COP Volume and Price Data
B38: bill_year | C38: 2023
B39: bill_month | C39: 7
B41: Row Labels | C41: usagebilled | D41: amountbilled | E41: Rate
B42: RPPTIERED | C42: 1089001.93 | D42: 44437.40272 | E42: =D42/C42 -> 0.04080562347
B43: RPPTOU | C43: 9739808.283 | D43: 400460.4652 | E43: 0.04111584679
B44: Grand Total | C44: 10828810.21 | D44: 444897.8679
C46: =SUM(C20:C25)-C44 -> -9080.572124
C47: =C46/C44 -> -0.0008385567708
A60: Year | B60: 2023
A62: Class A
A63: Source | B63: kWh
A64: 202307 | B64: 3986098.22
A67: ga_actual | B67: year
A68: month | B68: 2023
A69: 202307 | B69: 4.949999809
A72: chargetype | B72: 148
A74: Sum of chargeamount | B74: year
A75: month | B75: 2023
A76: 202307 | B76: 889244.76

Sheet I15 Input Rev 07 Init (hidden)
A1: Reverse IESO Posted
A5: =Admin!B26 -> 202307
A6: RPP Revenue Prices | B6: kWh Volumes | C6: $ RPP Settlement
A7: RPPTiered_1 | B7: 689479.08 | C7: 18535.64
A8: RPPTiered_2 | B8: 190983.03 | C8: 2078.4
A9: RPPTOU_MID | B9: 1484907.75 | C9: 18231.56
A10: RPPTOU_OFF | B10: 4517335.78 | C10: 181948.37
A11: RPPTOU_ON | B11: 1587040.34 | C11: -58280.17
A12: Grand Total | B12: 8469745.98 | C12: 162513.8

Sheet I16 Input 08 Trueup Sett (hidden)
A1: Date: | B1: =Admin!B8+7 -> 202308 | C1: Trueup | K1: ="Data for 1st True up of RPP Settlement based on Actual IESO Invoice" -> Data for 1st True up of RPP Settlement based on Actual IESO Invoice | P1: For Reconciliation
A3: Wholesale Electricty | B3: Year | C3: 2023 | E3: Rate | P3: Actual RPP Revenue and GA
B4: dateref | C4: 202308 | K4: Wholesale Volume data per IESO Power Bill: | L4: GA RPP/non-RPP Ratios | M4: GA Volumes | N4: Energy Volumes | P4: =B1 -> 202308
K5: AQEW | M5: =C10 -> 19944761.83 | N5: =+M5 -> 19944761.83 | P5: RPP Revenue Prices | Q5: RPP Rate | R5: Estimated RPP Energy Price | S5: GA actual IESO billed | T5: Total Commodity | U5: Difference | V5: kWh Volumes | W5: $ Estimated RPP Revenue | X5: $ Estimated RPP Energy | Y5: $ Estimated GA | Z5: $ Estimated RPP Settlement
B6: Wholesale | K6: Embedded Generation | M6: =SUM(C8:C9) -> 770241.5 | N6: =+M6 -> 770241.5 | P6: RPPT1 | Q6: =E20 -> 0.08700054023 | R6: =E42 -> 0.03168543035 | S6: =L33 -> 0.07372454168 | T6: =R6+S6 -> 0.105409972 | U6: =+Q6-T6 -> -0.0184094318 | V6: =M18 -> 749915.8192 | W6: =Q6*V6 -> 65243.08139 | X6: =R6*V6 -> 23761.40545 | Y6: =+V6*S6 -> 55287.20007 | Z6: =W6-X6-Y6 -> -13805.52413
A7: FIT/mFIT | B7: Source | C7: kWh | D7: Total Cost | K7: Class A customer Volumes for GA (TLF included) | M7: =-B64 -> -4268877.49 | P7: RPPT2 | Q7: =E21 -> 0.1029997367 | R7: =R6 -> 0.03168543035 | S7: =S6 -> 0.07372454168 | T7: =R7+S7 -> 0.105409972 | U7: =+Q7-T7 -> -0.002410235336 | V7: =M19 -> 219481.5286 | W7: =Q7*V7 -> 22606.53966 | X7: =R7*V7 -> 6954.366687 | Y7: =+V7*S7 -> 16181.17511 | Z7: =W7-X7-Y7 -> -529.0021359
B8: FIT | C8: 730086.37 | D8: 24815.01 | E8: =D8/C8 -> 0.03398914296 | M8: =+M5+M6+M7 -> 16446125.84 | N8: =+N5+N6+N7 -> 20715003.33 | P8: RPPTOUMID | Q8: =E23 -> 0.1019983453 | R8: =E43 -> 0.03182523502 | S8: =S7 -> 0.07372454168 | T8: 0.1055497767 | U8: -0.00355143137 | V8: 1718999.804 | W8: 175335.1356 | X8: 54707.57276 | Y8: 126732.4727 | Z8: -6104.909829
B9: microFIT | C9: 40155.13 | D9: 1362.96 | E9: =D9/C9 -> 0.03394236303 | P9: RPPTOUOFF | Q9: =E24 -> 0.07399880828 | R9: =R8 -> 0.03182523502 | S9: 0.07372454168 | T9: 0.1055497767 | U9: -0.03155096843 | V9: 5301707.809 | W9: 392320.0597 | X9: 168728.097 | Y9: 390865.9783 | Z9: -167274.0157
B10: WHOLESALE | C10: 19944761.83 | D10: 625707.61 | E10: =D10/C10 -> 0.03137202717 | K10: Estimated Retail Volume Revenue Data (TLF Included) | L10: RPP/non-RPP Ratios | M10: GA Volumes | N10: Energy Volumes | P10: RPPTOUON | Q10: 0.1509723954 | R10: =R9 -> 0.03182523502 | S10: 0.07372454168 | T10: 0.1055497767 | U10: 0.04542261874 | V10: 1885268.625 | W10: 284623.5204 | X10: 59999.11707 | Y10: 138990.5653 | Z10: 85633.83798
A11: Total Wholesale Electricity | B11: Grand Total | C11: 20715003.33 | D11: 651885.58 | K11: Estimated Retail Revenue Data (Net of Retail Billed/Unbilled) | M11: =+M15 -> 16446125.84 | N11: =+N15 -> 20715003.33 | P11: RPPULOMID | Q11: 0 | R11: 0 | S11: 0 | T11: 0 | U11: 0 | V11: 0 | W11: 0 | X11: 0 | Y11: 0 | Z11: 0
P12: RPPULOOFF | Q12: 0 | R12: 0 | S12: 0 | T12: 0 | U12: 0 | V12: 0 | W12: 0 | X12: 0 | Y12: 0 | Z12: 0
K13: Estimated RPP Sales Quantities | L13: =SUM(C20:C25)/(C30-B64) -> 0.6004680787 | M13: =M8*L13 -> 9875373.585 | N13: =M13 -> 9875373.585 | P13: RPPULOON | Q13: 0 | R13: 0 | S13: 0 | T13: 0 | U13: 0 | V13: 0 | W13: 0 | X13: 0 | Y13: 0 | Z13: 0
A14: RPP Revenue Volume and Price Data | K14: Estimated non-RPP Sales Quantities | L14: =1-L13 -> 0.3995319213 | M14: =M8*L14 -> 6570752.255 | N14: =N8-N13 -> 10839629.74 | P14: RPPULOOVN | Q14: 0 | R14: 0 | S14: 0 | T14: 0 | U14: 0 | V14: 0 | W14: 0 | X14: 0 | Y14: 0 | Z14: 0
B15: bill_year | C15: 2023 | K15: Estimated Retail Revenue kWh Volumes | L15: =+L13+L14 -> 1 | M15: =+M13+M14 -> 16446125.84 | N15: =+N13+N14 -> 20715003.33 | V15: =SUM(V6:V14) -> 9875373.585 | W15: =SUM(W6:W14) -> 940128.3367 | X15: =SUM(X6:X14) -> 314150.559 | Y15: =SUM(Y6:Y14) -> 728057.3915 | Z15: =SUM(Z6:Z14) -> -102079.6138
B16: bill_month | C16: 8 | Z16: =W15-X15-Y15-Z15 -> 1.746229827e-10
K17: Estimated RPP Revenue Volume and Price Data | L17: Actual % | M17: kWh Volumes
B18: Row Labels | C18: usagebilled | D18: amountbilled | E18: Rate | K18: RPPT1 | L18: =C20/SUM($C$20:$C$25) -> 0.07593796961 | M18: =$M$13*L18 -> 749915.8192
B19: RPPTIER | K19: RPPT2 | L19: =C21/SUM($C$20:$C$25) -> 0.02222513677 | M19: =$M$13*L19 -> 219481.5286
B20: RPPT1 | C20: 739125.6635 | D20: 64304.33202 | E20: =D20/C20 -> 0.08700054023 | K20: RPPTOUMID | L20: =C23/SUM($C$20:$C$25) -> 0.1740693442 | M20: 1718999.804
B21: RPPT2 | C21: 216323.521 | D21: 22281.2657 | E21: =D21/C21 -> 0.1029997367 | K21: RPPTOUOFF | L21: =C24/SUM($C$20:$C$25) -> 0.5368614932 | M21: 5301707.809
B22: RPPTOU | K22: RPPTOUON | L22: 0.1909060562 | M22: 1885268.625
B23: RPPTOUMID | C23: 1694265.994 | D23: 172812.3279 | E23: 0.1019983453 | K23: RPPULOMID | L23: 0 | M23: 0
B24: RPPTOUOFF | C24: 5225424.243 | D24: 386675.1667 | E24: 0.07399880828 | K24: RPPULOOFF | L24: 0 | M24: 0
B25: RPPTOUON | C25: 1858142.458 | D25: 280528.2179 | E25: 0.1509723954 | K25: RPPULOON | L25: 0 | M25: 0
B26: RETAIL | K26: RPPULOOVN | L26: 0 | M26: 0
B27: NSLS | C27: 3796372.237 | D27: 119094.1904 | E27: 0.03137052506 | L27: =SUM(L18:L26) -> 1 | M27: =SUM(M18:M26) -> 9875373.585
B28: INTERVAL
B29: HOEP | C29: 6948714.309 | D29: 214822.6106 | E29: 0.03091544724
B30: Grand Total | C30: 20478368.42 | D30: 1260518.111
K31: Global Adjustment | L31: per kWh
C32: =C30/C11-1 -> -0.0114233583 | K32: Class B - GA actual8 | L32: =B69/100 -> 0.07610000134 | N32: GA Posted Price
K33: Class B - GA actual IESO billed | L33: =+M33/M8 -> 0.07372454168 | M33: =B76 -> 1212483.09 | N33: GA Billed by IESO CT 148
A37: RPP COP Volume and Price Data
B38: bill_year | C38: 2023
B39: bill_month | C39: 8
B41: Row Labels | C41: usagebilled | D41: amountbilled | E41: Rate
B42: RPPTIERED | C42: 1157163.219 | D42: 36665.21456 | E42: =D42/C42 -> 0.03168543035
B43: RPPTOU | C43: 11748521.63 | D43: 373899.4621 | E43: 0.03182523502
B44: Grand Total | C44: 12905684.85 | D44: 410564.6766
C46: =SUM(C20:C25)-C44 -> -3172402.971
C47: =C46/C44 -> -0.245814384
A60: Year | B60: 2023
A62: Class A
A63: Source | B63: kWh
A64: 202308 | B64: 4268877.49
A67: ga_actual | B67: year
A68: month | B68: 2023
A69: 202308 | B69: 7.610000134
A72: chargetype | B72: 148
A74: Sum of chargeamount | B74: year
A75: month | B75: 2023
A76: 202308 | B76: 1212483.09

Sheet I17 Input Rev 08 Init (hidden)
A1: Reverse IESO Posted
A5: =Admin!B29 -> 202308
A6: RPP Revenue Prices | B6: kWh Volumes | C6: $ RPP Settlement
A7: RPPTiered_1 | B7: 784759.13 | C7: 4182.5
A8: RPPTiered_2 | B8: 284152.27 | C8: -3031.94
A9: RPPTOU_MID | B9: 1704511.01 | C9: -13751.63
A10: RPPTOU_OFF | B10: 5883687.93 | C10: 117275.24
A11: RPPTOU_ON | B11: 1898516.04 | C11: -108343.29
A12: Grand Total | B12: 10555626.38 | C12: -3669.12

Sheet I18 Input 09 Trueup Sett (hidden)
A1: Date: | B1: =Admin!B8+8 -> 202309 | C1: Trueup | K1: ="Data for 1st True up of RPP Settlement based on Actual IESO Invoice" -> Data for 1st True up of RPP Settlement based on Actual IESO Invoice | P1: For Reconciliation
A3: Wholesale Electricty | B3: Year | C3: 2023 | E3: Rate | P3: Actual RPP Revenue and GA
B4: dateref | C4: 202309 | K4: Wholesale Volume data per IESO Power Bill: | L4: GA RPP/non-RPP Ratios | M4: GA Volumes | N4: Energy Volumes | P4: =B1 -> 202309
K5: AQEW | M5: =C10 -> 18297579.24 | N5: =+M5 -> 18297579.24 | P5: RPP Revenue Prices | Q5: RPP Rate | R5: Estimated RPP Energy Price | S5: GA actual IESO billed | T5: Total Commodity | U5: Difference | V5: kWh Volumes | W5: $ Estimated RPP Revenue | X5: $ Estimated RPP Energy | Y5: $ Estimated GA | Z5: $ Estimated RPP Settlement
B6: Wholesale | K6: Embedded Generation | M6: =SUM(C8:C9) -> 741934.17 | N6: =+M6 -> 741934.17 | P6: RPPT1 | Q6: =E20 -> 0.08699989983 | R6: =E42 -> 0.0411178803 | S6: =L33 -> 0.05598357331 | T6: =R6+S6 -> 0.09710145361 | U6: =+Q6-T6 -> -0.01010155378 | V6: =M18 -> 703425.9653 | W6: =Q6*V6 -> 61197.98852 | X6: =R6*V6 -> 28923.38464 | Y6: =+V6*S6 -> 39380.2991 | Z6: =W6-X6-Y6 -> -7105.695219
A7: FIT/mFIT | B7: Source | C7: kWh | D7: Total Cost | K7: Class A customer Volumes for GA (TLF included) | M7: =-B64 -> -3924844.59 | P7: RPPT2 | Q7: =E21 -> 0.1030013799 | R7: =R6 -> 0.0411178803 | S7: =S6 -> 0.05598357331 | T7: =R7+S7 -> 0.09710145361 | U7: =+Q7-T7 -> 0.005899926319 | V7: =M19 -> 185146.7392 | W7: =Q7*V7 -> 19070.36963 | X7: =R7*V7 -> 7612.841462 | Y7: =+V7*S7 -> 10365.17605 | Z7: =W7-X7-Y7 -> 1092.35212
B8: FIT | C8: 702578.68 | D8: 29523.77 | E8: =D8/C8 -> 0.0420220124 | M8: =+M5+M6+M7 -> 15114668.82 | N8: =+N5+N6+N7 -> 19039513.41 | P8: RPPTOUMID | Q8: =E23 -> 0.1020018973 | R8: =E43 -> 0.04157872785 | S8: =S7 -> 0.05598357331 | T8: 0.09756230117 | U8: 0.004439596086 | V8: 1454625.619 | W8: 148374.5729 | X8: 60481.48273 | Y8: 81435.13997 | Z8: 6457.950203
B9: microFIT | C9: 39355.49 | D9: 1666.18 | E9: =D9/C9 -> 0.04233666002 | P9: RPPTOUOFF | Q9: =E24 -> 0.07400034582 | R9: =R8 -> 0.04157872785 | S9: 0.05598357331 | T9: 0.09756230117 | U9: -0.02356195535 | V9: 4944420.024 | W9: 365888.7917 | X9: 205582.6946 | Y9: 276806.3009 | Z9: -116500.2038
B10: WHOLESALE | C10: 18297579.24 | D10: 733006.83 | E10: =D10/C10 -> 0.04006031729 | K10: Estimated Retail Volume Revenue Data (TLF Included) | L10: RPP/non-RPP Ratios | M10: GA Volumes | N10: Energy Volumes | P10: RPPTOUON | Q10: 0.1509576213 | R10: =R9 -> 0.04157872785 | S10: 0.05598357331 | T10: 0.09756230117 | U10: 0.05339532016 | V10: 1541889.981 | W10: 232760.0438 | X10: 64109.82388 | Y10: 86320.51077 | Z10: 82329.70916
A11: Total Wholesale Electricity | B11: Grand Total | C11: 19039513.41 | D11: 764196.78 | K11: Estimated Retail Revenue Data (Net of Retail Billed/Unbilled) | M11: =+M15 -> 15114668.82 | N11: =+N15 -> 19039513.41 | P11: RPPULOMID | Q11: 0 | R11: 0 | S11: 0 | T11: 0 | U11: 0 | V11: 0 | W11: 0 | X11: 0 | Y11: 0 | Z11: 0
P12: RPPULOOFF | Q12: 0 | R12: 0 | S12: 0 | T12: 0 | U12: 0 | V12: 0 | W12: 0 | X12: 0 | Y12: 0 | Z12: 0
K13: Estimated RPP Sales Quantities | L13: =SUM(C20:C25)/(C30-B64) -> 0.5841681636 | M13: =M8*L13 -> 8829508.328 | N13: =M13 -> 8829508.328 | P13: RPPULOON | Q13: 0 | R13: 0 | S13: 0 | T13: 0 | U13: 0 | V13: 0 | W13: 0 | X13: 0 | Y13: 0 | Z13: 0
A14: RPP Revenue Volume and Price Data | K14: Estimated non-RPP Sales Quantities | L14: =1-L13 -> 0.4158318364 | M14: =M8*L14 -> 6285160.492 | N14: =N8-N13 -> 10210005.08 | P14: RPPULOOVN | Q14: 0 | R14: 0 | S14: 0 | T14: 0 | U14: 0 | V14: 0 | W14: 0 | X14: 0 | Y14: 0 | Z14: 0
B15: bill_year | C15: 2023 | K15: Estimated Retail Revenue kWh Volumes | L15: =+L13+L14 -> 1 | M15: =+M13+M14 -> 15114668.82 | N15: =+N13+N14 -> 19039513.41 | V15: =SUM(V6:V14) -> 8829508.328 | W15: =SUM(W6:W14) -> 827291.7666 | X15: =SUM(X6:X14) -> 366710.2273 | Y15: =SUM(Y6:Y14) -> 494307.4268 | Z15: =SUM(Z6:Z14) -> -33725.88758
B16: bill_month | C16: 9 | Z16: =W15-X15-Y15-Z15 -> 0
K17: Estimated RPP Revenue Volume and Price Data | L17: Actual % | M17: kWh Volumes
B18: Row Labels | C18: usagebilled | D18: amountbilled | E18: Rate | K18: RPPT1 | L18: =C20/SUM($C$20:$C$25) -> 0.07966762578 | M18: =$M$13*L18 -> 703425.9653
B19: RPPTIER | K19: RPPT2 | L19: =C21/SUM($C$20:$C$25) -> 0.02096908824 | M19: =$M$13*L19 -> 185146.7392
B20: RPPT1 | C20: 694250.1972 | D20: 60399.69762 | E20: =D20/C20 -> 0.08699989983 | K20: RPPTOUMID | L20: =C23/SUM($C$20:$C$25) -> 0.1647459365 | M20: 1454625.619
B21: RPPT2 | C21: 182731.6115 | D21: 18821.60815 | E21: =D21/C21 -> 0.1030013799 | K21: RPPTOUOFF | L21: =C24/SUM($C$20:$C$25) -> 0.5599881489 | M21: 4944420.024
B22: RPPTOU | K22: RPPTOUON | L22: 0.1746292005 | M22: 1541889.981
B23: RPPTOUMID | C23: 1435650.903 | D23: 146439.116 | E23: 0.1020018973 | K23: RPPULOMID | L23: 0 | M23: 0
B24: RPPTOUOFF | C24: 4879923.043 | D24: 361115.9927 | E24: 0.07400034582 | K24: RPPULOOFF | L24: 0 | M24: 0
B25: RPPTOUON | C25: 1521776.954 | D25: 229723.8292 | E25: 0.1509576213 | K25: RPPULOON | L25: 0 | M25: 0
B26: RETAIL | K26: RPPULOOVN | L26: 0 | M26: 0
B27: NSLS | C27: 3483935.793 | D27: 137446.4105 | E27: 0.03945147634 | L27: =SUM(L18:L26) -> 1 | M27: =SUM(M18:M26) -> 8829508.328
B28: INTERVAL
B29: HOEP | C29: 6644083.156 | D29: 252765.2606 | E29: 0.03804366301
B30: Grand Total | C30: 18842351.66 | D30: 1206711.915
K31: Global Adjustment | L31: per kWh
C32: =C30/C11-1 -> -0.01035539869 | K32: Class B - GA actual8 | L32: =B69/100 -> 0.05090000153 | N32: GA Posted Price
K33: Class B - GA actual IESO billed | L33: =+M33/M8 -> 0.05598357331 | M33: =B76 -> 846173.17 | N33: GA Billed by IESO CT 148
A37: RPP COP Volume and Price Data
B38: bill_year | C38: 2023
B39: bill_month | C39: 9
B41: Row Labels | C41: usagebilled | D41: amountbilled | E41: Rate
B42: RPPTIERED | C42: 877004.3947 | D42: 36060.56172 | E42: =D42/C42 -> 0.0411178803
B43: RPPTOU | C43: 7837432.196 | D43: 325870.4603 | E43: 0.04157872785
B44: Grand Total | C44: 8714436.59 | D44: 361931.0221
C46: =SUM(C20:C25)-C44 -> -103.8807891
C47: =C46/C44 -> -1.19205399e-05
A60: Year | B60: 2023
A62: Class A
A63: Source | B63: kWh
A64: 202309 | B64: 3924844.59
A67: ga_actual | B67: year
A68: month | B68: 2023
A69: 202309 | B69: 5.090000153
A72: chargetype | B72: 148
A74: Sum of chargeamount | B74: year
A75: month | B75: 2023
A76: 202309 | B76: 846173.17

Sheet I19 Input Rev 09 Init (hidden)
A1: Reverse IESO Posted
A5: =Admin!B32 -> 202309
A6: RPP Revenue Prices | B6: kWh Volumes | C6: $ RPP Settlement
A7: RPPTiered_1 | B7: 740938.81 | C7: 13933.55
A8: RPPTiered_2 | B8: 218681.73 | C8: 613.67
A9: RPPTOU_MID | B9: 1688552.63 | C9: 4992.81
A10: RPPTOU_OFF | B10: 5181065.23 | C10: 160398.43
A11: RPPTOU_ON | B11: 1861109.95 | C11: -85690.49
A12: Grand Total | B12: 9690348.35 | C12: 94247.97

Sheet I20 Input 10 Trueup Sett (hidden)
A1: Date: | B1: =Admin!B8+9 -> 202310 | C1: Trueup | K1: ="Data for 1st True up of RPP Settlement based on Actual IESO Invoice" -> Data for 1st True up of RPP Settlement based on Actual IESO Invoice | P1: For Reconciliation
A3: Wholesale Electricty | B3: Year | C3: 2023 | E3: Rate | P3: Actual RPP Revenue and GA
B4: dateref | C4: 202310 | K4: Wholesale Volume data per IESO Power Bill: | L4: GA RPP/non-RPP Ratios | M4: GA Volumes | N4: Energy Volumes | P4: =B1 -> 202310
K5: AQEW | M5: =C10 -> 18253066.7 | N5: =+M5 -> 18253066.7 | P5: RPP Revenue Prices | Q5: RPP Rate | R5: Estimated RPP Energy Price | S5: GA actual IESO billed | T5: Total Commodity | U5: Difference | V5: kWh Volumes | W5: $ Estimated RPP Revenue | X5: $ Estimated RPP Energy | Y5: $ Estimated GA | Z5: $ Estimated RPP Settlement
B6: Wholesale | K6: Embedded Generation | M6: =SUM(C8:C9) -> 455092.03 | N6: =+M6 -> 455092.03 | P6: RPPT1 | Q6: =E20 -> 0.08702943147 | R6: =E42 -> 0.03159153541 | S6: =L33 -> 0.08164649117 | T6: =R6+S6 -> 0.1132380266 | U6: =+Q6-T6 -> -0.02620859512 | V6: =M18 -> 730597.5892 | W6: =Q6*V6 -> 63583.49282 | X6: =R6*V6 -> 23080.69961 | Y6: =+V6*S6 -> 59650.72961 | Z6: =W6-X6-Y6 -> -19147.93641
A7: FIT/mFIT | B7: Source | C7: kWh | D7: Total Cost | K7: Class A customer Volumes for GA (TLF included) | M7: =-B64 -> -3882685 | P7: RPPT2 | Q7: =E21 -> 0.1039439819 | R7: =R6 -> 0.03159153541 | S7: =S6 -> 0.08164649117 | T7: =R7+S7 -> 0.1132380266 | U7: =+Q7-T7 -> -0.009294044729 | V7: =M19 -> 252268.0038 | W7: =Q7*V7 -> 26221.74081 | X7: =R7*V7 -> 7969.533576 | Y7: =+V7*S7 -> 20596.79735 | Z7: =W7-X7-Y7 -> -2344.590111
B8: FIT | C8: 430867.01 | D8: 14336.59 | E8: =D8/C8 -> 0.0332738169 | M8: =+M5+M6+M7 -> 14825473.73 | N8: =+N5+N6+N7 -> 18708158.73 | P8: RPPTOUMID | Q8: =E23 -> 0.102017355 | R8: =E43 -> 0.03176737733 | S8: =S7 -> 0.08164649117 | T8: 0.1134138685 | U8: -0.0113965135 | V8: 1438671.785 | W8: 146769.4902 | X8: 45702.82944 | Y8: 117462.5032 | Z8: -16395.84241
B9: microFIT | C9: 24225.02 | D9: 809.63 | E9: =D9/C9 -> 0.03342123144 | P9: RPPTOUOFF | Q9: =E24 -> 0.07400750633 | R9: =R8 -> 0.03176737733 | S9: 0.08164649117 | T9: 0.1134138685 | U9: -0.03940636218 | V9: 4747501.053 | W9: 351350.7142 | X9: 150815.6573 | Y9: 387616.8028 | Z9: -187081.7459
B10: WHOLESALE | C10: 18253066.7 | D10: 576644.25 | E10: =D10/C10 -> 0.0315916366 | K10: Estimated Retail Volume Revenue Data (TLF Included) | L10: RPP/non-RPP Ratios | M10: GA Volumes | N10: Energy Volumes | P10: RPPTOUON | Q10: 0.1509657868 | R10: =R9 -> 0.03176737733 | S10: 0.08164649117 | T10: 0.1134138685 | U10: 0.03755191826 | V10: 1435422.927 | W10: 216699.7515 | X10: 45599.62176 | Y10: 117197.2453 | Z10: 53902.88443
A11: Total Wholesale Electricity | B11: Grand Total | C11: 18708158.73 | D11: 591790.47 | K11: Estimated Retail Revenue Data (Net of Retail Billed/Unbilled) | M11: =+M15 -> 14825473.73 | N11: =+N15 -> 18708158.73 | P11: RPPULOMID | Q11: 0 | R11: 0 | S11: 0 | T11: 0 | U11: 0 | V11: 0 | W11: 0 | X11: 0 | Y11: 0 | Z11: 0
P12: RPPULOOFF | Q12: 0 | R12: 0 | S12: 0 | T12: 0 | U12: 0 | V12: 0 | W12: 0 | X12: 0 | Y12: 0 | Z12: 0
K13: Estimated RPP Sales Quantities | L13: =SUM(C20:C25)/(C30-B64) -> 0.5803835691 | M13: =M8*L13 -> 8604461.358 | N13: =M13 -> 8604461.358 | P13: RPPULOON | Q13: 0 | R13: 0 | S13: 0 | T13: 0 | U13: 0 | V13: 0 | W13: 0 | X13: 0 | Y13: 0 | Z13: 0
A14: RPP Revenue Volume and Price Data | K14: Estimated non-RPP Sales Quantities | L14: =1-L13 -> 0.4196164309 | M14: =M8*L14 -> 6221012.372 | N14: =N8-N13 -> 10103697.37 | P14: RPPULOOVN | Q14: 0 | R14: 0 | S14: 0 | T14: 0 | U14: 0 | V14: 0 | W14: 0 | X14: 0 | Y14: 0 | Z14: 0
B15: bill_year | C15: 2023 | K15: Estimated Retail Revenue kWh Volumes | L15: =+L13+L14 -> 1 | M15: =+M13+M14 -> 14825473.73 | N15: =+N13+N14 -> 18708158.73 | V15: =SUM(V6:V14) -> 8604461.358 | W15: =SUM(W6:W14) -> 804625.1896 | X15: =SUM(X6:X14) -> 273168.3417 | Y15: =SUM(Y6:Y14) -> 702524.0783 | Z15: =SUM(Z6:Z14) -> -171067.2304
B16: bill_month | C16: 10 | Z16: =W15-X15-Y15-Z15 -> 0
K17: Estimated RPP Revenue Volume and Price Data | L17: Actual % | M17: kWh Volumes
B18: Row Labels | C18: usagebilled | D18: amountbilled | E18: Rate | K18: RPPT1 | L18: =C20/SUM($C$20:$C$25) -> 0.08490916036 | M18: =$M$13*L18 -> 730597.5892
B19: RPPTIER | K19: RPPT2 | L19: =C21/SUM($C$20:$C$25) -> 0.02931827959 | M19: =$M$13*L19 -> 252268.0038
B20: RPPT1 | C20: 722097.7959 | D20: 62843.76064 | E20: =D20/C20 -> 0.08702943147 | K20: RPPTOUMID | L20: =C23/SUM($C$20:$C$25) -> 0.1672006794 | M20: 1438671.785
B21: RPPT2 | C21: 249333.1106 | D21: 25916.67633 | E21: =D21/C21 -> 0.1039439819 | K21: RPPTOUOFF | L21: =C24/SUM($C$20:$C$25) -> 0.5517487796 | M21: 4747501.053
B22: RPPTOU | K22: RPPTOUON | L22: 0.1668231011 | M22: 1435422.927
B23: RPPTOUMID | C23: 1421934.236 | D23: 145061.9697 | E23: 0.102017355 | K23: RPPULOMID | L23: 0 | M23: 0
B24: RPPTOUOFF | C24: 4692268.49 | D24: 347263.09 | E24: 0.07400750633 | K24: RPPULOOFF | L24: 0 | M24: 0
B25: RPPTOUON | C25: 1418723.176 | D25: 214178.6604 | E25: 0.1509657868 | K25: RPPULOON | L25: 0 | M25: 0
B26: RETAIL | K26: RPPULOOVN | L26: 0 | M26: 0
B27: NSLS | C27: 3210928.766 | D27: 102478.5392 | E27: 0.03191554428 | L27: =SUM(L18:L26) -> 1 | M27: =SUM(M18:M26) -> 8604461.358
B28: INTERVAL
B29: HOEP | C29: 6820393.171 | D29: 214299.4997 | E29: 0.03142040265
B30: Grand Total | C30: 18535678.74 | D30: 1112042.196
K31: Global Adjustment | L31: per kWh
C32: =C30/C11-1 -> -0.009219506197 | K32: Class B - GA actual8 | L32: =B69/100 -> 0.08498000145 | N32: GA Posted Price
K33: Class B - GA actual IESO billed | L33: =+M33/M8 -> 0.08164649117 | M33: =B76 -> 1210447.91 | N33: GA Billed by IESO CT 148
A37: RPP COP Volume and Price Data
B38: bill_year | C38: 2023
B39: bill_month | C39: 10
B41: Row Labels | C41: usagebilled | D41: amountbilled | E41: Rate
B42: RPPTIERED | C42: 956727.5544 | D42: 30224.49242 | E42: =D42/C42 -> 0.03159153541
B43: RPPTOU | C43: 7540322.949 | D43: 239536.2843 | E43: 0.03176737733
B44: Grand Total | C44: 8497050.503 | D44: 269760.7767
C46: =SUM(C20:C25)-C44 -> 7306.305135
C47: =C46/C44 -> 0.0008598636825
A60: Year | B60: 2023
A62: Class A
A63: Source | B63: kWh
A64: 202310 | B64: 3882685
A67: ga_actual | B67: year
A68: month | B68: 2023
A69: 202310 | B69: 8.498000145
A72: chargetype | B72: 148
A74: Sum of chargeamount | B74: year
A75: month | B75: 2023
A76: 202310 | B76: 1210447.91

Sheet I21 Input Rev 10 Init (hidden)
A1: Reverse IESO Posted
A5: =Admin!B35 -> 202310
A6: RPP Revenue Prices | B6: kWh Volumes | C6: $ RPP Settlement
A7: RPPTiered_1 | B7: 703730.44 | C7: 4781.1
A8: RPPTiered_2 | B8: 183973.45 | C8: -1693.9
A9: RPPTOU_MID | B9: 1476119.17 | C9: -9772.52
A10: RPPTOU_OFF | B10: 4931190.21 | C10: 105432.22
A11: RPPTOU_ON | B11: 1577384.03 | C11: -87735.01
A12: Grand Total | B12: 8872397.3 | C12: 11011.89

Sheet I22 Input 11 Trueup Sett (hidden)
A1: Date: | B1: =Admin!B8+10 -> 202311 | C1: Trueup | K1: ="Data for 1st True up of RPP Settlement based on Actual IESO Invoice" -> Data for 1st True up of RPP Settlement based on Actual IESO Invoice | P1: For Reconciliation
A3: Wholesale Electricty | B3: Year | C3: 2023 | E3: Rate | P3: Actual RPP Revenue and GA
B4: dateref | C4: 202311 | K4: Wholesale Volume data per IESO Power Bill: | L4: GA RPP/non-RPP Ratios | M4: GA Volumes | N4: Energy Volumes | P4: =B1 -> 202311
K5: AQEW | M5: =C10 -> 19495196.68 | N5: =+M5 -> 19495196.68 | P5: RPP Revenue Prices | Q5: RPP Rate | R5: Estimated RPP Energy Price | S5: GA actual IESO billed | T5: Total Commodity | U5: Difference | V5: kWh Volumes | W5: $ Estimated RPP Revenue | X5: $ Estimated RPP Energy | Y5: $ Estimated GA | Z5: $ Estimated RPP Settlement
B6: Wholesale | K6: Embedded Generation | M6: =SUM(C8:C9) -> 294078.53 | N6: =+M6 -> 294078.53 | P6: RPPT1 | Q6: =E21 -> 0.1029971029 | R6: =E43 -> 0.03061927656 | S6: =L33 -> 0.07083014629 | T6: =R6+S6 -> 0.1014494228 | U6: =+Q6-T6 -> 0.001547680026 | V6: =M18 -> 906614.3563 | W6: =Q6*V6 -> 93378.65212 | X6: =R6*V6 -> 27759.8757 | Y6: =+V6*S6 -> 64215.62748 | Z6: =W6-X6-Y6 -> 1403.148931
A7: FIT/mFIT | B7: Source | C7: kWh | D7: Total Cost | K7: Class A customer Volumes for GA (TLF included) | M7: =-B64 -> -3755295.76 | P7: RPPT2 | Q7: =E22 -> 0.1250004963 | R7: =R6 -> 0.03061927656 | S7: =S6 -> 0.07083014629 | T7: =R7+S7 -> 0.1014494228 | U7: =+Q7-T7 -> 0.02355107347 | V7: =M19 -> 233078.3605 | W7: =Q7*V7 -> 29134.91074 | X7: =R7*V7 -> 7136.690779 | Y7: =+V7*S7 -> 16508.97437 | Z7: =W7-X7-Y7 -> 5489.245591
B8: FIT | C8: 277184.39 | D8: 8603.02 | E8: =D8/C8 -> 0.03103717349 | M8: =+M5+M6+M7 -> 16033979.45 | N8: =+N5+N6+N7 -> 19789275.21 | P8: RPPTOUMID | Q8: =E24 -> 0.1219873269 | R8: =E44 -> 0.03067993386 | S8: =S7 -> 0.07083014629 | T8: 0.1015100801 | U8: 0.02047724677 | V8: 1692925.182 | W8: 206515.4176 | X8: 51938.83261 | Y8: 119910.1383 | Z8: 34666.44672
B9: microFIT | C9: 16894.14 | D9: 523.13 | E9: =D9/C9 -> 0.03096517491 | P9: RPPTOUOFF | Q9: =E25 -> 0.08699072196 | R9: =R8 -> 0.03067993386 | S9: 0.07083014629 | T9: 0.1015100801 | U9: -0.01451935818 | V9: 5144253.092 | W9: 447502.2904 | X9: 157825.3446 | Y9: 364368.199 | Z9: -74691.25322
B10: WHOLESALE | C10: 19495196.68 | D10: 593503.34 | E10: =D10/C10 -> 0.0304435677 | K10: Estimated Retail Volume Revenue Data (TLF Included) | L10: RPP/non-RPP Ratios | M10: GA Volumes | N10: Energy Volumes | P10: RPPTOUON | Q10: 0.1819775924 | R10: =R9 -> 0.03067993386 | S10: 0.07083014629 | T10: 0.1015100801 | U10: 0.08046751227 | V10: 1753036.888 | W10: 319013.4323 | X10: 53783.05577 | Y10: 124167.8592 | Z10: 141062.5173
A11: Total Wholesale Electricity | B11: Grand Total | C11: 19789275.21 | D11: 602629.49 | K11: Estimated Retail Revenue Data (Net of Retail Billed/Unbilled) | M11: =+M15 -> 16033979.45 | N11: =+N15 -> 19789275.21 | P11: RPPULOMID | Q11: =E28 -> 0.1220040582 | R11: =E45 -> 0.03067237149 | S11: 0.07083014629 | T11: 0.1015025178 | U11: 0.02050154046 | V11: 514.4368605 | W11: 62.76338469 | X11: 15.77899849 | Y11: 36.43763808 | Z11: 10.54674811
P12: RPPULOOFF | Q12: =E29 -> 0.08701100515 | R12: =R11 -> 0.03067237149 | S12: 0.07083014629 | T12: 0.1015025178 | U12: -0.01449151263 | V12: 331.4960269 | W12: 28.8438025 | X12: 10.16776928 | Y12: 23.47991208 | Z12: -4.803878861
K13: Estimated RPP Sales Quantities | L13: =SUM(C21:C31)/(C36-B64) -> 0.6069395421 | M13: =M8*L13 -> 9731656.145 | N13: =M13 -> 9731656.145 | P13: RPPULOON | Q13: 0.2860148392 | R13: =R12 -> 0.03067237149 | S13: 0.07083014629 | T13: 0.1015025178 | U13: 0.1845123214 | V13: 284.1220786 | W13: 81.26313062 | X13: 8.714697944 | Y13: 20.12440839 | Z13: 52.42402429
A14: RPP Revenue Volume and Price Data | K14: Estimated non-RPP Sales Quantities | L14: =1-L13 -> 0.3930604579 | M14: =M8*L14 -> 6302323.305 | N14: =N8-N13 -> 10057619.06 | P14: RPPULOOVN | Q14: 0.02800721317 | R14: 0.03067237149 | S14: 0.07083014629 | T14: 0.1015025178 | U14: -0.07349530461 | V14: 618.2117038 | W14: 17.31438697 | X14: 18.96201904 | Y14: 43.78802542 | Z14: -45.43565749
K15: Estimated Retail Revenue kWh Volumes | L15: =+L13+L14 -> 1 | M15: =+M13+M14 -> 16033979.45 | N15: =+N13+N14 -> 19789275.21 | V15: =SUM(V6:V14) -> 9731656.145 | W15: =SUM(W6:W14) -> 1095734.888 | X15: =SUM(X6:X14) -> 298497.4229 | Y15: =SUM(Y6:Y14) -> 689294.6284 | Z15: =SUM(Z6:Z14) -> 107942.8366
B16: bill_year | C16: 2023
B17: bill_month | C17: 11 | K17: Estimated RPP Revenue Volume and Price Data | L17: Actual % | M17: kWh Volumes
K18: RPPT1 | L18: =C21/SUM($C$21:$C$31) -> 0.09316136357 | M18: =$M$13*L18 -> 906614.3563
B19: Row Labels | C19: usagebilled | D19: amountbilled | E19: Rate | K19: RPPT2 | L19: =C22/SUM($C$21:$C$31) -> 0.02395053391 | M19: =$M$13*L19 -> 233078.3605
B20: RPPTIER | K20: RPPTOUMID | L20: =C24/SUM($C$21:$C$31) -> 0.1739606452 | M20: 1692925.182
B21: RPPT1 | C21: 894865.0652 | D21: 92168.50918 | E21: =D21/C21 -> 0.1029971029 | K21: RPPTOUOFF | L21: =C25/SUM($C$21:$C$31) -> 0.5286102401 | M21: 5144253.092
B22: RPPT2 | C22: 230057.7757 | D22: 28757.33615 | E22: =D22/C22 -> 0.1250004963 | K22: RPPTOUON | L22: 0.1801375698 | M22: 1753036.888
B23: RPPTOU | K23: RPPULOMID | L23: =C28/SUM($C$21:$C$31) -> 5.2862211e-05 | M23: 514.4368605
B24: RPPTOUMID | C24: 1670985.677 | D24: 203839.076 | E24: =D24/C24 -> 0.1219873269 | K24: RPPULOOFF | L24: =C29/SUM($C$21:$C$31) -> 3.406368062e-05 | M24: 331.4960269
B25: RPPTOUOFF | C25: 5077586.018 | D25: 441702.8735 | E25: 0.08699072196 | K25: RPPULOON | L25: 2.919565533e-05 | M25: 284.1220786
B26: RPPTOUON | C26: 1730318.363 | D26: 314879.1699 | E26: 0.1819775924 | K26: RPPULOOVN | L26: 6.352584746e-05 | M26: 618.2117038
B27: RPPULO | L27: =SUM(L18:L26) -> 1 | M27: =SUM(M18:M26) -> 9731656.145
B28: RPPULOMID | C28: 507.7700034 | D28: 61.95000106 | E28: =D28/C28 -> 0.1220040582
B29: RPPULOOFF | C29: 327.199996 | D29: 28.47000053 | E29: 0.08701100515
B30: RPPULOON | C30: 280.4399915 | D30: 80.20999908 | E30: 0.2860148392
B31: RPPULOOVN | C31: 610.199974 | D31: 17.09000075 | E31: 0.02800721317 | K31: Global Adjustment | L31: per kWh
B32: RETAIL | K32: Class B - GA actual8 | L32: =B69/100 -> 0.07090000153 | N32: GA Posted Price
B33: NSLS | C33: 3138326.605 | D33: 95222.52736 | E33: 0.03034181567 | K33: Class B - GA actual IESO billed | L33: =+M33/M8 -> 0.07083014629 | M33: =B76 -> 1135689.11 | N33: GA Billed by IESO CT 148
B34: INTERVAL
B35: HOEP | C35: 6837617.346 | D35: 205709.0723 | E35: 0.03008490559
B36: Grand Total | C36: 19581482.46 | D36: 1382466.284
C37: =C36/C11-1 -> -0.01050027091
A38: RPP COP Volume and Price Data
B39: bill_year | C39: 2023
B40: bill_month | C40: 11
B42: Row Labels | C42: usagebilled | D42: amountbilled | E42: Rate
B43: RPPTIERED | C43: 1131897.384 | D43: 34657.87904 | E43: =D43/C43 -> 0.03061927656
B44: RPPTOU | C44: 8485823.832 | D44: 260344.5139 | E44: 0.03067993386
B45: RPPULO | C45: 1956.809978 | D45: 60.0200026 | E45: 0.03067237149
B46: Grand Total | C46: 9619678.027 | D46: 295062.4129
C47: =SUM(C21:C31)-C46 -> -14139.5182
C48: =C47/C46 -> -0.001469853581
A60: Year | B60: 2023
A62: Class A
A63: Source | B63: kWh
A64: 202311 | B64: 3755295.76
A67: ga_actual | B67: year
A68: month | B68: 2023
A69: 202311 | B69: 7.090000153
A72: chargetype | B72: 148
A74: Sum of chargeamount | B74: year
A75: month | B75: 2023
A76: 202311 | B76: 1135689.11

Sheet I23 Input Rev 11 Init (hidden)
A1: Reverse IESO Posted
A5: =Admin!B38 -> 202311
A6: RPP Revenue Prices | B6: kWh Volumes | C6: $ RPP Settlement
A7: RPPTiered_1 | B7: 722860.55 | C7: 19696.92
A8: RPPTiered_2 | B8: 233965.32 | C8: 2631.83
A9: RPPTOU_MID | B9: 1413513.21 | C9: 14773.93
A10: RPPTOU_OFF | B10: 4700841.07 | C10: 180756.95
A11: RPPTOU_ON | B11: 1425579.8 | C11: -54953.65
A12: Grand Total | B12: =SUM(B7:B11) -> 8496759.95 | C12: =SUM(C7:C11) -> 162905.98

Sheet I24 Input 12 Trueup Sett (hidden)
A1: Date: | B1: =Admin!B8+11 -> 202312 | C1: Trueup | K1: ="Data for 1st True up of RPP Settlement based on Actual IESO Invoice" -> Data for 1st True up of RPP Settlement based on Actual IESO Invoice | P1: For Reconciliation
A3: Wholesale Electricty | B3: Year | C3: 2023 | E3: Rate | P3: Actual RPP Revenue and GA
B4: dateref | C4: 202312 | K4: Wholesale Volume data per IESO Power Bill: | L4: GA RPP/non-RPP Ratios | M4: GA Volumes | N4: Energy Volumes | P4: =B1 -> 202312
K5: AQEW | M5: =C10 -> 19766502.12 | N5: =+M5 -> 19766502.12 | P5: RPP Revenue Prices | Q5: RPP Rate | R5: Estimated RPP Energy Price | S5: GA actual IESO billed | T5: Total Commodity | U5: Difference | V5: kWh Volumes | W5: $ Estimated RPP Revenue | X5: $ Estimated RPP Energy | Y5: $ Estimated GA | Z5: $ Estimated RPP Settlement
B6: Wholesale | K6: Embedded Generation | M6: =SUM(C8:C9) -> 145030.07 | N6: =+M6 -> 145030.07 | P6: RPPT1 | Q6: =E21 -> 0.1030001606 | R6: =E43 -> 0.03105703045 | S6: =L33 -> 0.06624711711 | T6: =R6+S6 -> 0.09730414757 | U6: =+Q6-T6 -> 0.005696013028 | V6: =M18 -> 977888.5709 | W6: =Q6*V6 -> 100722.6799 | X6: =R6*V6 -> 30370.31513 | Y6: =+V6*S6 -> 64782.29868 | Z6: =W6-X6-Y6 -> 5570.06604
A7: FIT/mFIT | B7: Source | C7: kWh | D7: Total Cost | K7: Class A customer Volumes for GA (TLF included) | M7: =-B64 -> -2850485.17 | P7: RPPT2 | Q7: =E22 -> 0.124999833 | R7: =R6 -> 0.03105703045 | S7: =S6 -> 0.06624711711 | T7: =R7+S7 -> 0.09730414757 | U7: =+Q7-T7 -> 0.02769568542 | V7: =M19 -> 282113.0705 | W7: =Q7*V7 -> 35264.0867 | X7: =R7*V7 -> 8761.594223 | Y7: =+V7*S7 -> 18689.17762 | Z7: =W7-X7-Y7 -> 7813.314856
B8: FIT | C8: 136716.92 | D8: 4354.31 | E8: =D8/C8 -> 0.03184909373 | M8: =+M5+M6+M7 -> 17061047.02 | N8: =+N5+N6+N7 -> 19911532.19 | P8: RPPTOUMID | Q8: =E24 -> 0.1219984673 | R8: =E44 -> 0.03115258942 | S8: =S7 -> 0.06624711711 | T8: 0.09739970653 | U8: 0.02459876081 | V8: 1622741.03 | W8: 197971.9185 | X8: 50552.58504 | Y8: 107501.9151 | Z8: 39917.41846
B9: microFIT | C9: 8313.15 | D9: 262.58 | E9: =D9/C9 -> 0.03158610154 | P9: RPPTOUOFF | Q9: =E25 -> 0.08699907145 | R9: =R8 -> 0.03115258942 | S9: 0.06624711711 | T9: 0.09739970653 | U9: -0.01040063509 | V9: 6401150.278 | W9: 556894.1304 | X9: 199412.4064 | Y9: 424057.7522 | Z9: -66576.02817
B10: WHOLESALE | C10: 19766502.12 | D10: 617049.42 | E10: =D10/C10 -> 0.03121692529 | K10: Estimated Retail Volume Revenue Data (TLF Included) | L10: RPP/non-RPP Ratios | M10: GA Volumes | N10: Energy Volumes | P10: RPPTOUON | Q10: 0.1819975312 | R10: =R9 -> 0.03115258942 | S10: 0.06624711711 | T10: 0.09739970653 | U10: 0.08459782466 | V10: 1646015.714 | W10: 299570.7962 | X10: 51277.65171 | Y10: 109043.7958 | Z10: 139249.3487
A11: Total Wholesale Electricity | B11: Grand Total | C11: 19911532.19 | D11: 621666.31 | K11: Estimated Retail Revenue Data (Net of Retail Billed/Unbilled) | M11: =+M15 -> 17061047.02 | N11: =+N15 -> 19911532.19 | P11: RPPULOMID | Q11: =E28 -> 0.1220016532 | R11: =E45 -> 0.03114012418 | S11: 0.06624711711 | T11: 0.0973872413 | U11: 0.02461441192 | V11: 1718.270359 | W11: 209.6318244 | X11: 53.50715234 | Y11: 113.8304577 | Z11: 42.29421439
P12: RPPULOOFF | Q12: =E29 -> 0.08699616815 | R12: =R11 -> 0.03114012418 | S12: 0.06624711711 | T12: 0.0973872413 | U12: -0.01039107314 | V12: 3662.811053 | W12: 318.6505263 | X12: 114.060391 | Y12: 242.6506728 | Z12: -38.06053755
K13: Estimated RPP Sales Quantities | L13: =SUM(C21:C31)/(C36-B64) -> 0.64107926 | M13: =M8*L13 -> 10937483.4 | N13: =M13 -> 10937483.4 | P13: RPPULOON | Q13: 0.2859891877 | R13: =R12 -> 0.03114012418 | S13: 0.06624711711 | T13: 0.0973872413 | U13: 0.1886019464 | V13: 1382.169118 | W13: 395.2854232 | X13: 43.04091796 | Y13: 91.56471941 | Z13: 260.6797858
A14: RPP Revenue Volume and Price Data | K14: Estimated non-RPP Sales Quantities | L14: =1-L13 -> 0.35892074 | M14: =M8*L14 -> 6123563.622 | N14: =N8-N13 -> 8974048.792 | P14: RPPULOOVN | Q14: 0.02799739792 | R14: 0.03114012418 | S14: 0.06624711711 | T14: 0.0973872413 | U14: -0.06938984338 | V14: 811.4832911 | W14: 22.7194206 | X14: 25.26969046 | Y14: 53.75842862 | Z14: -56.30869847
K15: Estimated Retail Revenue kWh Volumes | L15: =+L13+L14 -> 1 | M15: =+M13+M14 -> 17061047.02 | N15: =+N13+N14 -> 19911532.19 | V15: =SUM(V6:V14) -> 10937483.4 | W15: =SUM(W6:W14) -> 1191369.899 | X15: =SUM(X6:X14) -> 340610.4307 | Y15: =SUM(Y6:Y14) -> 724576.7436 | Z15: =SUM(Z6:Z14) -> 126182.7247
B16: bill_year | C16: 2023
B17: bill_month | C17: 12 | K17: Estimated RPP Revenue Volume and Price Data | L17: Actual % | M17: kWh Volumes
K18: RPPT1 | L18: =C21/SUM($C$21:$C$31) -> 0.08940709077 | M18: =$M$13*L18 -> 977888.5709
B19: Row Labels | C19: usagebilled | D19: amountbilled | E19: Rate | K19: RPPT2 | L19: =C22/SUM($C$21:$C$31) -> 0.02579323417 | M19: =$M$13*L19 -> 282113.0705
B20: RPPTIER | K20: RPPTOUMID | L20: =C24/SUM($C$21:$C$31) -> 0.1483651194 | M20: 1622741.03
B21: RPPT1 | C21: 963279.2697 | D21: 99217.91947 | E21: =D21/C21 -> 0.1030001606 | K21: RPPTOUOFF | L21: =C25/SUM($C$21:$C$31) -> 0.5852489138 | M21: 6401150.278
B22: RPPT2 | C22: 277898.4034 | D22: 34737.25401 | E22: 0.124999833 | K22: RPPTOUON | L22: 0.1504930937 | M22: 1646015.714
B23: RPPTOU | K23: RPPULOMID | L23: =C28/SUM($C$21:$C$31) -> 0.0001570992427 | M23: 1718.270359
B24: RPPTOUMID | C24: 1598497.866 | D24: 195014.2897 | E24: 0.1219984673 | K24: RPPULOOFF | L24: =C29/SUM($C$21:$C$31) -> 0.0003348860903 | M24: 3662.811053
B25: RPPTOUOFF | C25: 6305519.41 | D25: 548574.3337 | E25: 0.08699907145 | K25: RPPULOON | L25: 0.0001263699397 | M25: 1382.169118
B26: RPPTOUON | C26: 1621424.835 | D26: 295095.317 | E26: 0.1819975312 | K26: RPPULOOVN | L26: 7.419287066e-05 | M26: 811.4832911
B27: RPPULO | L27: =SUM(L18:L26) -> 1 | M27: =SUM(M18:M26) -> 10937483.4
B28: RPPULOMID | C28: 1692.600021 | D28: 206.5000008 | E28: 0.1220016532
B29: RPPULOOFF | C29: 3608.089982 | D29: 313.8900028 | E29: 0.08699616815
B30: RPPULOON | C30: 1361.520011 | D30: 389.380002 | E30: 0.2859891877
B31: RPPULOOVN | C31: 799.3600244 | D31: 22.38000068 | E31: 0.02799739792 | K31: Global Adjustment | L31: per kWh
B32: RETAIL | K32: Class B - GA actual8 | L32: =B69/100 -> 0.06622000217 | N32: GA Posted Price
B33: NSLS | C33: 3000842.483 | D33: 93477.62268 | E33: 0.03115045965 | K33: Class B - GA actual IESO billed | L33: =+M33/M8 -> 0.06624711711 | M33: =B76 -> 1130245.18 | N33: GA Billed by IESO CT 148
B34: INTERVAL
B35: HOEP | C35: 5881722.486 | D35: 184686.8107 | E35: 0.03140012321
B36: Grand Total | C36: 19656646.32 | D36: 1451735.697
C37: =C36/C11-1 -> -0.0128009168
A38: RPP COP Volume and Price Data
B39: bill_year | C39: 2023
B40: bill_month | C40: 12
B42: Row Labels | C42: usagebilled | D42: amountbilled | E42: Rate
B43: RPPTIERED | C43: 1243626.078 | D43: 38623.33298 | E43: =D43/C43 -> 0.03105703045
B44: RPPTOU | C44: 9542616.449 | D44: 297277.2122 | E44: 0.03115258942
B45: RPPULO | C45: 12084.73005 | D45: 376.3199945 | E45: 0.03114012418
B46: Grand Total | C46: 10798327.26 | D46: 336276.8652
C47: =SUM(C21:C31)-C46 -> -24245.90216
C48: =C47/C46 -> -0.002245338707
A60: Year | B60: 2023
A62: Class A
A63: Source | B63: kWh
A64: 202312 | B64: 2850485.17
A67: ga_actual | B67: year
A68: month | B68: 2023
A69: 202312 | B69: 6.622000217
A72: chargetype | B72: 148
A74: Sum of chargeamount | B74: year
A75: month | B75: 2023
A76: 202312 | B76: 1130245.18

Sheet I25 Input Rev 12 Init (hidden)
A1: Reverse IESO Posted
A5: =Admin!B41 -> 202312
A6: RPP Revenue Prices | B6: kWh Volumes | C6: $ RPP Settlement
A7: RPPTiered_1 | B7: 885891.74 | C7: 934.46
A8: RPPTiered_2 | B8: 238515.77 | C8: -4856.82
A9: RPPTOU_MID | B9: 1639045.04 | C9: -24692.4
A10: RPPTOU_OFF | B10: 4992811.11 | C10: 95806.27
A11: RPPTOU_ON | B11: 1656873.6 | C11: -122133.21
A12: Grand Total | B12: 9413137.26 | C12: -54941.7

Sheet Rec1 1588 Commodity
A1: Lakefront Utilities Inc. | S1: MY_GL_Account_Transactions.xlsm
A2: =ProcessYear[Process Year]& " 1588 Commodity RSVA" -> 2023 1588 Commodity RSVA
A3: Commodity
B5: 4006-4055 | E5: 4705 | L5: 1588
B6: GL Revenue | C6: Unbilled | D6: Total Revenue | E6: Energy Cost (code 101) | F6: RPP GA (code 148) | G6: IESO RPP Settlement | H6: FIT/mFIT | I6: Misc | J6: IESO Code 118 - Energy Rebate | K6: Total Cost | L6: Variance | M6: Y.T.D. | N6: G.L. Balance
A7: Opening Balance
A8: January | B8: -1552235.57 | C8: =D8-B8 -> 97112.47434 | D8: =-'I1a ER Summary'!AF5 -> -1455123.096 | E8: ='I1a ER Summary'!K5 -> 801678.9 | F8: ='I1a ER Summary'!E5 -> 625946.7569 | G8: ='I1a ER Summary'!F5 -> 41306.38058 | H8: ='I1a ER Summary'!M5 -> 4162.03 | K8: =SUM(E8:J8) -> 1473094.068 | L8: =D8+K8 -> 17970.97186 | M8: =L8 -> 17970.97186 | N8: =N7+L8 -> 17970.97186
A9: February | B9: -1479018.08 | C9: =D9-B9 -> 251455.0021 | D9: =-'I1a ER Summary'!AF6 -> -1227563.078 | E9: ='I1a ER Summary'!K6 -> 504134.75 | F9: ='I1a ER Summary'!E6 -> 870726.466 | G9: ='I1a ER Summary'!F6 -> -146771.3895 | H9: ='I1a ER Summary'!M6 -> 5033.81 | K9: 1233123.636 | L9: 5560.558601 | M9: =M8+L9 -> 23531.53046 | N9: =N8+L9 -> 23531.53046
A10: March | B10: -1313614.11 | C10: 5164.611715 | D10: =-'I1a ER Summary'!AF7 -> -1308449.498 | E10: ='I1a ER Summary'!K7 -> 569802.92 | F10: ='I1a ER Summary'!E7 -> 865390.8663 | G10: ='I1a ER Summary'!F7 -> -119509.2803 | H10: ='I1a ER Summary'!M7 -> 9659.7 | K10: 1325344.206 | L10: 16894.70774 | M10: =M9+L10 -> 40426.2382 | N10: 40426.2382
A11: April | B11: -1309464 | C11: 288599.5332 | D11: =-'I1a ER Summary'!AF8 -> -1020864.467 | E11: ='I1a ER Summary'!K8 -> 396944.77 | F11: ='I1a ER Summary'!E8 -> 863117.2871 | G11: ='I1a ER Summary'!F8 -> -245246.6757 | H11: ='I1a ER Summary'!M8 -> 15965.66 | K11: 1030781.041 | L11: 9916.574515 | M11: 50342.81272 | N11: 50342.81272
A12: May | B12: -1044966.06 | C12: 81951.42797 | D12: =-'I1a ER Summary'!AF9 -> -963014.632 | E12: ='I1a ER Summary'!K9 -> 322522.32 | F12: ='I1a ER Summary'!E9 -> 820560.7271 | G12: ='I1a ER Summary'!F9 -> -197422.1178 | H12: ='I1a ER Summary'!M9 -> 18286.43 | K12: 963947.3593 | L12: 932.7272902 | M12: 51275.54001 | N12: 51275.54001
A13: June | B13: -950252.3 | C13: -216298.6574 | D13: =-'I1a ER Summary'!AF10 -> -1166550.957 | E13: ='I1a ER Summary'!K10 -> 580068.36 | F13: ='I1a ER Summary'!E10 -> 738566.5055 | G13: ='I1a ER Summary'!F10 -> -166124.781 | H13: ='I1a ER Summary'!M10 -> 26149.32 | K13: 1178659.404 | L13: 12108.44705 | M13: 63383.98706 | N13: 63383.98706
A14: July | B14: -1130689.3 | C14: -316501.3443 | D14: =-'I1a ER Summary'!AF11 -> -1447190.644 | E14: ='I1a ER Summary'!K11 -> 850093.66 | F14: ='I1a ER Summary'!E11 -> 551482.3822 | G14: ='I1a ER Summary'!F11 -> 35183.46215 | H14: ='I1a ER Summary'!M11 -> 37464.83 | K14: 1474224.334 | L14: 27033.69001 | M14: 90417.67707 | N14: 90417.67707
A15: August | B15: -1419460.77 | C15: 158942.6587 | D15: =-'I1a ER Summary'!AF12 -> -1260518.111 | E15: ='I1a ER Summary'!K12 -> 625707.61 | F15: ='I1a ER Summary'!E12 -> 728057.3915 | G15: ='I1a ER Summary'!F12 -> -102079.6138 | H15: ='I1a ER Summary'!M12 -> 26177.97 | K15: 1277863.358 | L15: 17345.24646 | M15: 107762.9235 | N15: 107762.9235
A16: September | B16: -1257731.84 | C16: 51019.92527 | D16: =-'I1a ER Summary'!AF13 -> -1206711.915 | E16: ='I1a ER Summary'!K13 -> 733006.83 | F16: ='I1a ER Summary'!E13 -> 494307.4268 | G16: ='I1a ER Summary'!F13 -> -33725.88758 | H16: ='I1a ER Summary'!M13 -> 31189.95 | K16: 1224778.319 | L16: 18066.40452 | M16: 125829.328 | N16: 125829.328
A17: October | B17: -1224091.78 | C17: 112049.584 | D17: =-'I1a ER Summary'!AF14 -> -1112042.196 | E17: ='I1a ER Summary'!K14 -> 576644.25 | F17: ='I1a ER Summary'!E14 -> 702524.0783 | G17: ='I1a ER Summary'!F14 -> -171067.2304 | H17: ='I1a ER Summary'!M14 -> 15146.22 | K17: 1123247.318 | L17: 11205.12187 | M17: 137034.4499 | N17: 137034.4499
A18: November | B18: -1111126.22 | C18: -271340.0644 | D18: =-'I1a ER Summary'!AF15 -> -1382466.284 | E18: ='I1a ER Summary'!K15 -> 593503.34 | F18: ='I1a ER Summary'!E15 -> 689294.6284 | G18: ='I1a ER Summary'!F15 -> 107942.8366 | H18: ='I1a ER Summary'!M15 -> 9126.15 | K18: 1399866.955 | L18: 17400.67057 | M18: 154435.1205 | N18: 154435.1205
A19: December | B19: -1318032.17 | C19: -133703.5273 | D19: =-'I1a ER Summary'!AF16 -> -1451735.697 | E19: ='I1a ER Summary'!K16 -> 617049.42 | F19: ='I1a ER Summary'!E16 -> 724576.7436 | G19: ='I1a ER Summary'!F16 -> 126182.7247 | H19: ='I1a ER Summary'!M16 -> 4616.89 | K19: 1472425.778 | L19: 20690.08096 | M19: 175125.2014 | N19: 175125.2014
B20: =SUM(B8:B19) -> -15110682.2 | C20: =SUM(C8:C19) -> 108451.6239 | D20: -15002230.58 | E20: 7171157.13 | F20: 8674551.26 | G20: -871331.5721 | H20: 202978.96 | I20: 0 | J20: 0 | K20: 15177355.78 | L20: 175125.2014
A22: Per GL | F22: 8585891.22 | G22: -1045563.18
A23: Dec Accrual | F23: 678147.1 | G23: 54941.7
A24: Adjustments | F24: =F20-F22-F23 -> -589487.0603 | G24: =G20-G22-G23 -> 119289.9079
F26: 4705-0002 | G26: 4705-0001

Sheet Rec2 1589 Class B
A1: Lakefront Utilities Inc. | P1: "GA Summary.xlsm" | X1: MY_GL_Account_Transactions.xlsm
A2: =ProcessYear[Process Year]& " 1589 ClassB RSVA" -> 2023 1589 ClassB RSVA | P2: classb_ga_summary billed
A3: Global Adjustment Class B Only
B5: 4006-4055 | E5: 4707 | K5: 1589
B6: Revenue - Class B only | C6: Unbilled | D6: Total Revenue | E6: IESO Code 148 | F6: RPP GA (code 148) | G6: Class B GA (Code 148) | H6: Class B Deferral | I6: Misc | J6: Class B GA | K6: Variance | L6: Y.T.D. | M6: G.L. Balance
A7: Opening Balance
A8: January | B8: -385378.42 | C8: =D8-B8 -> 167594.7587 | D8: -217783.6613 | E8: ='I1a ER Summary'!Q5 -> 985623.84 | F8: =-'Rec1 1588 Commodity'!F8 -> -625946.7569 | G8: =E8+F8 -> 359677.0831 | J8: =SUM(G8:I8) -> 359677.0831 | K8: =D8+J8 -> 141893.4218 | L8: =K8 -> 141893.4218 | M8: =M7+K8 -> 141893.4218
A9: February | B9: -217468.28 | C9: =D9-B9 -> -168986.9479 | D9: -386455.2279 | E9: ='I1a ER Summary'!Q6 -> 1387229.02 | F9: =-'Rec1 1588 Commodity'!F9 -> -870726.466 | G9: =E9+F9 -> 516502.554 | J9: =SUM(G9:I9) -> 516502.554 | K9: =D9+J9 -> 130047.326 | L9: =L8+K9 -> 271940.7478 | M9: =M8+K9 -> 271940.7478
A10: March | B10: -390582 | C10: -84614.514 | D10: -475196.514 | E10: ='I1a ER Summary'!Q7 -> 1418540.9 | F10: =-'Rec1 1588 Commodity'!F10 -> -865390.8663 | G10: 553150.0337 | J10: 553150.0337 | K10: 77953.51968 | L10: =L9+K10 -> 349894.2675 | M10: 349894.2675
A11: April | B11: -476029.43 | C11: -7010.779639 | D11: -483040.2096 | E11: ='I1a ER Summary'!Q8 -> 1447252.99 | F11: =-'Rec1 1588 Commodity'!F11 -> -863117.2871 | G11: 584135.7029 | J11: 584135.7029 | K11: 101095.4933 | L11: 450989.7608 | M11: 450989.7608
A12: May | B12: -482854.52 | C12: -13053.6596 | D12: -495908.1796 | E12: ='I1a ER Summary'!Q9 -> 1424300.1 | F12: =-'Rec1 1588 Commodity'!F12 -> -820560.7271 | G12: 603739.3729 | J12: 603739.3729 | K12: 107831.1933 | L12: 558820.9541 | M12: 558820.9541
A13: June | B13: -496783.3 | C13: -108450.4012 | D13: -605233.7012 | E13: ='I1a ER Summary'!Q10 -> 1252078.52 | F13: =-'Rec1 1588 Commodity'!F13 -> -738566.5055 | G13: 513512.0145 | J13: 513512.0145 | K13: -91721.68672 | L13: 467099.2674 | M13: 467099.2674
A14: July | B14: -604708.29 | C14: -55338.276 | D14: -660046.566 | E14: ='I1a ER Summary'!Q11 -> 889244.76 | F14: =-'Rec1 1588 Commodity'!F14 -> -551482.3822 | G14: 337762.3778 | J14: 337762.3778 | K14: -322284.1882 | L14: 144815.0792 | M14: 144815.0792
A15: August | B15: -659628.32 | C15: 311457.23 | D15: -348171.09 | E15: ='I1a ER Summary'!Q12 -> 1212483.09 | F15: =-'Rec1 1588 Commodity'!F15 -> -728057.3915 | G15: 484425.6985 | J15: 484425.6985 | K15: 136254.6085 | L15: 281069.6876 | M15: 281069.6876
A16: September | B16: -349134 | C16: -12882.76 | D16: -362016.76 | E16: ='I1a ER Summary'!Q13 -> 846173.17 | F16: =-'Rec1 1588 Commodity'!F16 -> -494307.4268 | G16: 351865.7432 | J16: 351865.7432 | K16: -10151.01682 | L16: 270918.6708 | M16: 270918.6708
A17: October | B17: -362383.25 | C17: -88180.25 | D17: -450563.5 | E17: ='I1a ER Summary'!Q14 -> 1210447.91 | F17: =-'Rec1 1588 Commodity'!F17 -> -702524.0783 | G17: 507923.8317 | J17: 507923.8317 | K17: 57360.33174 | L17: 328279.0026 | M17: 328279.0026
A18: November | B18: -450415.32 | C18: 13272.19 | D18: -437143.13 | E18: ='I1a ER Summary'!Q15 -> 1135689.11 | F18: =-'Rec1 1588 Commodity'!F18 -> -689294.6284 | G18: 446394.4816 | J18: 446394.4816 | K18: 9251.351607 | L18: 337530.3542 | M18: 337530.3542
A19: December | B19: -437096.92 | C19: -63648.16 | D19: -500745.08 | E19: ='I1a ER Summary'!Q16 -> 1130245.18 | F19: =-'Rec1 1588 Commodity'!F19 -> -724576.7436 | G19: 405668.4364 | J19: 405668.4364 | K19: -95076.64356 | L19: 242453.7106 | M19: 242453.7106
B20: =SUM(B8:B19) -> -5312462.05 | C20: -109841.5697 | D20: -5422303.62 | E20: 14339308.59 | F20: -8674551.26 | G20: 5664757.33 | H20: 0 | I20: 0 | J20: 5664757.33 | K20: 242453.7106
A22: Per GL | J22: 4623172.19
A23: Dec Accrual | J23: 452098.08
A24: Adjustments | J24: =J20-J22-J23 -> 589487.0603
D34: =D8 -> -217783.6613 | E34: ='Rev3 GA Analysis '!H16 -> 204822.0825 | F34: =D34+E34 -> -12961.57876 | J34: =J8 -> 359677.0831 | K34: ='Rev3 GA Analysis '!J16 -> 350735.4315 | L34: =J34-K34 -> 8941.651582
D35: -386455.2279 | E35: ='Rev3 GA Analysis '!H17 -> 389598.6726 | F35: =D35+E35 -> 3143.444648 | J35: =J9 -> 516502.554 | K35: ='Rev3 GA Analysis '!J17 -> 510926.8134 | L35: =J35-K35 -> 5575.740619
D36: -475196.514 | E36: ='Rev3 GA Analysis '!H18 -> 475610.3819 | F36: 413.8679403 | J36: 553150.0337 | K36: ='Rev3 GA Analysis '!J18 -> 546375.9109 | L36: 6774.122738
D37: -483040.2096 | E37: ='Rev3 GA Analysis '!H19 -> 483700.6392 | F37: 660.4295276 | J37: 584135.7029 | K37: ='Rev3 GA Analysis '!J19 -> 577491.8114 | L37: 6643.891577
D38: -495908.1796 | E38: ='Rev3 GA Analysis '!H20 -> 496033.534 | F38: 125.3544439 | J38: 603739.3729 | K38: ='Rev3 GA Analysis '!J20 -> 600940.4723 | L38: 2798.900578
D39: -605233.7012 | E39: ='Rev3 GA Analysis '!H21 -> 605175.7386 | F39: -57.96260926 | J39: 513512.0145 | K39: ='Rev3 GA Analysis '!J21 -> 507594.4997 | L39: 5917.514748
D40: -660046.566 | E40: ='Rev3 GA Analysis '!H22 -> 660017.3891 | F40: -29.17689889 | J40: 337762.3778 | K40: ='Rev3 GA Analysis '!J22 -> 331945.5483 | L40: 5816.829454
D41: -348171.09 | E41: ='Rev3 GA Analysis '!H23 -> 348420.0472 | F41: 248.9572234 | J41: 484425.6985 | K41: ='Rev3 GA Analysis '!J23 -> 477455.5445 | L41: 6970.153968
D42: -362016.76 | E42: ='Rev3 GA Analysis '!H24 -> 362265.3825 | F42: 248.6225207 | J42: 351865.7432 | K42: ='Rev3 GA Analysis '!J24 -> 347275.8665 | L42: 4589.876715
D43: -450563.5 | E43: ='Rev3 GA Analysis '!H25 -> 450695.0875 | F43: 131.587451 | J43: 507923.8317 | K43: ='Rev3 GA Analysis '!J25 -> 502014.6314 | L43: 5909.200384
D44: -437143.13 | E44: ='Rev3 GA Analysis '!H26 -> 437933.6326 | F44: 790.5026323 | J44: 446394.4816 | K44: ='Rev3 GA Analysis '!J26 -> 440609.4214 | L44: 5785.060256
J45: 405668.4364 | K45: ='Rev3 GA Analysis '!J27 -> 399607.8968 | L45: 6060.539601
J46: =SUM(J34:J45) -> 5664757.33 | K46: =SUM(K34:K45) -> 5592973.848 | L46: 71783.48222

Sheet Rec3 1589 Class A
A1: Lakefront Utilities Inc. | N1: MY_GL_Account_Transactions.xlsm | V1: IESO Invoice Reconciliation.xlsm
A2: 2023 1589 ClassA RSVA
A3: Global Adjustment Class A Only
B5: 4006-4055 | E5: 4707 | H5: 1588
B6: Revenue - Class A only | C6: Unbilled | D6: Total Revenue | E6: Class A GA | F6: Misc | G6: Total Cost | H6: Variance | I6: Y.T.D. | J6: G.L. Balance
A7: Opening Balance | J7: 0
A8: January | B8: -125354.89 | C8: =D8-B8 -> -70662.04 | D8: =-E8 -> -196016.93 | E8: 196016.93 | G8: =SUM(E8:F8) -> 196016.93 | H8: =D8+G8 -> 0 | I8: =H8 -> 0 | J8: =J7+H8 -> 0
A9: February | B9: -196016.93 | C9: =D9-B9 -> -83073.1 | D9: =-E9 -> -279090.03 | E9: 279090.03 | G9: =SUM(E9:F9) -> 279090.03 | H9: =D9+G9 -> 0 | I9: =I8+H9 -> 0 | J9: =J8+H9 -> 0
A10: March | B10: -279090.02 | C10: -1511.34 | D10: -280601.36 | E10: 280601.36 | G10: 280601.36 | H10: 0 | I10: =I9+H10 -> 0 | J10: 0
A11: April | B11: -280601.36 | C11: -15738.62 | D11: -296339.98 | E11: 296339.98 | G11: 296339.98 | H11: 0 | I11: 0 | J11: 0
A12: May | B12: -296339.98 | C12: -5632.99 | D12: -301972.97 | E12: 301972.97 | G12: 301972.97 | H12: 0 | I12: 0 | J12: 0
A13: June | B13: -301972.97 | C13: 35174.38 | D13: -266798.59 | E13: 266798.59 | G13: 266798.59 | H13: 0 | I13: 0 | J13: 0
A14: July | B14: -266798.59 | C14: 77615.7 | D14: -189182.89 | E14: 189182.89 | G14: 189182.89 | H14: 0 | I14: 0 | J14: 0
A15: August | B15: -189182.9 | C15: -58629.28 | D15: -247812.18 | E15: 247812.18 | G15: 247812.18 | H15: 0 | I15: 0 | J15: 0
A16: September | B16: -247812.17 | C16: 72768.4 | D16: -175043.77 | E16: 175043.77 | G16: 175043.77 | H16: 0 | I16: 0 | J16: 0
A17: October | B17: -175043.78 | C17: -76267.39 | D17: -251311.17 | E17: 251311.17 | G17: 251311.17 | H17: 0 | I17: 0 | J17: 0
A18: November | B18: -251311.16 | C18: 28013.94 | D18: -223297.22 | E18: 223297.22 | G18: 223297.22 | H18: 0 | I18: 0 | J18: 0
A19: December | B19: -195745.78 | C19: -35576.25 | D19: -231322.03 | E19: 231322.03 | G19: 231322.03 | H19: 0 | I19: 0 | J19: 0
B20: =SUM(B8:B19) -> -2805270.53 | C20: -133518.59 | D20: -2938789.12 | E20: 2938789.12 | F20: 0 | G20: 2938789.12 | H20: 0 | I20: 0 | J20: 0

Sheet Rev1UFE
A1: Lakefront Utilities Inc.
A2: 2023 RSVA
A3: Unaccounted for Energy Summary For USoA 1588
C5: Total Energy Purchases | D5: Total Retail Sales | E5: Uaccounted for Energy | F5: UFE | G5: Total Energy Purchases | H5: Total Retail Sales | I5: UFE | J5: UFE | N5: Energy Purchases RPP and non-RPP | P5: RPP Settlement Amounts | T5: Energy Sales Revenue | V5: Energy Sales Volumes | X5: Energy Sales/kWh
B6: Version | C6: kWH | D6: kWh | E6: kWh | F6: % | G6: $ Amount | H6: $ Amount | I6: $ Amount | J6: % | K6: Revenue Per kWh | L6: UFE $ Cost per kWh | N6: Energy for RPP and non-RPP | O6: Final GA for RPP | P6: Initial Settlement | Q6: First True-Up | R6: Final True-Up | S6: RPP Settlement Amount | T6: RPP Sales | U6: Non-RPP Sales | V6: RPP kWh | W6: Non-RPP kWH | X6: RPP | Y6: Non-RPP
A7: January | B7: Final | C7: ='I1a ER Summary'!S5 -> 23575430.61 | D7: ='I1a ER Summary'!T5 -> 23119725.75 | E7: =+C7-D7 -> 455704.8639 | F7: =+E7/C7 -> 0.01932965177 | G7: =+N7+O7+S7 -> 1473094.068 | H7: =+T7+U7 -> 1455123.096 | I7: =+G7-H7 -> 17970.97186 | J7: =+I7/G7 -> 0.01219947338 | K7: =+H7/D7 -> 0.06293859675 | L7: =+I7/E7 -> 0.03943554982 | N7: ='I1a ER Summary'!O5 -> 805840.93 | O7: ='I1a ER Summary'!E5 -> 625946.7569 | P7: 0 | Q7: 0 | R7: ='I1a ER Summary'!F5 -> 41306.38058 | S7: =SUM(P7:R7) -> 41306.38058 | T7: ='I1a ER Summary'!C5 -> 1080819.534 | U7: ='I1a ER Summary'!AH5 -> 374303.5616 | V7: ='I1a ER Summary'!AJ5 -> 11351983.62 | W7: ='I1a ER Summary'!AK5 -> 11767742.13 | X7: =+T7/V7 -> 0.09520975105 | Y7: 0.0318075938
A8: February | B8: Final | C8: ='I1a ER Summary'!S6 -> 21689783.61 | D8: ='I1a ER Summary'!T6 -> 21508237.74 | E8: =+C8-D8 -> 181545.8737 | F8: =+E8/C8 -> 0.008370109956 | G8: =+N8+O8+S8 -> 1233123.636 | H8: =+T8+U8 -> 1227563.078 | I8: =+G8-H8 -> 5560.558601 | J8: =+I8/G8 -> 0.004509327724 | K8: =+H8/D8 -> 0.05707408914 | L8: 0.03062894511 | N8: ='I1a ER Summary'!O6 -> 509168.56 | O8: ='I1a ER Summary'!E6 -> 870726.466 | P8: 0 | Q8: 0 | R8: ='I1a ER Summary'!F6 -> -146771.3895 | S8: -146771.3895 | T8: ='I1a ER Summary'!C6 -> 982847.3912 | U8: ='I1a ER Summary'!AH6 -> 244715.6867 | V8: ='I1a ER Summary'!AJ6 -> 10441817.42 | W8: ='I1a ER Summary'!AK6 -> 11066420.32 | X8: 0.09412608477 | Y8: 0.0221133555
A9: March | B9: Final | C9: ='I1a ER Summary'!S7 -> 23071999.5 | D9: ='I1a ER Summary'!T7 -> 22855660.62 | E9: 216338.8849 | F9: 0.009376685577 | G9: 1325344.206 | H9: 1308449.498 | I9: 16894.70774 | J9: 0.01274741132 | K9: 0.057248378 | L9: 0.07809371737 | N9: ='I1a ER Summary'!O7 -> 579462.62 | O9: ='I1a ER Summary'!E7 -> 865390.8663 | P9: 0 | Q9: 0 | R9: ='I1a ER Summary'!F7 -> -119509.2803 | S9: -119509.2803 | T9: ='I1a ER Summary'!C7 -> 1015583.606 | U9: ='I1a ER Summary'!AH7 -> 292865.892 | V9: ='I1a ER Summary'!AJ7 -> 10644947.27 | W9: ='I1a ER Summary'!AK7 -> 12210713.35 | X9: 0.09540522661 | Y9: 0.0239843393
A10: April | B10: Final | C10: ='I1a ER Summary'!S8 -> 19612596.97 | D10: ='I1a ER Summary'!T8 -> 19445476.32 | E10: 167120.6525 | F10: 0.00852108738 | G10: 1030781.041 | H10: 1020864.467 | I10: 9916.574515 | J10: 0.009620447134 | K10: 0.05249881516 | L10: 0.05933781592 | N10: ='I1a ER Summary'!O8 -> 412910.43 | O10: ='I1a ER Summary'!E8 -> 863117.2871 | P10: 0 | Q10: 0 | R10: ='I1a ER Summary'!F8 -> -245246.6757 | S10: -245246.6757 | T10: ='I1a ER Summary'!C8 -> 805829.8806 | U10: ='I1a ER Summary'!AH8 -> 215034.5863 | V10: ='I1a ER Summary'!AJ8 -> 8663208.687 | W10: ='I1a ER Summary'!AK8 -> 10782267.63 | X10: 0.09301748459 | Y10: 0.01994335456
A11: May | B11: Final | C11: ='I1a ER Summary'!S9 -> 19430008.77 | D11: ='I1a ER Summary'!T9 -> 19363944.73 | E11: 66064.03756 | F11: 0.003400103332 | G11: 963947.3593 | H11: 963014.632 | I11: 932.7272902 | J11: 0.0009676122676 | K11: 0.04973235802 | L11: 0.01411853294 | N11: ='I1a ER Summary'!O9 -> 340808.75 | O11: ='I1a ER Summary'!E9 -> 820560.7271 | P11: 0 | Q11: 0 | R11: ='I1a ER Summary'!F9 -> -197422.1178 | S11: -197422.1178 | T11: ='I1a ER Summary'!C9 -> 770490.8634 | U11: ='I1a ER Summary'!AH9 -> 192523.7686 | V11: ='I1a ER Summary'!AJ9 -> 8171811.067 | W11: ='I1a ER Summary'!AK9 -> 11192133.67 | X11: 0.09428642648 | Y11: 0.01720170384
A12: June | B12: Final | C12: ='I1a ER Summary'!S10 -> 19878459.19 | D12: ='I1a ER Summary'!T10 -> 19703817.2 | E12: 174641.9918 | F12: 0.008785489364 | G12: 1178659.404 | H12: 1166550.957 | I12: 12108.44705 | J12: 0.01027306702 | K12: 0.05920431283 | L12: 0.0693329647 | N12: ='I1a ER Summary'!O10 -> 606217.68 | O12: ='I1a ER Summary'!E10 -> 738566.5055 | P12: 0 | Q12: 0 | R12: ='I1a ER Summary'!F10 -> -166124.781 | S12: -166124.781 | T12: ='I1a ER Summary'!C10 -> 850258.7956 | U12: ='I1a ER Summary'!AH10 -> 316292.1618 | V12: ='I1a ER Summary'!AJ10 -> 8836581.3 | W12: ='I1a ER Summary'!AK10 -> 10867235.9 | X12: 0.09622033304 | Y12: 0.02910511604
A13: July | B13: Final | C13: ='I1a ER Summary'!S11 -> 21738229.68 | D13: ='I1a ER Summary'!T11 -> 21432508.47 | E13: 305721.205 | F13: 0.01406375816 | G13: 1474224.334 | H13: 1447190.644 | I13: 27033.69001 | J13: 0.0183375687 | K13: 0.06752315745 | L13: 0.0884259566 | N13: ='I1a ER Summary'!O11 -> 887558.49 | O13: ='I1a ER Summary'!E11 -> 551482.3822 | P13: 0 | Q13: 0 | R13: ='I1a ER Summary'!F11 -> 35183.46215 | S13: 35183.46215 | T13: ='I1a ER Summary'!C11 -> 1038979.919 | U13: ='I1a ER Summary'!AH11 -> 408210.7252 | V13: ='I1a ER Summary'!AJ11 -> 10819729.64 | W13: ='I1a ER Summary'!AK11 -> 10612778.83 | X13: 0.09602642151 | Y13: 0.03846407539
A14: August | B14: Final | C14: ='I1a ER Summary'!S12 -> 20715003.33 | D14: ='I1a ER Summary'!T12 -> 20478368.42 | E14: 236634.9053 | F14: 0.0114233583 | G14: 1277863.358 | H14: 1260518.111 | I14: 17345.24646 | J14: 0.01357363161 | K14: 0.06155363968 | L14: 0.07329961082 | N14: ='I1a ER Summary'!O12 -> 651885.58 | O14: ='I1a ER Summary'!E12 -> 728057.3915 | P14: 0 | Q14: 0 | R14: ='I1a ER Summary'!F12 -> -102079.6138 | S14: -102079.6138 | T14: ='I1a ER Summary'!C12 -> 940128.3367 | U14: ='I1a ER Summary'!AH12 -> 320389.7745 | V14: ='I1a ER Summary'!AJ12 -> 9733281.879 | W14: ='I1a ER Summary'!AK12 -> 10745086.55 | X14: 0.09658903836 | Y14: 0.02981732843
A15: September | B15: Final | C15: ='I1a ER Summary'!S13 -> 19039513.41 | D15: ='I1a ER Summary'!T13 -> 18842351.66 | E15: 197161.7522 | F15: 0.01035539869 | G15: 1224778.319 | H15: 1206711.915 | I15: 18066.40452 | J15: 0.01475075467 | K15: 0.0640425323 | L15: 0.09163239985 | N15: ='I1a ER Summary'!O13 -> 764196.78 | O15: ='I1a ER Summary'!E13 -> 494307.4268 | P15: 0 | Q15: 0 | R15: ='I1a ER Summary'!F13 -> -33725.88758 | S15: -33725.88758 | T15: ='I1a ER Summary'!C13 -> 827291.7666 | U15: ='I1a ER Summary'!AH13 -> 379420.1482 | V15: ='I1a ER Summary'!AJ13 -> 8714332.71 | W15: ='I1a ER Summary'!AK13 -> 10128018.95 | X15: 0.09493460878 | Y15: 0.0374624248
A16: October | B16: Final | C16: ='I1a ER Summary'!S14 -> 18708158.73 | D16: ='I1a ER Summary'!T14 -> 18535678.74 | E16: 172479.9853 | F16: 0.009219506197 | G16: 1123247.318 | H16: 1112042.196 | I16: 11205.12187 | J16: 0.009975649794 | K16: 0.05999468437 | L16: 0.06496476592 | N16: ='I1a ER Summary'!O14 -> 591790.47 | O16: ='I1a ER Summary'!E14 -> 702524.0783 | P16: 0 | Q16: 0 | R16: ='I1a ER Summary'!F14 -> -171067.2304 | S16: -171067.2304 | T16: ='I1a ER Summary'!C14 -> 804625.1896 | U16: ='I1a ER Summary'!AH14 -> 307417.0064 | V16: ='I1a ER Summary'!AJ14 -> 8504356.808 | W16: ='I1a ER Summary'!AK14 -> 10031321.94 | X16: 0.09461329148 | Y16: 0.03064571233
A17: November | B17: Final | C17: ='I1a ER Summary'!S15 -> 19789275.21 | D17: ='I1a ER Summary'!T15 -> 19581482.46 | E17: 207792.7508 | F17: 0.01050027091 | G17: 1399866.955 | H17: 1382466.284 | I17: 17400.67057 | J17: 0.01243023168 | K17: 0.0706006957 | L17: 0.08374050831 | N17: ='I1a ER Summary'!O15 -> 602629.49 | O17: ='I1a ER Summary'!E15 -> 689294.6284 | P17: 0 | Q17: 0 | R17: ='I1a ER Summary'!F15 -> 107942.8366 | S17: 107942.8366 | T17: ='I1a ER Summary'!C15 -> 1095734.888 | U17: ='I1a ER Summary'!AH15 -> 286731.3965 | V17: ='I1a ER Summary'!AJ15 -> 9605538.508 | W17: ='I1a ER Summary'!AK15 -> 9975943.951 | X17: 0.1140732388 | Y17: 0.02874228222
A18: December | B18: Final | C18: ='I1a ER Summary'!S16 -> 19911532.19 | D18: ='I1a ER Summary'!T16 -> 19656646.32 | E18: 254885.8669 | F18: 0.0128009168 | G18: 1472425.778 | H18: 1451735.697 | I18: 20690.08096 | J18: 0.01405169705 | K18: 0.07385469899 | L18: 0.08117390427 | N18: ='I1a ER Summary'!O16 -> 621666.31 | O18: ='I1a ER Summary'!E16 -> 724576.7436 | P18: 0 | Q18: 0 | R18: ='I1a ER Summary'!F16 -> 126182.7247 | S18: 126182.7247 | T18: ='I1a ER Summary'!C16 -> 1191369.899 | U18: ='I1a ER Summary'!AH16 -> 260365.7983 | V18: ='I1a ER Summary'!AJ16 -> 10774081.35 | W18: ='I1a ER Summary'!AK16 -> 8882564.968 | X18: 0.1105773996 | Y18: 0.02931200608
A19: Total | C19: =SUM(C7:C18) -> 247159991.2 | D19: =SUM(D7:D18) -> 244523898.4 | E19: =SUM(E7:E18) -> 2636092.77 | F19: 0.0106655319 | G19: =SUM(G7:G18) -> 15177355.78 | H19: =SUM(H7:H18) -> 15002230.58 | I19: =SUM(I7:I18) -> 175125.2014 | J19: 0.01153858446 | K19: 0.06135281939 | L19: 0.0664336261 | N19: =SUM(N7:N18) -> 7374136.09 | O19: 8674551.26 | P19: 0 | Q19: 0 | R19: -871331.5721 | S19: -871331.5721 | T19: 11382095.66 | U19: 3626059.63 | V19: 116261670.3 | W19: 128262228.2 | X19: 0.09790067216 | Y19: 0.02827067393

Sheet Rev2 GA Purchases
A1: Lakefront Utilities Inc.
A2: 2023 RSVA
A3: Non-RPP Global Adjustment
C5: Non-RPP Class A GA | F5: Non-RPP Class B GA | I5: RPP Class B GA | L5: Total Class B GA | Q5: GA non-RPP Cost Amounts Booked
C6: Cost Amount | D6: kWh | E6: Avg Cost | F6: Cost Amount | G6: kWh | H6: Avg Cost | I6: Cost Amount | J6: kWh | K6: Avg Cost | L6: Cost Amount | M6: kWh | N6: Avg Cost | Q6: G/L 4707 | R6: True-Ups | S6: Total | T6: Difference
A7: January | B7: Final | C7: ='Rec3 1589 Class A'!G8 -> 196016.93 | D7: ='I1a ER Summary'!AN5 -> 5244745.87 | E7: =+C7/D7 -> 0.03737396146 | F7: ='Rec2 1589 Class B'!J8 -> 359677.0831 | G7: ='I1a ER Summary'!AK5 -> 11767742.13 | H7: =+F7/G7 -> 0.0305646639 | I7: ='Rec1 1588 Commodity'!F8 -> 625946.7569 | J7: ='I1a ER Summary'!AJ5 -> 11351983.62 | K7: =+I7/J7 -> 0.05513985732 | L7: =+F7+I7 -> 985623.84 | M7: 23119725.75 | N7: =+L7/M7 -> 0.04263129463 | Q7: 368354.797 | S7: =+Q7+R7 -> 368354.797 | T7: =+S7-F7 -> 8677.713911
A8: February | B8: Final | C8: ='Rec3 1589 Class A'!G9 -> 279090.03 | D8: ='I1a ER Summary'!AN6 -> 4872482.76 | E8: 0.05727881323 | F8: ='Rec2 1589 Class B'!J9 -> 516502.554 | G8: ='I1a ER Summary'!AK6 -> 11066420.32 | H8: 0.04667295648 | I8: ='Rec1 1588 Commodity'!F9 -> 870726.466 | J8: ='I1a ER Summary'!AJ6 -> 10441817.42 | K8: 0.08338840179 | L8: 1387229.02 | M8: 21508237.74 | N8: 0.06449756772 | Q8: 517400.4514 | S8: =+Q8+R8 -> 517400.4514 | T8: 897.897375
A9: March | B9: Final | C9: ='Rec3 1589 Class A'!G10 -> 280601.36 | D9: ='I1a ER Summary'!AN7 -> 5406559.1 | E9: 0.05190017436 | F9: ='Rec2 1589 Class B'!J10 -> 553150.0337 | G9: ='I1a ER Summary'!AK7 -> 12210713.35 | H9: 0.04530038647 | I9: ='Rec1 1588 Commodity'!F10 -> 865390.8663 | J9: ='I1a ER Summary'!AJ7 -> 10644947.27 | K9: 0.08129592798 | L9: 1418540.9 | M9: 22855660.62 | N9: 0.06206518918 | Q9: 550805.5586 | S9: =+R9+Q9 -> 550805.5586 | T9: -2344.475083
A10: April | B10: Final | C10: ='Rec3 1589 Class A'!G11 -> 296339.98 | D10: ='I1a ER Summary'!AN8 -> 4919229.58 | E10: 0.06024113638 | F10: ='Rec2 1589 Class B'!J11 -> 584135.7029 | G10: ='I1a ER Summary'!AK8 -> 10782267.63 | H10: 0.05417558931 | I10: ='Rec1 1588 Commodity'!F11 -> 863117.2871 | J10: ='I1a ER Summary'!AJ8 -> 8663208.687 | K10: 0.09963020842 | L10: 1447252.99 | M10: 19445476.32 | N10: 0.07442620414 | Q10: 582775.4046 | S10: 582775.4046 | T10: -1360.298352
A11: May | B11: Final | C11: ='Rec3 1589 Class A'!G12 -> 301972.97 | D11: ='I1a ER Summary'!AN9 -> 5179605.98 | E11: 0.05830037481 | F11: ='Rec2 1589 Class B'!J12 -> 603739.3729 | G11: ='I1a ER Summary'!AK9 -> 11192133.67 | H11: 0.05394318822 | I11: ='Rec1 1588 Commodity'!F12 -> 820560.7271 | J11: ='I1a ER Summary'!AJ9 -> 8171811.067 | K11: 0.1004135705 | L11: 1424300.1 | M11: 19363944.73 | N11: 0.07355423286 | Q11: 606116.3272 | S11: 606116.3272 | T11: 2376.954267
A12: June | B12: Final | C12: ='Rec3 1589 Class A'!G13 -> 266798.59 | D12: ='I1a ER Summary'!AN10 -> 4723319.77 | E12: 0.0564853965 | F12: ='Rec2 1589 Class B'!J13 -> 513512.0145 | G12: ='I1a ER Summary'!AK10 -> 10867235.9 | H12: 0.04725323158 | I12: ='Rec1 1588 Commodity'!F13 -> 738566.5055 | J12: ='I1a ER Summary'!AJ10 -> 8836581.3 | K12: 0.0835805704 | L12: 1252078.52 | M12: 19703817.2 | N12: 0.0635449724 | Q12: 513680.4991 | S12: 513680.4991 | T12: 168.4846215
A13: July | B13: Final | C13: ='Rec3 1589 Class A'!G14 -> 189182.89 | D13: ='I1a ER Summary'!AN11 -> 3986098.22 | E13: 0.04746066945 | F13: ='Rec2 1589 Class B'!J14 -> 337762.3778 | G13: ='I1a ER Summary'!AK11 -> 10612778.83 | H13: 0.03182600741 | I13: ='Rec1 1588 Commodity'!F14 -> 551482.3822 | J13: ='I1a ER Summary'!AJ11 -> 10819729.64 | K13: 0.05097007046 | L13: 889244.76 | M13: 21432508.47 | N13: 0.04149046581 | Q13: 337855.3545 | S13: 337855.3545 | T13: 92.9767032
A14: August | B14: Final | C14: ='Rec3 1589 Class A'!G15 -> 247812.18 | D14: ='I1a ER Summary'!AN12 -> 4268877.49 | E14: 0.05805089993 | F14: ='Rec2 1589 Class B'!J15 -> 484425.6985 | G14: ='I1a ER Summary'!AK12 -> 10745086.55 | H14: 0.04508346177 | I14: ='Rec1 1588 Commodity'!F15 -> 728057.3915 | J14: ='I1a ER Summary'!AJ12 -> 9733281.879 | K14: 0.07480081237 | L14: 1212483.09 | M14: 20478368.42 | N14: 0.05920799279 | Q14: 484646.4102 | S14: 484646.4102 | T14: 220.7117405
A15: September | B15: Final | C15: ='Rec3 1589 Class A'!G16 -> 175043.77 | D15: ='I1a ER Summary'!AN13 -> 3924844.59 | E15: 0.04459890474 | F15: ='Rec2 1589 Class B'!J16 -> 351865.7432 | G15: ='I1a ER Summary'!AK13 -> 10128018.95 | H15: 0.03474181328 | I15: ='Rec1 1588 Commodity'!F16 -> 494307.4268 | J15: ='I1a ER Summary'!AJ13 -> 8714332.71 | K15: 0.05672349717 | L15: 846173.17 | M15: 18842351.66 | N15: 0.04490804467 | Q15: 351972.6143 | S15: 351972.6143 | T15: 106.8711152
A16: October | B16: Final | C16: ='Rec3 1589 Class A'!G17 -> 251311.17 | D16: ='I1a ER Summary'!AN14 -> 3882685 | E16: 0.06472612895 | F16: ='Rec2 1589 Class B'!J17 -> 507923.8317 | G16: ='I1a ER Summary'!AK14 -> 10031321.94 | H16: 0.05063378834 | I16: ='Rec1 1588 Commodity'!F17 -> 702524.0783 | J16: ='I1a ER Summary'!AJ14 -> 8504356.808 | K16: 0.08260754977 | L16: 1210447.91 | M16: 18535678.74 | N16: 0.06530367335 | Q16: 508645.545 | S16: 508645.545 | T16: 721.7132563
A17: November | B17: Final | C17: ='Rec3 1589 Class A'!G18 -> 223297.22 | D17: ='I1a ER Summary'!AN15 -> 3755295.76 | E17: 0.059461953 | F17: ='Rec2 1589 Class B'!J18 -> 446394.4816 | G17: ='I1a ER Summary'!AK15 -> 9975943.951 | H17: 0.04474709199 | I17: ='Rec1 1588 Commodity'!F18 -> 689294.6284 | J17: ='I1a ER Summary'!AJ15 -> 9605538.508 | K17: 0.07176012337 | L17: 1135689.11 | M17: 19581482.46 | N17: 0.05799811696 | Q17: 446213.3479 | S17: 446213.3479 | T17: -181.1336771
A18: December | B18: Final | C18: ='Rec3 1589 Class A'!G19 -> 231322.03 | D18: ='I1a ER Summary'!AN16 -> 2850485.17 | E18: 0.08115180968 | F18: ='Rec2 1589 Class B'!J19 -> 405668.4364 | G18: ='I1a ER Summary'!AK16 -> 8882564.968 | H18: 0.04567019075 | I18: ='Rec1 1588 Commodity'!F19 -> 724576.7436 | J18: ='I1a ER Summary'!AJ16 -> 10774081.35 | K18: 0.06725183519 | L18: 1130245.18 | M18: 19656646.32 | N18: 0.05749939035 | Q18: 408485.058 | S18: 408485.058 | T18: 2816.621588
C19: =SUM(C7:C18) -> 2938789.12 | D19: =SUM(D7:D18) -> 53014229.29 | E19: 0.05543396857 | F19: =SUM(F7:F18) -> 5664757.33 | G19: =SUM(G7:G18) -> 128262228.2 | H19: 0.04416543678 | I19: =SUM(I7:I18) -> 8674551.26 | J19: =SUM(J7:J18) -> 116261670.3 | K19: 0.07461230551 | L19: =SUM(L7:L18) -> 14339308.59 | M19: =SUM(M7:M18) -> 244523898.4 | N19: 0.05864174701 | Q19: =SUM(Q7:Q18) -> 5676951.368 | R19: =SUM(R7:R18) -> 0 | S19: =SUM(S7:S18) -> 5676951.368 | T19: =SUM(T7:T18) -> 12194.03747

Sheet Rev3 GA Analysis
F2: Consumption Data Excluding for Loss Factor (Data to agree with RRR as applicable)
F3: Year | H3: 2023
F4: Total Metered excluding WMP | G4: C = A+B | H4: =H5+H6 -> 244523898.4 | I4: kWh | J4: 1
F5: RPP | G5: A | H5: ='Rev2 GA Purchases'!J19 -> 116261670.3 | I5: kWh | J5: 0.5303752085
F6: Non RPP | G6: B = D+E | H6: =H7+H8 -> 128262228.2 | I6: kWh | J6: 0.4696247915
F7: Non-RPP Class A | G7: D | H7: ='Rev2 GA Purchases'!D19 -> 53014229.29 | I7: kWh | J7: 0.1815554551
F8: Non-RPP Class B* | G8: E | H8: ='Rev2 GA Purchases'!G19-H7 -> 75247998.89 | I8: kWh | J8: 0.2880693364
F9: *Non-RPP Class B consumption reported in this table is not expected to directly agree with the Non-RPP Class B Including Loss Adjusted Billed Consumption in the GA Analysis of Expected Balance table below. The difference should be equal to the loss factor.
A12: Note 4 | B12: Analysis of Expected GA Amount
B13: Year | C13: 2023
B14: Calendar Month | C14: Non-RPP Class B Including Loss Factor Billed Consumption (kWh) | D14: Deduct Previous Month Unbilled Loss Adjusted Consumption (kWh) | E14: Add Current Month Unbilled Loss Adjusted Consumption (kWh) | F14: Non-RPP Class B Including Loss Adjusted Consumption, Adjusted for Unbilled (kWh) | G14: GA Rate Billed ($/kWh) | H14: $ Consumption at GA Rate Billed | I14: GA Actual Rate Paid ($/kWh) | J14: $ Consumption at Actual Rate Paid | K14: Expected GA Variance ($) | M14: Revenue per Continuity Schedule | N14: Difference | P14: Expense per Continuity Schedule | Q14: Difference
C15: F | D15: G | E15: H | F15: I = F-G+H | G15: J | H15: K = I*J | I15: L | J15: M = I*L | K15: =M-K | N15: =H-M | Q15: =J-P
B16: January | C16: ='I1a ER Summary'!AP5 -> 6522996.259 | F16: =C16-D16+E16 -> 6522996.259 | G16: 0.0314 | H16: =F16*G16 -> 204822.0825 | I16: ='I1a ER Summary'!AZ5 -> 0.05376906831 | J16: =F16*I16 -> 350735.4315 | K16: =J16-H16 -> 145913.3489 | M16: ='Rec2 1589 Class B'!D8 -> -217783.6613 | N16: =H16+M16 -> -12961.57876 | P16: ='Rec2 1589 Class B'!J8 -> 359677.0831 | Q16: =J16-P16 -> -8941.651582
B17: February | C17: ='I1a ER Summary'!AP6 -> 6193937.561 | F17: =C17-D17+E17 -> 6193937.561 | G17: 0.0629 | H17: =F17*G17 -> 389598.6726 | I17: ='I1a ER Summary'!AZ6 -> 0.08248820856 | J17: =F17*I17 -> 510926.8134 | K17: =J17-H17 -> 121328.1408 | M17: ='Rec2 1589 Class B'!D9 -> -386455.2279 | N17: =H17+M17 -> 3143.444648 | P17: ='Rec2 1589 Class B'!J9 -> 516502.554 | Q17: =J17-P17 -> -5575.740619
B18: March | C18: ='I1a ER Summary'!AP7 -> 6804154.248 | F18: =C18-D18+E18 -> 6804154.248 | G18: 0.0699 | H18: =F18*G18 -> 475610.3819 | I18: ='I1a ER Summary'!AZ7 -> 0.08030034168 | J18: =F18*I18 -> 546375.9109 | K18: 70765.52901 | M18: ='Rec2 1589 Class B'!D10 -> -475196.514 | N18: 413.8679403 | P18: ='Rec2 1589 Class B'!J10 -> 553150.0337 | Q18: -6774.122738
B19: April | C19: ='I1a ER Summary'!AP8 -> 5863038.051 | F19: =C19-D19+E19 -> 5863038.051 | G19: 0.0825 | H19: =F19*G19 -> 483700.6392 | I19: ='I1a ER Summary'!AZ8 -> 0.09849702601 | J19: =F19*I19 -> 577491.8114 | K19: 93791.1722 | M19: ='Rec2 1589 Class B'!D11 -> -483040.2096 | N19: 660.4295276 | P19: ='Rec2 1589 Class B'!J11 -> 584135.7029 | Q19: =J19-P19 -> -6643.891577
B20: May | C20: ='I1a ER Summary'!AP9 -> 6012527.685 | F20: 6012527.685 | G20: 0.0825 | H20: 496033.534 | I20: ='I1a ER Summary'!AZ9 -> 0.09994805908 | J20: =F20*I20 -> 600940.4723 | K20: =J20-H20 -> 104906.9383 | M20: ='Rec2 1589 Class B'!D12 -> -495908.1796 | N20: 125.3544439 | P20: ='Rec2 1589 Class B'!J12 -> 603739.3729 | Q20: =J20-P20 -> -2798.900578
B21: June | C21: ='I1a ER Summary'!AP10 -> 6143916.128 | F21: 6143916.128 | G21: 0.0985 | H21: 605175.7386 | I21: ='I1a ER Summary'!AZ10 -> 0.08261742009 | J21: 507594.4997 | K21: -97581.23885 | M21: ='Rec2 1589 Class B'!D13 -> -605233.7012 | N21: -57.96260926 | P21: ='Rec2 1589 Class B'!J13 -> 513512.0145 | Q21: -5917.514748
B22: July | C22: ='I1a ER Summary'!AP11 -> 6626680.613 | F22: 6626680.613 | G22: 0.0996 | H22: 660017.3891 | I22: ='I1a ER Summary'!AZ11 -> 0.05009228114 | J22: 331945.5483 | K22: -328071.8408 | M22: ='Rec2 1589 Class B'!D14 -> -660046.566 | N22: -29.17689889 | P22: ='Rec2 1589 Class B'!J14 -> 337762.3778 | Q22: -5816.829454
B23: August | C23: ='I1a ER Summary'!AP12 -> 6476209.056 | F23: 6476209.056 | G23: 0.0538 | H23: 348420.0472 | I23: ='I1a ER Summary'!AZ12 -> 0.07372454168 | J23: 477455.5445 | K23: 129035.4973 | M23: ='Rec2 1589 Class B'!D15 -> -348171.09 | N23: 248.9572234 | P23: ='Rec2 1589 Class B'!J15 -> 484425.6985 | Q23: -6970.153968
B24: September | C24: ='I1a ER Summary'!AP13 -> 6203174.358 | F24: 6203174.358 | G24: 0.0584 | H24: 362265.3825 | I24: ='I1a ER Summary'!AZ13 -> 0.05598357331 | J24: 347275.8665 | K24: -14989.51606 | M24: ='Rec2 1589 Class B'!D16 -> -362016.76 | N24: 248.6225207 | P24: ='Rec2 1589 Class B'!J16 -> 351865.7432 | Q24: -4589.876715
B25: October | C25: ='I1a ER Summary'!AP14 -> 6148636.937 | F25: 6148636.937 | G25: 0.0733 | H25: 450695.0875 | I25: ='I1a ER Summary'!AZ14 -> 0.08164649117 | J25: 502014.6314 | K25: 51319.5439 | M25: ='Rec2 1589 Class B'!D17 -> -450563.5 | N25: 131.587451 | P25: ='Rec2 1589 Class B'!J17 -> 507923.8317 | Q25: -5909.200384
B26: November | C26: ='I1a ER Summary'!AP15 -> 6220648.191 | F26: 6220648.191 | G26: 0.0704 | H26: 437933.6326 | I26: ='I1a ER Summary'!AZ15 -> 0.07083014629 | J26: 440609.4214 | K26: 2675.78872 | M26: ='Rec2 1589 Class B'!D18 -> -437143.13 | N26: 790.5026323 | P26: ='Rec2 1589 Class B'!J18 -> 446394.4816 | Q26: -5785.060256
B27: December | C27: ='I1a ER Summary'!AP16 -> 6032079.798 | F27: 6032079.798 | G27: 0.0834 | H27: 503075.4552 | I27: ='I1a ER Summary'!AZ16 -> 0.06624711711 | J27: 399607.8968 | K27: -103467.5583 | M27: ='Rec2 1589 Class B'!D19 -> -500745.08 | N27: 2330.375182 | P27: ='Rec2 1589 Class B'!J19 -> 405668.4364 | Q27: -6060.539601
B29: Net Change in Expected GA Balance in the Year (i.e. Transactions in the Year) | C29: =SUM(C16:C27) -> 75247998.89 | D29: 0 | E29: 0 | F29: =SUM(F16:F27) -> 75247998.89 | H29: =SUM(H16:H27) -> 5417348.043 | J29: =SUM(J16:J27) -> 5592973.848 | K29: =SUM(K16:K27) -> 175625.8051 | M29: =SUM(M16:M28) -> -5422303.62 | N29: =SUM(N16:N28) -> -4955.576698 | P29: =SUM(P16:P28) -> 5664757.33 | Q29: =SUM(Q16:Q28) -> -71783.48222
C36: Annual Non-RPP Class B Wholesale kWh * | D36: Annual Non-RPP Class B Retail billed kWh | E36: Annual Unaccounted for Energy Loss kWh | F36: Weighted Average GA Actual Rate Paid ($/kWh)** | G36: Expected GA Volume Variance ($)
C37: O | D37: P | E37: Q=O-P | F37: R | G37: P= Q*R
C38: =(Rev1UFE!C19-H7)*'Rev3 GA Analysis '!H8/(H5+H8) -> 76283772.73 | D38: =F29 -> 75247998.89 | E38: =C38-D38 -> 1035773.842 | F38: =H29/F29 -> 0.07199325063 | G38: =E38*F38 -> 74568.72581 | I38: =D38/C38 -> 0.9864220947
C39: *Equal to (AQEW - Class A + embedded generation kWh)*(Non-RPP Class B retail kwh/Total retail Class B kWh)
C40: **Equal to annual Non-RPP Class B $ GA paid (i.e. non-RPP portion of CT 148 on IESO invoice) divided by Non-RPP Class B Wholesale kWh (as quantified in column O in the table above)
F41: Total Expected GA Variance | G41: =K29+G38 -> 250194.5309
A48: Note 5 | B48: Reconciling Items
B50: Item | C50: Applicability of Reconciling Item (Y/N) | D50: Amount (Quantify if it is a significant reconciling item) | E50: Explanation
A51: Net Change in Principal Balance in the GL (i.e. Transactions in the Year) | D51: =M29+P29 -> 242453.7106
A52: 1a | B52: Remove impacts to GA from prior year RPP Settlement true up process that are booked in current year | C52: N
A53: 1b | B53: Add impacts to GA from current year RPP Settlement true up process that are booked in subsequent year | C53: N
A54: 2a | B54: Remove prior year end unbilled to actual revenue differences | C54: N
A55: 2b | B55: Add current year end unbilled to actual revenue differences | C55: N
A56: 3a | B56: Remove difference between prior year accrual to forecast from long term load transfers | C56: N
A57: 3b | B57: Add difference between current year accrual to forecast from long term load transfers | C57: N
A58: 4 | B58: Remove GA balances pertaining to Class A customers | C58: N
A59: 5 | B59: Significant prior period billing adjustments included in current year GL balance but would not be included in the billing consumption used in the GA Analysis | C59: N
A60: 6 | B60: Differences in GA IESO posted rate and rate charged on IESO invoice | C60: N
A61: 7 | D61: 0
A62: 9
A63: 10
A64: Note 6 | B64: Adjusted Net Change in Principal Balance in the GL | D64: =SUM(D51:D63) -> 242453.7106
B65: Net Change in Expected GA Balance in the Year Per Analysis | D65: =G41 -> 250194.5309
B66: Unresolved Difference | D66: =D64-D65 -> -7740.820294
B67: Unresolved Difference as % of Expected GA Payments to IESO | D67: =IF(ISERROR(D66/J29),0,D66/J29) -> -0.001384025834 | E67: =IF(AND(D67<0.01,D67>-0.01),"","Unresolved differences of greater than + or - 1% should be explained") -> 
A70: Note 7 | B70: Summary of GA (if multiple years requested for disposition)
B72: Year | C72: Annual Net Change in Expected GA Balance from GA Analysis (cell K59) | D72: Net Change in Principal Balance in the GL (cell D65) | E72: Reconciling Items (sum of cells D66 to D78) | F72: Adjusted Net Change in Principal Balance in the GL | G72: Unresolved Difference | H72: Payments to IESO (cell J59) | I72: Unresolved Difference as % of Expected GA Payments to IESO
B73: 2023 | C73: =G41 -> 250194.5309 | D73: =D51 -> 242453.7106 | E73: =SUM(D52:D63) -> 0 | F73: =SUM(D73:E73) -> 242453.7106 | G73: =F73-C73 -> -7740.820294 | H73: =J29 -> 5592973.848 | I73: =IF(ISERROR(G73/H73),0,G73/H73) -> -0.001384025834
F74: =SUM(D74:E74) -> 0 | G74: =F74-C74 -> 0 | I74: =IF(ISERROR(G74/H74),0,G74/H74) -> 0
F75: =SUM(D75:E75) -> 0 | G75: =F75-C75 -> 0 | I75: =IF(ISERROR(G75/H75),0,G75/H75) -> 0
F76: =SUM(D76:E76) -> 0 | G76: =F76-C76 -> 0 | I76: =IF(ISERROR(G76/H76),0,G76/H76) -> 0
B77: Cumulative Balance | C77: =SUM(C73:C76) -> 250194.5309 | D77: 242453.7106 | E77: 0 | F77: 242453.7106 | G77: =SUM(G73:G76) -> -7740.820294 | H77: 5592973.848 | I77: N/A
B80: Additional Notes and Comments
B95: Account 1588 Reasonability Test
C97: Account 1588 - RSVA Power | F97: Account 4705 - Power Purchased | G97: Account 1588 as % of Account 4705
B98: Year | C98: Transactions1 | D98: Principal Adjustments1 | E98: Total Activity in Calendar Year
B99: 2023 | D99: ='Rec1 1588 Commodity'!L20 -> 175125.2014 | E99: =SUM(C99:D99) -> 175125.2014 | F99: ='Rec1 1588 Commodity'!K20 -> 15177355.78 | G99: =IFERROR(E99/F99,0) -> 0.01153858446
B102: Notes
B103: 1) The transactions should equal the "Transaction" column in the DVA Continuity Schedule. This is also expected to equal the transactions in the general ledger (excluding transactions relating to the removal of approved disposition amounts as that is shown in a separate column in the DVA Continuity Schedule)
B104: 2) Principal adjustments should equal the "Principal Adjustments" column in the DVA Continuity Schedule. Principal adjustments adjust the transactions in the general ledger to the amount that should be requested for disposition.
